Dept/Family,Entity,Expense Type,Expense Area,Supplier,Description,Payment Date,Amount,SME,UNSPCC code,UNSPCC Description
Communities and Local Government,Homes and Communities Agency,Economic Assets Nw Prog,North West,BARTON GRANGE LANDSCAPES,DAP3360-SERVICE-To provide gritting to Pathfinders Drive on a,20/12/2017,425,L,72101500,Building maintenance and repair services
Communities and Local Government,Homes and Communities Agency,Company Secretary Mh,Finance & Corporate Services,HM LAND REGISTRY,HM Land Registry,12/12/2017,252,G,80131500,Lease and rental of property or building
Communities and Local Government,Homes and Communities Agency,Capital Grant to Local Authorities,North West,WIGAN COUNCIL,Daily IMS payment,22/12/2017,1350000,G,N/A,Grant
Communities and Local Government,Homes and Communities Agency,Capital Grant to Local Authorities,North East And Yorkshire,BARNSLEY METROPOLITAN BOROUGH COUNCIL,Daily IMS payment,12/12/2017,6000,G,N/A,Grant
Communities and Local Government,Homes and Communities Agency,Capital Grant to Local Authorities,North East And Yorkshire,BARNSLEY METROPOLITAN BOROUGH COUNCIL,Daily IMS payment,19/12/2017,9000,G,N/A,Grant
Communities and Local Government,Homes and Communities Agency,Capital Grant to Local Authorities,North East And Yorkshire,BARNSLEY METROPOLITAN BOROUGH COUNCIL,Daily IMS payment,19/12/2017,7500,G,N/A,Grant
Communities and Local Government,Homes and Communities Agency,Capital Grant to Local Authorities,North East And Yorkshire,BARNSLEY METROPOLITAN BOROUGH COUNCIL,Daily IMS payment,22/12/2017,3000,G,N/A,Grant
Communities and Local Government,Homes and Communities Agency,Capital Grant to Local Authorities,North East And Yorkshire,SHEFFIELD CITY COUNCIL,Daily IMS payment,11/12/2017,15000,G,N/A,Grant
Communities and Local Government,Homes and Communities Agency,Capital Grant to Local Authorities,North East And Yorkshire,SHEFFIELD CITY COUNCIL,Daily IMS payment,21/12/2017,15000,G,N/A,Grant
Communities and Local Government,Homes and Communities Agency,Capital Grant to Local Authorities,North East And Yorkshire,SHEFFIELD CITY COUNCIL,Daily IMS payment,21/12/2017,10000,G,N/A,Grant
Communities and Local Government,Homes and Communities Agency,Capital Grant to Local Authorities,North East And Yorkshire,LEEDS CITY COUNCIL,Daily IMS payment,12/12/2017,20852,G,N/A,Grant
Communities and Local Government,Homes and Communities Agency,Capital Grant to Local Authorities,North East And Yorkshire,LEEDS CITY COUNCIL,Daily IMS payment,12/12/2017,20852,G,N/A,Grant
Communities and Local Government,Homes and Communities Agency,Capital Grant to Local Authorities,North East And Yorkshire,LEEDS CITY COUNCIL,Daily IMS payment,12/12/2017,20852,G,N/A,Grant
Communities and Local Government,Homes and Communities Agency,Capital Grant to Local Authorities,North East And Yorkshire,LEEDS CITY COUNCIL,Daily IMS payment,19/12/2017,20852,G,N/A,Grant
Communities and Local Government,Homes and Communities Agency,Capital Grant to Local Authorities,North East And Yorkshire,HARTLEPOOL BOROUGH COUNCIL,Daily IMS payment,22/12/2017,9250,G,N/A,Grant
Communities and Local Government,Homes and Communities Agency,Capital Grant to Local Authorities,North East And Yorkshire,MIDDLEBROUGH COUNCIL,Daily IMS payment,13/12/2017,8800,G,N/A,Grant
Communities and Local Government,Homes and Communities Agency,Capital Grant to Local Authorities,North East And Yorkshire,MIDDLEBROUGH COUNCIL,Daily IMS payment,22/12/2017,8800,G,N/A,Grant
Communities and Local Government,Homes and Communities Agency,Capital Grant to Local Authorities,North East And Yorkshire,EAST RIDING OF YORKSHIRE COUNCIL,Daily IMS payment,19/12/2017,6250,G,N/A,Grant
Communities and Local Government,Homes and Communities Agency,Capital Grant to Local Authorities,North East And Yorkshire,EAST RIDING OF YORKSHIRE COUNCIL,Daily IMS payment,22/12/2017,18750,G,N/A,Grant
Communities and Local Government,Homes and Communities Agency,Capital Grant to Local Authorities,North East And Yorkshire,EAST RIDING OF YORKSHIRE COUNCIL,Daily IMS payment,22/12/2017,6250,G,N/A,Grant
Communities and Local Government,Homes and Communities Agency,Capital Grant to Local Authorities,North East And Yorkshire,EAST RIDING OF YORKSHIRE COUNCIL,Daily IMS payment,22/12/2017,18750,G,N/A,Grant
Communities and Local Government,Homes and Communities Agency,Capital Grant to Local Authorities,North East And Yorkshire,EAST RIDING OF YORKSHIRE COUNCIL,Daily IMS payment,22/12/2017,18750,G,N/A,Grant
Communities and Local Government,Homes and Communities Agency,Capital Grant to Local Authorities,North East And Yorkshire,EAST RIDING OF YORKSHIRE COUNCIL,Daily IMS payment,22/12/2017,18750,G,N/A,Grant
Communities and Local Government,Homes and Communities Agency,Capital Grant to Local Authorities,North East And Yorkshire,EAST RIDING OF YORKSHIRE COUNCIL,Daily IMS payment,22/12/2017,6250,G,N/A,Grant
Communities and Local Government,Homes and Communities Agency,Capital Grant to Local Authorities,North East And Yorkshire,EAST RIDING OF YORKSHIRE COUNCIL,Daily IMS payment,22/12/2017,206250,G,N/A,Grant
Communities and Local Government,Homes and Communities Agency,Capital Grant to Local Authorities,North East And Yorkshire,EAST RIDING OF YORKSHIRE COUNCIL,Daily IMS payment,22/12/2017,6250,G,N/A,Grant
Communities and Local Government,Homes and Communities Agency,Capital Grant to Local Authorities,Midlands,DERBY CITY COUNCIL,Daily IMS payment,22/12/2017,15000,G,N/A,Grant
Communities and Local Government,Homes and Communities Agency,Capital Grant to Local Authorities,Midlands,BOURNEMOUTH BOROUGH COUNCIL,Daily IMS payment,22/12/2017,132000,G,N/A,Grant
Communities and Local Government,Homes and Communities Agency,Capital Grant to Local Authorities,East And South East,BRIGHTON & HOVE CITY COUNCIL,Daily IMS payment,21/12/2017,281586,G,N/A,Grant
Communities and Local Government,Homes and Communities Agency,Capital Grant to Local Authorities,East And South East,BRIGHTON & HOVE CITY COUNCIL,Daily IMS payment,21/12/2017,955912,G,N/A,Grant
Communities and Local Government,Homes and Communities Agency,Estate Management Yorks,North West,ASDA STORES LTD,"DAM3547-SERVICE-WESTBROOK LIBRARY, WESTBROOK, WARRINGTON",13/12/2017,341.81,L,80131500,Lease and rental of property or building
Communities and Local Government,Homes and Communities Agency,Estate Management Yorks,North West,ASDA STORES LTD,"DAP3384-SERVICE-Service Charge for Library, Westbrook Centre",18/12/2017,755.56,L,80131500,Lease and rental of property or building
Communities and Local Government,Homes and Communities Agency,Estate Management Yorks,North West,R D LANDSCAPES LTD,DAM3260-SERVICE-NORTHAMPTON     Fencing repairs and improveme,15/12/2017,5000,S,72101500,Building maintenance and repair services
Communities and Local Government,Homes and Communities Agency,Area Dir Mids South East Midla,Midlands,R D LANDSCAPES LTD,DAM2909-SERVICE-UPTON     Upton fencing works - Northern sect,19/12/2017,4500,S,72101500,Building maintenance and repair services
Communities and Local Government,Homes and Communities Agency,Estate Management Yorks,North West,R D LANDSCAPES LTD,DAP2563-SERVICE-Upton - Brunel Drive/Telford Way - Strimming,20/12/2017,310,S,72101500,Building maintenance and repair services
Communities and Local Government,Homes and Communities Agency,Estate Management Yorks,North West,R D LANDSCAPES LTD,DAP2563-SERVICE-Sharmans Lake - Additional litter pick to who,20/12/2017,320,S,72101500,Building maintenance and repair services
Communities and Local Government,Homes and Communities Agency,Estate Management Yorks,North West,R D LANDSCAPES LTD,DAP2563-SERVICE-Upton - Additional herbicide application to a,20/12/2017,840,S,72101500,Building maintenance and repair services
Communities and Local Government,Homes and Communities Agency,Estate Management Yorks,North West,R D LANDSCAPES LTD,DAP3092-SERVICE-To re-set one fallen Pay & Display machine in,20/12/2017,340,S,72101500,Building maintenance and repair services
Communities and Local Government,Homes and Communities Agency,Economic Assets Nw Prog,North West,CBRE LTD,DAP3389-SERVICE-Estuary - Void Sevice Charge,19/12/2017,9900,M,80131800,Real estate management services
Communities and Local Government,Homes and Communities Agency,Economic Assets Nw Prog,North West,CBRE LTD,DAP3389-SERVICE-Estuary - Void Sevice Charge,22/12/2017,14014.97,M,80131800,Real estate management services
Communities and Local Government,Homes and Communities Agency,Economic Assets Nw Prog,North West,CBRE LTD,DAP3389-SERVICE-Estuary - Void Sevice Charge,22/12/2017,7160.55,M,80131800,Real estate management services
Communities and Local Government,Homes and Communities Agency,Economic Assets Nw Prog,North West,CBRE LTD,DAP3389-SERVICE-Estuary - Void Sevice Charge,22/12/2017,9900,M,80131800,Real estate management services
Communities and Local Government,Homes and Communities Agency,Area Dir Mids Worcs-Shrop-Here,Midlands,BOURNVILLE VILLAGE DEVELOPMENTS LTD,DWM0521-SERVICE-Payment of funding to deliver HCA land,06/12/2017,25000,,N/A,Grant
Communities and Local Government,Homes and Communities Agency,East And Se Cambs Herts And Bu,East And South East,CROWN ESTATE COMMISSIONERS,DEE0044-SERVICE-Payment of consultants for planning app.,12/12/2017,4967.47,L,80131500,Lease and rental of property or building
Communities and Local Government,Homes and Communities Agency,Capital Grant to Local Authorities,East And South East,EASTBOURNE BOROUGH COUNCIL,Daily IMS payment,20/12/2017,103750,G,N/A,Grant
Communities and Local Government,Homes and Communities Agency,Capital Grant to Local Authorities,East And South East,EASTBOURNE BOROUGH COUNCIL,Daily IMS payment,22/12/2017,50000,G,N/A,Grant
Communities and Local Government,Homes and Communities Agency,Capital Grant to Local Authorities,East And South East,STROUD DISTRICT COUNCIL,Daily IMS payment,22/12/2017,22000,G,N/A,Grant
Communities and Local Government,Homes and Communities Agency,Comms Transition Budget,Finance & Corporate Services,KNIGHT FRANK LLP,DAP0162-SERVICE-Service charge relating to Building 5,08/12/2017,2258.24,L,80131500,Lease and rental of property or building
Communities and Local Government,Homes and Communities Agency,Company Secretary Mh,Finance & Corporate Services,IRON MOUNTAIN (UK) LTD,DAP1504-SERVICE-Iron Mountain Storage,04/12/2017,2770.73,L,78131800,Specialized warehousing and storage
Communities and Local Government,Homes and Communities Agency,Company Secretary Mh,Finance & Corporate Services,IRON MOUNTAIN (UK) LTD,DAP1504-SERVICE-Iron Mountain Storage,14/12/2017,6857.53,L,78131800,Specialized warehousing and storage
Communities and Local Government,Homes and Communities Agency,Company Secretary Mh,Finance & Corporate Services,IRON MOUNTAIN (UK) LTD,DAP1504-SERVICE-Iron Mountain Storage,20/12/2017,2385.29,L,78131800,Specialized warehousing and storage
Communities and Local Government,Homes and Communities Agency,Company Secretary Mh,Finance & Corporate Services,IRON MOUNTAIN (UK) LTD,DAP1504-SERVICE-Iron Mountain Storage,20/12/2017,2087.05,L,78131800,Specialized warehousing and storage
Communities and Local Government,Homes and Communities Agency,Company Secretary Mh,Finance & Corporate Services,IRON MOUNTAIN (UK) LTD,DAP1504-SERVICE-Iron Mountain Storage,20/12/2017,2330.66,L,78131800,Specialized warehousing and storage
Communities and Local Government,Homes and Communities Agency,Economic Assets Ne-Y Prog,North East And Yorkshire,C A BLACKWELL (CONTRACTS) LIMITED,"DAP2432-SERVICE-The Avenue site - construction of a reed bed,",19/12/2017,117176.1,L,72101500,Building maintenance and repair services
Communities and Local Government,Homes and Communities Agency,Spatial Intelligence Telford,Programmes,WARD HADAWAY,"FAIRVIEW HOUSE, BODMIN (LMT REF 12410)",14/12/2017,400000,,N/A,Acquisition
Communities and Local Government,Homes and Communities Agency,Comms Transition Budget,Finance & Corporate Services,GREENHAM TRADING LTD,DAP2707-SERVICE-PPE re-brand for the organisation to Homes En,06/12/2017,2983.57,L,46181500,Safety footwear
Communities and Local Government,Homes and Communities Agency,Estate Management Yorks,North West,ODELL AND COMPANY LIMITED,DAP3276-SERVICE-30 x 603B Security Locks - Upton,15/12/2017,1392,S,72102900,Facility maintenance and repair services
Communities and Local Government,Homes and Communities Agency,Comms Transition Budget,Finance & Corporate Services,MK LONDON LINK,DAP1880-SERVICE-Courier service for HCA Bedford,04/12/2017,637.8,S,78102200,Postal and small parcel and courier services
Communities and Local Government,Homes and Communities Agency,Estate Management Yorks,North West,NETWORK RAIL INFRASTRUCTURE LTD,DAP3213-SERVICE-Basildon - Recurring Annual Charge 2017,07/12/2017,583.2,L,80131800,Real estate management services
Communities and Local Government,Homes and Communities Agency,Economic Assets S&Sw Prog,South West,GROUND CONTROL LIMITED,DSW1110-SERVICE-Daedalus - grounds maintenance work to the re,19/12/2017,2477.75,L,72101500,Building maintenance and repair services
Communities and Local Government,Homes and Communities Agency,Budget 2013 - Midlands Wm,Midlands,CLEAR CHANNEL UK,DAP2000-SERVICE-12 month contract maintenance and inspection,22/12/2017,270,M,72101500,Building maintenance and repair services
Communities and Local Government,Homes and Communities Agency,Capital Grant to Local Authorities,North West,NORTH KESTEVEN DISTRICT COUNCIL,Daily IMS payment,22/12/2017,39375,G,N/A,Grant
Communities and Local Government,Homes and Communities Agency,Capital Grant to Local Authorities,North East And Yorkshire,CHERWELL DISTRICT COUNCIL,Daily IMS payment,22/12/2017,120000,G,N/A,Grant
Communities and Local Government,Homes and Communities Agency,Capital Grant to Local Authorities,North East And Yorkshire,CHERWELL DISTRICT COUNCIL,Daily IMS payment,22/12/2017,100000,G,N/A,Grant
Communities and Local Government,Homes and Communities Agency,Capital Grant to Local Authorities,North West,FIRST CHOICE HOMES OLDHAM LIMITED,Daily IMS payment,22/12/2017,247500,,N/A,Grant
Communities and Local Government,Homes and Communities Agency,Capital Grant to Local Authorities,North West,FIRST CHOICE HOMES OLDHAM LIMITED,Daily IMS payment,22/12/2017,371250,,N/A,Grant
Communities and Local Government,Homes and Communities Agency,Capital Grant to Local Authorities,North West,FIRST CHOICE HOMES OLDHAM LIMITED,Daily IMS payment,22/12/2017,45000,,N/A,Grant
Communities and Local Government,Homes and Communities Agency,Capital Grant to Local Authorities,North West,FIRST CHOICE HOMES OLDHAM LIMITED,Daily IMS payment,22/12/2017,24750,,N/A,Grant
Communities and Local Government,Homes and Communities Agency,Capital Grant to Local Authorities,North West,GLOUCESTER CITY HOMES,Daily IMS payment,22/12/2017,144000,,N/A,Grant
Communities and Local Government,Homes and Communities Agency,Capital Grant to Local Authorities,North West,GLOUCESTER CITY HOMES,Daily IMS payment,22/12/2017,234000,,N/A,Grant
Communities and Local Government,Homes and Communities Agency,Capital Grant to Local Authorities,North West,GLOUCESTER CITY HOMES,Daily IMS payment,22/12/2017,22500,,N/A,Grant
Communities and Local Government,Homes and Communities Agency,Capital Grant to Local Authorities,North West,GLOUCESTER CITY HOMES,Daily IMS payment,22/12/2017,18000,,N/A,Grant
Communities and Local Government,Homes and Communities Agency,Capital Grant to Local Authorities,North West,GLOUCESTER CITY HOMES,Daily IMS payment,22/12/2017,58500,,N/A,Grant
Communities and Local Government,Homes and Communities Agency,Capital Grant to RPs,East And South East,YMCA DOWNSLINK GROUP,Daily IMS payment,08/12/2017,761143,,N/A,Grant
Communities and Local Government,Homes and Communities Agency,Capital Grant to RPs,North East And Yorkshire,KARBON HOMES -ISOS HOUSING LIMITED,Daily IMS payment,19/12/2017,9000,,N/A,Grant
Communities and Local Government,Homes and Communities Agency,Capital Grant to RPs,North East And Yorkshire,KARBON HOMES -ISOS HOUSING LIMITED,Daily IMS payment,20/12/2017,432000,,N/A,Grant
Communities and Local Government,Homes and Communities Agency,Capital Grant to RPs,North East And Yorkshire,KARBON HOMES -ISOS HOUSING LIMITED,Daily IMS payment,22/12/2017,149500,,N/A,Grant
Communities and Local Government,Homes and Communities Agency,Capital Grant to RPs,North East And Yorkshire,KARBON HOMES -ISOS HOUSING LIMITED,Daily IMS payment,22/12/2017,40000,,N/A,Grant
Communities and Local Government,Homes and Communities Agency,Capital Grant to RPs,North East And Yorkshire,KEELMAN HOMES,Daily IMS payment,22/12/2017,18750,,N/A,Grant
Communities and Local Government,Homes and Communities Agency,Capital Grant to RPs,North East And Yorkshire,KEELMAN HOMES,Daily IMS payment,22/12/2017,22500,,N/A,Grant
Communities and Local Government,Homes and Communities Agency,Capital Grant to RPs,North East And Yorkshire,KEELMAN HOMES,Daily IMS payment,22/12/2017,5000,,N/A,Grant
Communities and Local Government,Homes and Communities Agency,Economic Assets Hub Transition,Economic Assets Hub,GENESIS HOUSING ASSOCIATION LIMITED,STF - Grahame Park Estate - LD - DEC 17,06/12/2017,9000000,,N/A,Loans
Communities and Local Government,Homes and Communities Agency,Capital Grant to RPs,North East And Yorkshire,ACTION HOUSING AND SUPPORT,Daily IMS payment,22/12/2017,56250,,N/A,Grant
Communities and Local Government,Homes and Communities Agency,Capital Grant to RPs,Midlands,CREATIVE SUPPORT LIMITED,Daily IMS payment,20/12/2017,446250,,N/A,Grant
Communities and Local Government,Homes and Communities Agency,Capital Grant to RPs,North East And Yorkshire,DISC,Daily IMS payment,12/12/2017,8550,,N/A,Grant
Communities and Local Government,Homes and Communities Agency,Capital Grant to RPs,North East And Yorkshire,DISC,Daily IMS payment,22/12/2017,16875,,N/A,Grant
Communities and Local Government,Homes and Communities Agency,Capital Grant to RPs,Programmes,THE GUINNESS PARTNERSHIP LIMITED,Daily IMS payment,18/12/2017,60000,,N/A,Grant
Communities and Local Government,Homes and Communities Agency,Capital Grant to RPs,Programmes,THE GUINNESS PARTNERSHIP LIMITED,Daily IMS payment,21/12/2017,25000,,N/A,Grant
Communities and Local Government,Homes and Communities Agency,Capital Grant to RPs,Programmes,THE GUINNESS PARTNERSHIP LIMITED,Daily IMS payment,21/12/2017,112500,,N/A,Grant
Communities and Local Government,Homes and Communities Agency,Capital Grant to RPs,Programmes,THE GUINNESS PARTNERSHIP LIMITED,Daily IMS payment,22/12/2017,292500,,N/A,Grant
Communities and Local Government,Homes and Communities Agency,Capital Grant to RPs,Programmes,THE GUINNESS PARTNERSHIP LIMITED,Daily IMS payment,22/12/2017,180000,,N/A,Grant
Communities and Local Government,Homes and Communities Agency,Capital Grant to RPs,Programmes,THE GUINNESS PARTNERSHIP LIMITED,Daily IMS payment,22/12/2017,1155375,,N/A,Grant
Communities and Local Government,Homes and Communities Agency,Capital Grant to RPs,North West,J & M RESIDENTIAL LETTINGS LIMITED,Daily IMS payment,21/12/2017,15000,,N/A,Grant
Communities and Local Government,Homes and Communities Agency,Capital Grant to RPs,North West,J & M RESIDENTIAL LETTINGS LIMITED,Daily IMS payment,22/12/2017,5000,,N/A,Grant
Communities and Local Government,Homes and Communities Agency,Capital Grant to RPs,North West,ST RICHARD OF CHICHESTER CHRSTIAN CARE,Daily IMS payment,14/12/2017,403028,,N/A,Grant
Communities and Local Government,Homes and Communities Agency,Capital Grant to RPs,North West,FRENCH WEIR AFFORDABLE HOMES,Daily IMS payment,08/12/2017,4500,,N/A,Grant
Communities and Local Government,Homes and Communities Agency,Capital Grant to RPs,North East And Yorkshire,TCUK HOMES LIMITED,Daily IMS payment,19/12/2017,5500,,N/A,Grant
Communities and Local Government,Homes and Communities Agency,Capital Grant to RPs,North East And Yorkshire,SOUTH TYNESIDE HOUSING VENTURE TRUST LTD,Daily IMS payment,22/12/2017,4475,,N/A,Grant
Communities and Local Government,Homes and Communities Agency,Capital Grant to RPs,North East And Yorkshire,FORTIS LIVING GROUP,Daily IMS payment,22/12/2017,43275,,N/A,Grant
Communities and Local Government,Homes and Communities Agency,Capital Grant to RPs,North East And Yorkshire,FORTIS LIVING GROUP,Daily IMS payment,22/12/2017,144675,,N/A,Grant
Communities and Local Government,Homes and Communities Agency,Capital Grant to RPs,North East And Yorkshire,FORTIS LIVING GROUP,Daily IMS payment,22/12/2017,141750,,N/A,Grant
Communities and Local Government,Homes and Communities Agency,Capital Grant to RPs,North East And Yorkshire,COUNTY DURHAM HOUSING GROUP,Daily IMS payment,22/12/2017,37500,,N/A,Grant
Communities and Local Government,Homes and Communities Agency,HCA Investment Credit Risk Man,Programmes,ADECCO UK LTD,DAP2433-SERVICE-Agency Staff,04/12/2017,828.1,L,80111600,Temporary personnel services
Communities and Local Government,Homes and Communities Agency,Company Secretary Mh,Finance & Corporate Services,ADECCO UK LTD,"DAP3157-SERVICE-Temp Worker Ali Zeeshan, appointed from 06/11",05/12/2017,537.6,L,80111600,Temporary personnel services
Communities and Local Government,Homes and Communities Agency,HCA Investment Credit Risk Man,Programmes,ADECCO UK LTD,DAP2433-SERVICE-Agency Staff,11/12/2017,828.1,L,80111600,Temporary personnel services
Communities and Local Government,Homes and Communities Agency,HCA Investment Credit Risk Man,Programmes,ADECCO UK LTD,DAP2433-SERVICE-Agency Staff,18/12/2017,922.74,L,80111600,Temporary personnel services
Communities and Local Government,Homes and Communities Agency,Company Secretary Mh,Finance & Corporate Services,ADECCO UK LTD,DAP3232-SERVICE-Temp worker appointed from 06/11,19/12/2017,638.4,L,80111600,Temporary personnel services
Communities and Local Government,Homes and Communities Agency,Company Secretary Mh,Finance & Corporate Services,ADECCO UK LTD,"DAP3232-SERVICE-Temp worker Ali Zeeshan, appointed from 06/11",19/12/2017,588,L,80111600,Temporary personnel services
Communities and Local Government,Homes and Communities Agency,Economic Assets Hub Transition,Economic Assets Hub,AQUINNA DEVELOPMENTS LIMITED,STF - Manor Road - Ln Drdn - Dec 17,19/12/2017,360647,,N/A,Loans
Communities and Local Government,Homes and Communities Agency,Land And Regeneration National,Programmes,ALPHABET (GB) LTD,DGC1543-SERVICE-INFORMAL EXT SERVICE COSTS,13/12/2017,251.1,L,25101500,Passenger motor vehicles
Communities and Local Government,Homes and Communities Agency,Facilities Allerton Bywater,Finance & Corporate Services,ALPHABET (GB) LTD,DGC1562-SERVICE-INFORMAL EXT SERVICE COSTS,13/12/2017,266.6,L,25101500,Passenger motor vehicles
Communities and Local Government,Homes and Communities Agency,HCA Investment Invest FRY BDG,Programmes,ALPHABET (GB) LTD,"DGC1169-SERVICE-JOEL DODD LEASE RENTAL 5,033.73pa",13/12/2017,2149.17,L,25101500,Passenger motor vehicles
Communities and Local Government,Homes and Communities Agency,HCA Investment Invest FRY BDG,Programmes,ALPHABET (GB) LTD,DGC1169-SERVICE-JOEL DODD SERVICE RENTAL,13/12/2017,2968.73,L,25101500,Passenger motor vehicles
Communities and Local Government,Homes and Communities Agency,Economic Assets Hub Transition,Economic Assets Hub,ABERFELDY NEW VILLAGE LLP,LTF- Aberfeldy New Village - LD - Dec 17,19/12/2017,529600.31,,N/A,Loans
Communities and Local Government,Homes and Communities Agency,Capital Grant to RPs,South West,ACER TREE SURGEONS LIMITED,"DAP2106-SERVICE-North Avon Mag Court Yate, tree works",07/12/2017,990,S,72101500,Building maintenance and repair services
Communities and Local Government,Homes and Communities Agency,HCA Investment Credit Risk Man,Programmes,ANTI MONEY LAUNDERING PROFESSIONALS FORUM,"DAP3406-SERVICE-AMLP Forum Membership for D. Tavares, K. Muir",19/12/2017,438,M,94101600,Professional associations
Communities and Local Government,Homes and Communities Agency,Economic Assets Ne-Y Prog,North East And Yorkshire,ARVAL UK LIMITED,DGC1632-SERVICE-LEASE COSTS,12/12/2017,1923.5,L,25101500,Passenger motor vehicles
Communities and Local Government,Homes and Communities Agency,Economic Assets Ne-Y Prog,North East And Yorkshire,ARVAL UK LIMITED,DGC1632-SERVICE-SERVICE COSTS,12/12/2017,2523.26,L,25101500,Passenger motor vehicles
Communities and Local Government,Homes and Communities Agency,Economic Assets Ne-Y Prog,North East And Yorkshire,ARVAL UK LIMITED,DGC1725-SERVICE-LEASE COSTS,14/12/2017,1483.47,L,25101500,Passenger motor vehicles
Communities and Local Government,Homes and Communities Agency,Economic Assets Ne-Y Prog,North East And Yorkshire,ARVAL UK LIMITED,DGC1725-SERVICE-SERVICE COSTS,14/12/2017,1933.7,L,25101500,Passenger motor vehicles
Communities and Local Government,Homes and Communities Agency,Economic Assets Nw Prog,North West,ARVAL UK LIMITED,DGC1679-SERVICE-LEASE COSTS,18/12/2017,999.12,L,25101500,Passenger motor vehicles
Communities and Local Government,Homes and Communities Agency,Economic Assets Nw Prog,North West,ARVAL UK LIMITED,DGC1679-SERVICE-SERVICE COSTS,18/12/2017,1493.51,L,25101500,Passenger motor vehicles
Communities and Local Government,Homes and Communities Agency,HCA Investment Credit Risk Man,Programmes,ARVAL UK LIMITED,DGC1619-SERVICE-LEASE COSTS,18/12/2017,2024.63,L,25101500,Passenger motor vehicles
Communities and Local Government,Homes and Communities Agency,HCA Investment Credit Risk Man,Programmes,ARVAL UK LIMITED,DGC1619-SERVICE-SERVICE COSTS,18/12/2017,2624.38,L,25101500,Passenger motor vehicles
Communities and Local Government,Homes and Communities Agency,Economic Assets Hub Transition,Economic Assets Hub,ACROM HOLDINGS LIMITED,STF - Acrom Holdings - Ln Drdn - Dec 17,05/12/2017,55071,S,72101500,Building maintenance and repair services
Communities and Local Government,Homes and Communities Agency,Economic Assets Hub Transition,Economic Assets Hub,ACROM HOLDINGS LIMITED,STF - The Quarry Site - Ln Drdn - Dec 17,05/12/2017,24500,S,72101500,Building maintenance and repair services
Communities and Local Government,Homes and Communities Agency,Economic Assets Hub Transition,Economic Assets Hub,ACROM HOLDINGS LIMITED,THBF STF-The Quarry Site-Dec17,12/12/2017,17309,S,72101500,Building maintenance and repair services
Communities and Local Government,Homes and Communities Agency,Economic Assets Hub Transition,Economic Assets Hub,ACROM HOLDINGS LIMITED,STF - The Quarry Site - Drawdown Dec 17,19/12/2017,117937,S,72101500,Building maintenance and repair services
Communities and Local Government,Homes and Communities Agency,Economic Assets Hub Transition,Economic Assets Hub,ASH GREEN (HOLDINGS) LTD,STF - Ash Green - Ln Drdn - Dec 17,05/12/2017,84288.7,,N/A,Loans
Communities and Local Government,Homes and Communities Agency,Economic Assets Hub Transition,Economic Assets Hub,ASH GREEN (HOLDINGS) LTD,STF - Ash Green - Ln Drdn - Dec 17,05/12/2017,113000,,N/A,Loans
Communities and Local Government,Homes and Communities Agency,Economic Assets Hub Transition,Economic Assets Hub,ASH GREEN (HOLDINGS) LTD,THBF STF-Heathcote-Dec17,22/12/2017,83200,,N/A,Loans
Communities and Local Government,Homes and Communities Agency,Economic Assets Hub Transition,Economic Assets Hub,ASH GREEN (HOLDINGS) LTD,THBF STF-Slacken Lane-Dec17,22/12/2017,23479.3,,N/A,Loans
Communities and Local Government,Homes and Communities Agency,Ne-Y North East Washington,North East And Yorkshire,AIREDALE FORESTRY,DAP0435-SERVICE-Landscape maintenance at St Georges for one y,06/12/2017,635.5,S,72101500,Building maintenance and repair services
Communities and Local Government,Homes and Communities Agency,Economic Assets Ne-Y Prog,North East And Yorkshire,AIREDALE FORESTRY,DAP1159-SERVICE-Provision of Landscape maintenance works for,06/12/2017,362.83,S,72101500,Building maintenance and repair services
Communities and Local Government,Homes and Communities Agency,Economic Assets Ne-Y Prog,North East And Yorkshire,AIREDALE FORESTRY,"DAP2474-SERVICE-Electrolux, Spennymoor - Secure open access p",07/12/2017,3607.05,S,72101500,Building maintenance and repair services
Communities and Local Government,Homes and Communities Agency,Economic Assets Ne-Y Prog,North East And Yorkshire,AIREDALE FORESTRY,"DAP2856-SERVICE-Electrolux, Spennymoor - Installation of 13no",07/12/2017,490,S,72101500,Building maintenance and repair services
Communities and Local Government,Homes and Communities Agency,Economic Assets Ne-Y Prog,North East And Yorkshire,AIREDALE FORESTRY,"DAP2210-SERVICE-Electrolux, Spennymoor - Landscape maintenanc",07/12/2017,390.25,S,72101500,Building maintenance and repair services
Communities and Local Government,Homes and Communities Agency,Economic Assets Ne-Y Prog,North East And Yorkshire,AIREDALE FORESTRY,DAP3264-SERVICE-Vegetation Clearance Seacroft,08/12/2017,1241,S,72101500,Building maintenance and repair services
Communities and Local Government,Homes and Communities Agency,Ne-Y North East Washington,North East And Yorkshire,AIREDALE FORESTRY,DAP0189-SERVICE-Events Car Park (North Shore & Tees),12/12/2017,438.95,S,72101500,Building maintenance and repair services
Communities and Local Government,Homes and Communities Agency,Economic Assets Ne-Y Prog,North East And Yorkshire,AIREDALE FORESTRY,DAP3085-SERVICE-Install 100mmx100mm post and attach heras fen,13/12/2017,368,S,72101500,Building maintenance and repair services
Communities and Local Government,Homes and Communities Agency,Economic Assets Ne-Y Prog,North East And Yorkshire,AIREDALE FORESTRY,"DAP2854-SERVICE-Dun Cow Quay, Blyth - Reflector installation",14/12/2017,755,S,72101500,Building maintenance and repair services
Communities and Local Government,Homes and Communities Agency,Estate Management Yorks,North West,AIREDALE FORESTRY,DAP2416-SERVICE-Middlehaven - The securing of a mooring jetty,15/12/2017,1418,S,72101500,Building maintenance and repair services
Communities and Local Government,Homes and Communities Agency,Economic Assets Ne-Y Prog,North East And Yorkshire,AIREDALE FORESTRY,"DAP3324-SERVICE-Electrolux, Spennymoor - General",15/12/2017,463,S,72101500,Building maintenance and repair services
Communities and Local Government,Homes and Communities Agency,Spatial Intelligence Telford,Programmes,ARNOLD CLARK FINANCE LIMITED,DGC1711-SERVICE-LEASE COSTS,19/12/2017,1881.48,L,25101500,Passenger motor vehicles
Communities and Local Government,Homes and Communities Agency,Spatial Intelligence Telford,Programmes,ARNOLD CLARK FINANCE LIMITED,DGC1711-SERVICE-SERVICE COSTS,19/12/2017,2419.44,L,25101500,Passenger motor vehicles
Communities and Local Government,Homes and Communities Agency,Spatial Intelligence Telford,Programmes,CAPITA PROPERTY & INFRASTRUCTURE,IT74203-SERVICE-AC086-12/King�s Lynn and North Norfolk/Boal Q,11/12/2017,4000,L,80131800,Real estate management services
Communities and Local Government,Homes and Communities Agency,Spatial Intelligence Telford,Programmes,CAPITA PROPERTY & INFRASTRUCTURE,IT74201-SERVICE-AC08609/King�s Lynn and North Norfolk/Southen,11/12/2017,4000,L,80131800,Real estate management services
Communities and Local Government,Homes and Communities Agency,Spatial Intelligence Telford,Programmes,CAPITA PROPERTY & INFRASTRUCTURE,IT74202-SERVICE-AC086-11/King�s Lynn and North Norfolk/Bus St,11/12/2017,4000,L,80131800,Real estate management services
Communities and Local Government,Homes and Communities Agency,Spatial Intelligence Telford,Programmes,CAPITA PROPERTY & INFRASTRUCTURE,IT74200-SERVICE-AC086-07/King�s Lynn and North Norfolk/Land a,11/12/2017,4000,L,80131800,Real estate management services
Communities and Local Government,Homes and Communities Agency,Spatial Intelligence Telford,Programmes,CAPITA PROPERTY & INFRASTRUCTURE,IT74199-SERVICE-AC086-02/Kings Lynn and West Norfolk/Columbia,11/12/2017,4000,L,80131800,Real estate management services
Communities and Local Government,Homes and Communities Agency,Spatial Intelligence Telford,Programmes,CAPITA PROPERTY & INFRASTRUCTURE,IT74183-SERVICE-AC086-01/King's Lynn and North Norfolk/NORA,11/12/2017,4000,L,80131800,Real estate management services
Communities and Local Government,Homes and Communities Agency,Land And Regeneration Mh,Programmes,CAPITA PROPERTY & INFRASTRUCTURE,IT69762-SERVICE-BFF project,11/12/2017,1067,L,80131800,Real estate management services
Communities and Local Government,Homes and Communities Agency,Economic Assets Hub Transition,Economic Assets Hub,BERWIN LEIGHTON PAISNER,"TS00066-SERVICE-27559 - JG Chatham Limited, Kitchener Barrack",01/12/2017,5000,L,80121600,Business law services
Communities and Local Government,Homes and Communities Agency,Land And Regeneration Mh,Programmes,BERWIN LEIGHTON PAISNER,IS12728-SERVICE-CB - HILL TOP FARM,01/12/2017,3000,L,80121600,Business law services
Communities and Local Government,Homes and Communities Agency,LIF LS Loans Private additions,Programmes,BERWIN LEIGHTON PAISNER,IS12551-SERVICE-Chilmington Green,07/12/2017,15658.94,L,80121600,Business law services
Communities and Local Government,Homes and Communities Agency,Land And Regeneration Mh,Programmes,BERWIN LEIGHTON PAISNER,IS13133-SERVICE-PRS Guarantee - Legal advice on Realstar,07/12/2017,20000,L,80121600,Business law services
Communities and Local Government,Homes and Communities Agency,Area Dir Mids South East Midla,Midlands,BERWIN LEIGHTON PAISNER,IS12106-SERVICE-Disbursements,08/12/2017,336,L,80121600,Business law services
Communities and Local Government,Homes and Communities Agency,Area Dir Mids South East Midla,Midlands,BERWIN LEIGHTON PAISNER,IS12106-SERVICE-advice releated to developer breach,08/12/2017,9131.88,L,80121600,Business law services
Communities and Local Government,Homes and Communities Agency,South West Of Eng-Glouc-Oxford,South West,BERWIN LEIGHTON PAISNER,IS12786-SERVICE-,11/12/2017,4500,L,80121600,Business law services
Communities and Local Government,Homes and Communities Agency,Capital Grant to RPs,South West,BERWIN LEIGHTON PAISNER,IS12895-SERVICE-Advice relating to lease with Martin Baker at,15/12/2017,6643.5,L,80121600,Business law services
Communities and Local Government,Homes and Communities Agency,Capital Grant to RPs,South West,BERWIN LEIGHTON PAISNER,IS12895-SERVICE-Advice relating to lease with Martin Baker at,20/12/2017,9117,L,80121600,Business law services
Communities and Local Government,Homes and Communities Agency,Capital Grant to RPs,South West,BERWIN LEIGHTON PAISNER,IS12895-SERVICE-Advice relating to lease with Martin Baker at,20/12/2017,5017.5,L,80121600,Business law services
Communities and Local Government,Homes and Communities Agency,Economic Assets Hub Transition,Economic Assets Hub,BLOSSOM IRON DEVELOPMENTS LIMITED,BTR - Blossom Iron - Ln Drdn - Dec 17,15/12/2017,792989.84,,N/A,Loans
Communities and Local Government,Homes and Communities Agency,South West Of Eng-Glouc-Oxford,South West,BROWNE JACOBSON LLP,IS12824-SERVICE-Advice in relation to on going Dilapidations ,06/12/2017,370,L,80121600,Business law services
Communities and Local Government,Homes and Communities Agency,East And Se Cambs Herts And Bu,East And South East,BROWNE JACOBSON LLP,IS12552-SERVICE-Amenity Land Paston Peterborough,12/12/2017,750,L,80121600,Business law services
Communities and Local Government,Homes and Communities Agency,Budget 2013 - Midlands Wm,Midlands,BROWNE JACOBSON LLP,IS13079-SERVICE-Station Road,13/12/2017,330,L,80121600,Business law services
Communities and Local Government,Homes and Communities Agency,Economic Assets Ne-Y Prog,North East And Yorkshire,BROWNE JACOBSON LLP,BROSWORTH - LAND TRUST FEES,15/12/2017,5394,L,80121600,Business law services
Communities and Local Government,Homes and Communities Agency,Spatial Intelligence Telford,Programmes,BROWNE JACOBSON LLP,IS13078-SERVICE-Right to Buy's & Leasehold Enfranchisement - ,15/12/2017,850,L,80121600,Business law services
Communities and Local Government,Homes and Communities Agency,Estate Management Yorks,North West,BROWNE JACOBSON LLP,IS12254-SERVICE-Land fronting Tower Road,15/12/2017,2376,L,80121600,Business law services
Communities and Local Government,Homes and Communities Agency,Economic Assets S&Sw Prog,South West,BROWNE JACOBSON LLP,IS13146-SERVICE-Colt Industrial,15/12/2017,2944.5,L,80121600,Business law services
Communities and Local Government,Homes and Communities Agency,Budget 2013 - Midlands Wm,Midlands,BROWNE JACOBSON LLP,IS13153-SERVICE-Former Lea Castle Hospital,19/12/2017,9894.5,L,80121600,Business law services
Communities and Local Government,Homes and Communities Agency,East And South East,East And South East,BROWNE JACOBSON LLP,IS12968-SERVICE-Land to the North East of Welwyn Garden City,20/12/2017,1569.75,L,80121600,Business law services
Communities and Local Government,Homes and Communities Agency,Economic Assets Hub Transition,Economic Assets Hub,BROWNE JACOBSON LLP,TS00072-SERVICE-27559 - Maya Property Developments Ltd - 14-1,20/12/2017,9303.9,L,80121600,Business law services
Communities and Local Government,Homes and Communities Agency,Capital Grant to RPs,South West,BROWNE JACOBSON LLP,IS13026-SERVICE-No.7 Wrest Park,21/12/2017,300,L,80121600,Business law services
Communities and Local Government,Homes and Communities Agency,Land And Regeneration Mh,Programmes,BUILDING DESIGN PARTNERSHIP,IT71005-SERVICE-Monitoring Surveyor - Rider Levett Bucknall,01/12/2017,1800,L,80131800,Real estate management services
Communities and Local Government,Homes and Communities Agency,South West Hants-Iow-Dorset-Bu,South West,PETER BRETT ASSOCIATES LLP,IT72530-SERVICE-Outline Planning,04/12/2017,19326.56,L,80131800,Real estate management services
Communities and Local Government,Homes and Communities Agency,South West Of Eng-Glouc-Oxford,South West,PETER BRETT ASSOCIATES LLP,IT71946-SERVICE-Weston Links Remediation Investigation and St,15/12/2017,5000,L,80131800,Real estate management services
Communities and Local Government,Homes and Communities Agency,Economic Assets S&Sw Prog,South West,PETER BRETT ASSOCIATES LLP,IT74564-SERVICE-Lace Works,20/12/2017,21092,L,80131800,Real estate management services
Communities and Local Government,Homes and Communities Agency,Economic Assets S&Sw Prog,South West,PETER BRETT ASSOCIATES LLP,IT74368-SERVICE-Blandford Brewery - Demolition and infrastruc,20/12/2017,18587.74,L,80131800,Real estate management services
Communities and Local Government,Homes and Communities Agency,It - Rda Transition,Finance & Corporate Services,BRITISH TELECOMMUNICATIONS PLC,DAP0673-SERVICE-Broadband usage for Contractual Homeworkers,05/12/2017,957,L,83111500,Local and long distance telephone communications
Communities and Local Government,Homes and Communities Agency,Ne-Yh Sheffield And Humb Ne-Y,North East And Yorkshire,JACOBS UK LTD,DYH0251-SERVICE-Replaces PO YH00093 - Prof Consultancy,14/12/2017,1101.24,L,80131800,Real estate management services
Communities and Local Government,Homes and Communities Agency,Ne-Yh Sheffield And Humb Ne-Y,North East And Yorkshire,JACOBS UK LTD,DYH0251-SERVICE-Replaces PO YH00093 - Prof Consultancy,14/12/2017,7805.55,L,80131800,Real estate management services
Communities and Local Government,Homes and Communities Agency,Ne-Yh Sheffield And Humb Ne-Y,North East And Yorkshire,JACOBS UK LTD,DYH0251-SERVICE-Replaces PO YH00093 - Prof Consultancy,14/12/2017,6478.61,L,80131800,Real estate management services
Communities and Local Government,Homes and Communities Agency,Ne-Yh Sheffield And Humb Ne-Y,North East And Yorkshire,JACOBS UK LTD,DYH0251-SERVICE-Replaces PO YH00093 - Prof Consultancy,14/12/2017,2163.02,L,80131800,Real estate management services
Communities and Local Government,Homes and Communities Agency,Ne-Yh Sheffield And Humb Ne-Y,North East And Yorkshire,JACOBS UK LTD,DYH0251-SERVICE-Replaces PO YH00093 - Prof Consultancy,14/12/2017,2870.41,L,80131800,Real estate management services
Communities and Local Government,Homes and Communities Agency,Ne-Yh Sheffield And Humb Ne-Y,North East And Yorkshire,JACOBS UK LTD,DYH0251-SERVICE-Replaces PO YH00093 - Prof Consultancy,14/12/2017,5948.4,L,80131800,Real estate management services
Communities and Local Government,Homes and Communities Agency,Area Dir Mids Worcs-Shrop-Here,Midlands,BRITISH GAS BUSINESS,DWM0689-SERVICE-Electricity supply to Lickey end Buildings,04/12/2017,394.02,L,83101800,Electric utilities
Communities and Local Government,Homes and Communities Agency,Capital Grant to RPs,South West,BRITISH GAS BUSINESS,DAP0498-SERVICE-Compton - call off order,07/12/2017,259.66,L,83101800,Electric utilities
Communities and Local Government,Homes and Communities Agency,South West Of Eng-Glouc-Oxford,South West,BRITISH GAS BUSINESS,DSW1228-SERVICE-Blackberry Hill Hospital - Electricity Supply,11/12/2017,392.86,L,83101800,Electric utilities
Communities and Local Government,Homes and Communities Agency,Economic Assets S&Sw Prog,South West,BRITISH GAS BUSINESS,DSW1144-SERVICE-Daedalus Waterfront - site electricity bill,18/12/2017,561.6,L,83101800,Electric utilities
Communities and Local Government,Homes and Communities Agency,Capital Grant to RPs,South West,BRITISH GAS BUSINESS,DAM3165-SERVICE-Electricity supply - The former Halifax Magis,21/12/2017,1100.56,L,83101800,Electric utilities
Communities and Local Government,Homes and Communities Agency,Economic Assets Hub Transition,Economic Assets Hub,BEAUCHIEF HOMES LIMITED,STF - Beauchief Homes - Ln Drdn - Dec 17,18/12/2017,72224.16,,N/A,Loans
Communities and Local Government,Homes and Communities Agency,Spatial Intelligence Telford,Programmes,BC LEGAL (CLIENT ACCOUNT),DAP3050-SERVICE-N Ward Disbursements,21/12/2017,815,S,80121600,Business law services
Communities and Local Government,Homes and Communities Agency,Economic Assets Hub Transition,Economic Assets Hub,BATTY DEVELOPMENTS LIMITED,STF - Acacia Drive - Ln Drdn - Dec 17,07/12/2017,439495,,N/A,Loans
Communities and Local Government,Homes and Communities Agency,Spatial Intelligence Telford,Programmes,BC LEGAL (OFFICE ACCOUNT),DAP3049-SERVICE-N Ward Professional Charges,01/12/2017,1370,S,80121600,Business law services
Communities and Local Government,Homes and Communities Agency,Land And Regeneration National,Programmes,BC LEGAL (OFFICE ACCOUNT),DAP3448-SERVICE-J Warburton Vs Warrington & Runcorn professio,21/12/2017,1360,S,80121600,Business law services
Communities and Local Government,Homes and Communities Agency,Estate Management Yorks,North West,BRITISH GAS BUSINESS,"DAP3240-SERVICE-For Supply for St James Social Club, Northamp",07/12/2017,364.38,L,83101800,Electric utilities
Communities and Local Government,Homes and Communities Agency,Comms Transition Budget,Finance & Corporate Services,BRITISH GAS BUSINESS,DOF0401-SERVICE-BIS %,14/12/2017,1582.37,L,83101800,Electric utilities
Communities and Local Government,Homes and Communities Agency,Comms Transition Budget,Finance & Corporate Services,BRITISH GAS BUSINESS,DOF0401-SERVICE-afegd 1106 01,14/12/2017,3429.9,L,83101800,Electric utilities
Communities and Local Government,Homes and Communities Agency,Economic Assets S&Sw Prog,South West,BARRATT SOUTHERN COUNTIES,DAP3204-SERVICE-HCA's agreed contribution towards costs of co,19/12/2017,35998.24,L,N/A,Grant
Communities and Local Government,Homes and Communities Agency,Budget 2013 - Midlands Wm,Midlands,BIRMINGHAM CITY COUNCIL,DAP3296-SERVICE-City Deal Birmingham - Perry Barr Strategic I,12/12/2017,27592,G,80131500,Lease and rental of property or building
Communities and Local Government,Homes and Communities Agency,Budget 2013 - Midlands Wm,Midlands,BIRMINGHAM CITY COUNCIL,LAND OFF YORK ROAD,12/12/2017,9642,G,80131500,Lease and rental of property or building
Communities and Local Government,Homes and Communities Agency,Budget 2013 - Midlands Wm,Midlands,BIRMINGHAM CITY COUNCIL,DWM0399-SERVICE-Meadway - Balance of HCA contribution.Birming,21/12/2017,404763,G,80131500,Lease and rental of property or building
Communities and Local Government,Homes and Communities Agency,Budget 2013 - Midlands Wm,Midlands,THE BAILIFF COMPANY,"DAP3220-SERVICE-Washwood Heath, service and eviction of appro",13/12/2017,3200,L,84101704,Debt collection services
Communities and Local Government,Homes and Communities Agency,Comms Transition Budget,Finance & Corporate Services,BOUYGUES E&S FM UK LTD,DAP0129-SERVICE-Call off order for catering at 2MS,01/12/2017,371.8,L,90101600,Banquet and catering services
Communities and Local Government,Homes and Communities Agency,Economic Assets Hub Transition,Economic Assets Hub,BOVIS HOMES LTD,LTF - Stanton Cross - Ln Drdn - Dec 17,19/12/2017,1020354.41,,N/A,Loans
Communities and Local Government,Homes and Communities Agency,Economic Assets Ne-Y Prog,North East And Yorkshire,BNP PARIBAS REAL ESTATE,IT69757-SERVICE-Dun Cow Quay Development Plots,01/12/2017,5922.5,L,80131800,Real estate management services
Communities and Local Government,Homes and Communities Agency,Land And Regeneration Mh,Programmes,BNP PARIBAS REAL ESTATE,IT69846-SERVICE-Monitoring Surveyor Services,01/12/2017,500,L,80131800,Real estate management services
Communities and Local Government,Homes and Communities Agency,Land And Regeneration Mh,Programmes,BNP PARIBAS REAL ESTATE,IT71459-SERVICE-Monitoring Instruction,04/12/2017,500,L,80131800,Real estate management services
Communities and Local Government,Homes and Communities Agency,Land And Regeneration Mh,Programmes,BNP PARIBAS REAL ESTATE,IT69739-SERVICE-Following previous discussions and the Monito,04/12/2017,500,L,80131800,Real estate management services
Communities and Local Government,Homes and Communities Agency,Land And Regeneration Mh,Programmes,BNP PARIBAS REAL ESTATE,IT72088-SERVICE-Regents Park Phase 2a,04/12/2017,500,L,80131800,Real estate management services
Communities and Local Government,Homes and Communities Agency,Land And Regeneration Mh,Programmes,BNP PARIBAS REAL ESTATE,IT69723-SERVICE-Following previous discussions and the Monito,04/12/2017,500,L,80131800,Real estate management services
Communities and Local Government,Homes and Communities Agency,Land And Regeneration Mh,Programmes,BNP PARIBAS REAL ESTATE,IT72603-SERVICE-Conniscliffe Rise MS Instruction,04/12/2017,500,L,80131800,Real estate management services
Communities and Local Government,Homes and Communities Agency,Land And Regeneration Mh,Programmes,BNP PARIBAS REAL ESTATE,IT70743-SERVICE-Norfolk Park 4 & Bluestones,07/12/2017,600,L,80131800,Real estate management services
Communities and Local Government,Homes and Communities Agency,Land And Regeneration Mh,Programmes,BNP PARIBAS REAL ESTATE,IT70742-SERVICE-Manor 10 & 11,07/12/2017,600,L,80131800,Real estate management services
Communities and Local Government,Homes and Communities Agency,Land And Regeneration Mh,Programmes,BNP PARIBAS REAL ESTATE,IT70740-SERVICE-Earl Marshal,07/12/2017,600,L,80131800,Real estate management services
Communities and Local Government,Homes and Communities Agency,Land And Regeneration Mh,Programmes,BNP PARIBAS REAL ESTATE,IT70726-SERVICE-Main Road,07/12/2017,600,L,80131800,Real estate management services
Communities and Local Government,Homes and Communities Agency,Land And Regeneration Mh,Programmes,BNP PARIBAS REAL ESTATE,IT70724-SERVICE-Phase 4 Central Park,11/12/2017,600,L,80131800,Real estate management services
Communities and Local Government,Homes and Communities Agency,South West Hants-Iow-Dorset-Bu,South West,BNP PARIBAS REAL ESTATE,IT71783-SERVICE-Marketing of Residential Land at the Former L,18/12/2017,10634.4,L,80131800,Real estate management services
Communities and Local Government,Homes and Communities Agency,Land And Regeneration Mh,Programmes,BNP PARIBAS REAL ESTATE,IT73629-SERVICE-Intial monitoring report and monthly monitori,19/12/2017,650,L,80131800,Real estate management services
Communities and Local Government,Homes and Communities Agency,Land And Regeneration Mh,Programmes,BNP PARIBAS REAL ESTATE,IT74471-SERVICE-Alps Developments -21 units at Capewell Road,20/12/2017,2250,L,80131800,Real estate management services
Communities and Local Government,Homes and Communities Agency,Land And Regeneration Mh,Programmes,BNP PARIBAS REAL ESTATE,IT74471-SERVICE-Alps Developments -21 units at Capewell Road,20/12/2017,1950,L,80131800,Real estate management services
Communities and Local Government,Homes and Communities Agency,Land And Regeneration Mh,Programmes,BNP PARIBAS REAL ESTATE,IT69846-SERVICE-Monitoring Surveyor Services,22/12/2017,500,L,80131800,Real estate management services
Communities and Local Government,Homes and Communities Agency,Estate Management Yorks,North West,G BURLEY & SONS LTD,DAP2761-SERVICE-Maintenance of 10 sites in Peterborough durin,08/12/2017,434.52,S,72101500,Building maintenance and repair services
Communities and Local Government,Homes and Communities Agency,Estate Management Yorks,North West,G BURLEY & SONS LTD,DAP3128-SERVICE-Clear all fly tipped waste across various HCA,15/12/2017,1660,S,72101500,Building maintenance and repair services
Communities and Local Government,Homes and Communities Agency,Estate Management Yorks,North West,G BURLEY & SONS LTD,DAP0464-SERVICE-Basildon - 12 months grounds maintenance,15/12/2017,1130.05,S,72101500,Building maintenance and repair services
Communities and Local Government,Homes and Communities Agency,Estate Management Yorks,North West,G BURLEY & SONS LTD,DAM3101-SERVICE-LC156     Northampton Town and Brackmills Lan,20/12/2017,2056.29,S,72101500,Building maintenance and repair services
Communities and Local Government,Homes and Communities Agency,Estate Management Yorks,North West,G BURLEY & SONS LTD,DAP2761-SERVICE-Maintenance of 10 sites in Peterborough durin,22/12/2017,434.52,S,72101500,Building maintenance and repair services
Communities and Local Government,Homes and Communities Agency,Economic Assets Ne-Y Prog,North East And Yorkshire,G BURLEY & SONS LTD,DAP3253-SERVICE-Carr Lodge Farm -,22/12/2017,363.44,S,72101500,Building maintenance and repair services
Communities and Local Government,Homes and Communities Agency,Estate Management Yorks,North West,G BURLEY & SONS LTD,DAP2761-SERVICE-Maintenance of 10 sites in Peterborough durin,22/12/2017,434.52,S,72101500,Building maintenance and repair services
Communities and Local Government,Homes and Communities Agency,Estate Management Yorks,North West,BERRYS,IT72469-SERVICE-National Rural Core Services Contract 2015 -2,19/12/2017,9000,S,80131800,Real estate management services
Communities and Local Government,Homes and Communities Agency,It - Rda Transition,Finance & Corporate Services,CARETOWER LTD,DAP3094-SERVICE-850 x Standard Maintenance and Support Licenc,05/12/2017,6780,L,81112300,Computer hardware maintenance and support
Communities and Local Government,Homes and Communities Agency,Economic Assets Nw Prog,North West,CAMPBELL REITH,IT73927-SERVICE-Baxi Demolition Consultants,07/12/2017,5000,S,77101500,Environmental auditing
Communities and Local Government,Homes and Communities Agency,Capital Grant to RPs,South West,CAMPBELL REITH,IT74020-SERVICE-Demolition and Outline PlanningConsett Magist,07/12/2017,10189.75,S,77101500,Environmental auditing
Communities and Local Government,Homes and Communities Agency,Economic Assets S&Sw Prog,South West,CAMPBELL REITH,IT74303-SERVICE-Draft NEC3 contract for legal review pre-tend,07/12/2017,1450,S,77101500,Environmental auditing
Communities and Local Government,Homes and Communities Agency,East And South East,East And South East,CAMPBELL REITH,IT73460-SERVICE-Planning permission,07/12/2017,12376.23,S,77101500,Environmental auditing
Communities and Local Government,Homes and Communities Agency,East And South East,East And South East,CAMPBELL REITH,IT73460-SERVICE-Planning permission,07/12/2017,8024.22,S,77101500,Environmental auditing
Communities and Local Government,Homes and Communities Agency,East And South East,East And South East,CAMPBELL REITH,IT73460-SERVICE-Planning permission,07/12/2017,33615.07,S,77101500,Environmental auditing
Communities and Local Government,Homes and Communities Agency,Capital Grant to RPs,South West,CAMPBELL REITH,IT73846-SERVICE-Wealstun,11/12/2017,4262.35,S,77101500,Environmental auditing
Communities and Local Government,Homes and Communities Agency,East And South East,East And South East,CAMPBELL REITH,IT72201-SERVICE-Site Supervision and Contract Administration,12/12/2017,3036.11,S,77101500,Environmental auditing
Communities and Local Government,Homes and Communities Agency,Economic Assets S&Sw Prog,South West,CAMPBELL REITH,IT71377-SERVICE-Daedalus Waterfront Multidisciplinary,13/12/2017,5378,S,77101500,Environmental auditing
Communities and Local Government,Homes and Communities Agency,Economic Assets S&Sw Prog,South West,CAMPBELL REITH,IT71377-SERVICE-Daedalus Waterfront Multidisciplinary,13/12/2017,5378,S,77101500,Environmental auditing
Communities and Local Government,Homes and Communities Agency,Economic Assets S&Sw Prog,South West,CAMPBELL REITH,IT71377-SERVICE-Daedalus Waterfront Multidisciplinary,13/12/2017,5378,S,77101500,Environmental auditing
Communities and Local Government,Homes and Communities Agency,Economic Assets S&Sw Prog,South West,CAMPBELL REITH,IT71377-SERVICE-Daedalus Waterfront Multidisciplinary,13/12/2017,6522,S,77101500,Environmental auditing
Communities and Local Government,Homes and Communities Agency,Economic Assets S&Sw Prog,South West,CAMPBELL REITH,IT74422-SERVICE-Asbestos Monitoring related to Buildings 142,13/12/2017,8487,S,77101500,Environmental auditing
Communities and Local Government,Homes and Communities Agency,Economic Assets S&Sw Prog,South West,CAMPBELL REITH,IT74542-SERVICE-Radiological Survey and Stockpile Testing,13/12/2017,7808.26,S,77101500,Environmental auditing
Communities and Local Government,Homes and Communities Agency,Economic Assets S&Sw Prog,South West,CAMPBELL REITH,IT70250-SERVICE-To oversee road repairs and services installa,15/12/2017,530.25,S,77101500,Environmental auditing
Communities and Local Government,Homes and Communities Agency,East And South East,East And South East,CAMPBELL REITH,IT73460-SERVICE-Planning permission,21/12/2017,76132.81,S,77101500,Environmental auditing
Communities and Local Government,Homes and Communities Agency,Capital Grant to RPs,South West,CAMPBELL REITH,IT73846-SERVICE-Wealstun,22/12/2017,12977,S,77101500,Environmental auditing
Communities and Local Government,Homes and Communities Agency,South West Of Eng-Glouc-Oxford,South West,CARTER JONAS,IT73756-SERVICE-Lead Consultant for bringing forward the Chal,12/12/2017,20196.18,L,80131800,Real estate management services
Communities and Local Government,Homes and Communities Agency,South West Of Eng-Glouc-Oxford,South West,CARTER JONAS,IT73756-SERVICE-Lead Consultant for bringing forward the Chal,18/12/2017,26400,L,80131800,Real estate management services
Communities and Local Government,Homes and Communities Agency,Capital Grant to RPs,South West,CORONA ENERGY,DAP2348-SERVICE-Gas supply to Wakefield Magistrates Court. Cu,14/12/2017,824.58,L,83101600,Oil and gas utilities
Communities and Local Government,Homes and Communities Agency,Capital Grant to RPs,South West,CORONA ENERGY,DAP2334-SERVICE-VAT @ 20%,14/12/2017,464.25,L,83101600,Oil and gas utilities
Communities and Local Government,Homes and Communities Agency,Public Land and Regeneration,Programmes,CORONA ENERGY,DAM3460-SERVICE-ST JAMES HOSPITAL     Gas bills.,14/12/2017,817.12,L,83101600,Oil and gas utilities
Communities and Local Government,Homes and Communities Agency,Comms Transition Budget,Finance & Corporate Services,CORONA ENERGY,DOF0370-SERVICE-Gas for Arpley Hse meter 8853893504,14/12/2017,487.81,L,83101600,Oil and gas utilities
Communities and Local Government,Homes and Communities Agency,East And South East,East And South East,CORONA ENERGY,DAP3072-SERVICE-Brentwood Blood Centre - Gas supply call off,14/12/2017,465,L,83101600,Oil and gas utilities
Communities and Local Government,Homes and Communities Agency,Spatial Intelligence Telford,Programmes,CORONA ENERGY,"DAP1262-SERVICE-Electric supply at Stourbridge County Court,",18/12/2017,300.06,L,83101600,Oil and gas utilities
Communities and Local Government,Homes and Communities Agency,Economic Assets Ne-Y Prog,North East And Yorkshire,CORONA ENERGY,DAM1966-SERVICE-GAS BILL FOR QUEENS MEADOW 20% VAT,21/12/2017,260.07,L,83101600,Oil and gas utilities
Communities and Local Government,Homes and Communities Agency,Economic Assets Ne-Y Prog,North East And Yorkshire,CORONA ENERGY,DAM1966-SERVICE-GAS BILL FOR QUEENS MEADOW 20% VAT,21/12/2017,260.97,L,83101600,Oil and gas utilities
Communities and Local Government,Homes and Communities Agency,Economic Assets Ne-Y Prog,North East And Yorkshire,CORONA ENERGY,DAM1966-SERVICE-GAS BILL FOR QUEENS MEADOW 20% VAT,21/12/2017,260.97,L,83101600,Oil and gas utilities
Communities and Local Government,Homes and Communities Agency,Capital Grant to RPs,South West,CORONA ENERGY,DAP2441-SERVICE-Supply of gas to Oldham Magistrates Court.,21/12/2017,780.11,L,83101600,Oil and gas utilities
Communities and Local Government,Homes and Communities Agency,Communications Allerton,Executive Office,THE COPYRIGHT LICENSING AGENCY,DAP3397-SERVICE-Annual CLA licence renewal,20/12/2017,13542.9,L,93151517,License or registration fee�
Communities and Local Government,Homes and Communities Agency,Comms Transition Budget,Finance & Corporate Services,CLAYTON HOTELS,"DAP3256-SERVICE-14 Car Parking Permits at Clayton Hotel, Leed",07/12/2017,4410,L,80131500,Lease and rental of property or building
Communities and Local Government,Homes and Communities Agency,Ftbi South East,East And South East,CAMBRIDGE ARCHAEOLOGY UNIT,DAP0684-SERVICE-Part 2 (of several): Archaeology mitigation w,19/12/2017,117242.64,L,80131800,Real estate management services
Communities and Local Government,Homes and Communities Agency,Ftbi South East,East And South East,CAMBRIDGE ARCHAEOLOGY UNIT,DAP0684-SERVICE-Part 2 (of several): Archaeology mitigation w,20/12/2017,89376.48,L,80131800,Real estate management services
Communities and Local Government,Homes and Communities Agency,Economic Assets Hub Transition,Economic Assets Hub,CHIPRO DEVELOPMENTS,STF - Chipro Developments - L D - Dec 17,19/12/2017,259729,,N/A,Loans
Communities and Local Government,Homes and Communities Agency,Budget 2013 - Midlands Wm,Midlands,COLLIERS INTERNATIONAL PROPERTY CONSULTANTS,DAP3415-SERVICE-Warwick Bar - Property Management Fee for the,20/12/2017,5135,S,80131800,Real estate management services
Communities and Local Government,Homes and Communities Agency,Area Dir Mids Worcs-Shrop-Here,Midlands,COLLIERS INTERNATIONAL PROPERTY CONSULTANTS,DAP3441-SERVICE-Warwick Bar - Property Management Fee for the,21/12/2017,5135,S,80131800,Real estate management services
Communities and Local Government,Homes and Communities Agency,Economic Assets S&Sw Prog,South West,CLARKE WILLMOTT LLP,DAP0100-SERVICE-Legal fees for the disposal of BBSP,06/12/2017,5396.44,M,80121600,Business law services
Communities and Local Government,Homes and Communities Agency,Facilities Allerton Bywater,Finance & Corporate Services,CHARTERED INSTITUTE OF HOUSING,DAP3455-SERVICE-Professional Subscriptions - Chartered Instit,22/12/2017,298,L,94101600,Professional associations
Communities and Local Government,Homes and Communities Agency,Facilities Allerton Bywater,Finance & Corporate Services,CHARTERED INSTITUTE OF HOUSING,DAP3455-SERVICE-Professional Subscriptions - Chartered Instit,22/12/2017,298,L,94101600,Professional associations
Communities and Local Government,Homes and Communities Agency,Facilities Allerton Bywater,Finance & Corporate Services,CHARTERED INSTITUTE OF HOUSING,DAP3455-SERVICE-Professional Subscriptions - Chartered Instit,22/12/2017,298,L,94101600,Professional associations
Communities and Local Government,Homes and Communities Agency,Facilities Allerton Bywater,Finance & Corporate Services,CHARTERED INSTITUTE OF HOUSING,DAP3455-SERVICE-Professional Subscriptions - Chartered Instit,22/12/2017,298,L,94101600,Professional associations
Communities and Local Government,Homes and Communities Agency,Facilities Allerton Bywater,Finance & Corporate Services,CHARTERED INSTITUTE OF HOUSING,DAP3455-SERVICE-Professional Subscriptions - Chartered Instit,22/12/2017,298,L,94101600,Professional associations
Communities and Local Government,Homes and Communities Agency,Facilities Allerton Bywater,Finance & Corporate Services,CHARTERED INSTITUTE OF HOUSING,DAP3455-SERVICE-Professional Subscriptions - Chartered Instit,22/12/2017,298,L,94101600,Professional associations
Communities and Local Government,Homes and Communities Agency,Facilities Allerton Bywater,Finance & Corporate Services,CHARTERED INSTITUTE OF HOUSING,DAP3455-SERVICE-Professional Subscriptions - Chartered Instit,22/12/2017,298,L,94101600,Professional associations
Communities and Local Government,Homes and Communities Agency,Facilities Allerton Bywater,Finance & Corporate Services,CHARTERED INSTITUTE OF HOUSING,DAP3455-SERVICE-Professional Subscriptions - Chartered Instit,22/12/2017,298,L,94101600,Professional associations
Communities and Local Government,Homes and Communities Agency,Facilities Allerton Bywater,Finance & Corporate Services,CHARTERED INSTITUTE OF HOUSING,DAP3455-SERVICE-Professional Subscriptions - Chartered Instit,22/12/2017,298,L,94101600,Professional associations
Communities and Local Government,Homes and Communities Agency,Facilities Allerton Bywater,Finance & Corporate Services,CHARTERED INSTITUTE OF HOUSING,DAP3455-SERVICE-Professional Subscriptions - Chartered Instit,22/12/2017,298,L,94101600,Professional associations
Communities and Local Government,Homes and Communities Agency,Facilities Allerton Bywater,Finance & Corporate Services,CHARTERED INSTITUTE OF HOUSING,DAP3455-SERVICE-Professional Subscriptions - Chartered Instit,22/12/2017,298,L,94101600,Professional associations
Communities and Local Government,Homes and Communities Agency,Facilities Allerton Bywater,Finance & Corporate Services,CHARTERED INSTITUTE OF HOUSING,DAP3455-SERVICE-Professional Subscriptions - Chartered Instit,22/12/2017,298,L,94101600,Professional associations
Communities and Local Government,Homes and Communities Agency,Facilities Allerton Bywater,Finance & Corporate Services,CHARTERED INSTITUTE OF HOUSING,DAP3455-SERVICE-Professional Subscriptions - Chartered Instit,22/12/2017,298,L,94101600,Professional associations
Communities and Local Government,Homes and Communities Agency,Facilities Allerton Bywater,Finance & Corporate Services,CHARTERED INSTITUTE OF HOUSING,DAP3455-SERVICE-Professional Subscriptions - Chartered Instit,22/12/2017,298,L,94101600,Professional associations
Communities and Local Government,Homes and Communities Agency,Facilities Allerton Bywater,Finance & Corporate Services,CHARTERED INSTITUTE OF HOUSING,DAP3455-SERVICE-Professional Subscriptions - Chartered Instit,22/12/2017,298,L,94101600,Professional associations
Communities and Local Government,Homes and Communities Agency,Facilities Allerton Bywater,Finance & Corporate Services,CHARTERED INSTITUTE OF HOUSING,DAP3455-SERVICE-Professional Subscriptions - Chartered Instit,22/12/2017,298,L,94101600,Professional associations
Communities and Local Government,Homes and Communities Agency,Economic Assets Hub Transition,Economic Assets Hub,CLUBLIGHT DEVELOPMENTS LTD.,THBF STF-Bourton Mills-Dec17,21/12/2017,504024.88,,N/A,Loans
Communities and Local Government,Homes and Communities Agency,Economic Assets S&Sw Prog,South West,CONNELL CONSTRUCTION (SW) LTD,DAP1793-SERVICE-Southwell school - Site works following H & S,18/12/2017,1932,S,72101500,Building maintenance and repair services
Communities and Local Government,Homes and Communities Agency,Economic Assets S&Sw Prog,South West,CONNELL CONSTRUCTION (SW) LTD,DAP2500-SERVICE-Osprey Quay site Q - Reconfigure boundary fen,18/12/2017,4210,S,72101500,Building maintenance and repair services
Communities and Local Government,Homes and Communities Agency,Economic Assets S&Sw Prog,South West,CONNELL CONSTRUCTION (SW) LTD,DAP2553-SERVICE-Osprey Quay - Fencing of area adjacent to RYA,18/12/2017,1780,S,72101500,Building maintenance and repair services
Communities and Local Government,Homes and Communities Agency,Economic Assets S&Sw Prog,South West,C.M.A. (NEMESIS) LTD,DAP1305-SERVICE-Waterfront Pest Control Services - Daedalus,14/12/2017,285,S,72102100,Pest control
Communities and Local Government,Homes and Communities Agency,Programme Management Mh,Finance & Corporate Services,CONCUR HOLDINGS (NETHERLANDS) B.V,DAP3199-SERVICE-Quarterly fee Nov - Jan 18,01/12/2017,14140.59,L,43231500,Business function specific software
Communities and Local Government,Homes and Communities Agency,Economic Assets S&Sw Prog,South West,CLAPHAMS LANDSCAPE SERVICES LTD,DAP2968-SERVICE-Ashton Gate Bristol - Vegetation and fly tip,11/12/2017,1500,S,72101500,Building maintenance and repair services
Communities and Local Government,Homes and Communities Agency,Economic Assets S&Sw Prog,South West,CLAPHAMS LANDSCAPE SERVICES LTD,"DAP1088-SERVICE-Gateway North Swindon, landscape maintenance",14/12/2017,875,S,72101500,Building maintenance and repair services
Communities and Local Government,Homes and Communities Agency,Economic Assets Hub Transition,Economic Assets Hub,CLL (RUSKIN ROAD) LTD,STF - Bush Nurseries - Ln Drdn - Dec 17,21/12/2017,112243,,N/A,Loans
Communities and Local Government,Homes and Communities Agency,Economic Assets S&Sw Prog,South West,CONCEPT BUILDING SERVICES  (SOUTHERN) LTD,DAP3101-SERVICE-Drummond Park - Opening up assistance and sit,06/12/2017,9000,M,72101500,Building maintenance and repair services
Communities and Local Government,Homes and Communities Agency,Economic Assets S&Sw Prog,South West,CONCEPT BUILDING SERVICES  (SOUTHERN) LTD,DAP3100-SERVICE-Daedalus - PM support on Waterfront delivery,06/12/2017,5165,M,72101500,Building maintenance and repair services
Communities and Local Government,Homes and Communities Agency,Economic Assets S&Sw Prog,South West,CONCEPT BUILDING SERVICES  (SOUTHERN) LTD,DAP3102-SERVICE-Colt New Lane Havant - Opening up assistance,06/12/2017,12175,M,72101500,Building maintenance and repair services
Communities and Local Government,Homes and Communities Agency,Economic Assets S&Sw Prog,South West,CONCEPT BUILDING SERVICES  (SOUTHERN) LTD,"DAP2924-SERVICE-Church Path, East Cowes - drain repairs",18/12/2017,26038.13,M,72101500,Building maintenance and repair services
Communities and Local Government,Homes and Communities Agency,Estate Management Yorks,North West,K D CHILDS STONEWORK DEVELOPMENTS,DAP3159-SERVICE-Emergency Health and Safety Works - Corby TA,20/12/2017,4950,S,72101500,Building maintenance and repair services
Communities and Local Government,Homes and Communities Agency,Capital Grant to RPs,South West,C-ELECT ASSOCIATES LIMITED,DAP3095-SERVICE-Isolation of lift to the lower ground floor,01/12/2017,564,S,72101500,Building maintenance and repair services
Communities and Local Government,Homes and Communities Agency,Capital Grant to RPs,South West,C-ELECT ASSOCIATES LIMITED,DAP3227-SERVICE-Boarding of window to the rear of grange foll,06/12/2017,442.02,S,72101500,Building maintenance and repair services
Communities and Local Government,Homes and Communities Agency,Spatial Intelligence Telford,Programmes,C-ELECT ASSOCIATES LIMITED,DAP2840-SERVICE-Eastbourne Magistrates Court -,19/12/2017,4617,S,72101500,Building maintenance and repair services
Communities and Local Government,Homes and Communities Agency,Capital Grant to RPs,South West,C-ELECT ASSOCIATES LIMITED,DAP3005-SERVICE-Servicing and weekly test of fire alarm and e,21/12/2017,1242.81,S,72101500,Building maintenance and repair services
Communities and Local Government,Homes and Communities Agency,East And South East,East And South East,CHURCH COMMISSIONERS,DAP3464-SERVICE-Paston Reserve Phase 1 payment to HCA,22/12/2017,158173.05,,N/A,Grant
Communities and Local Government,Homes and Communities Agency,Area Dir Mids Worcs-Shrop-Here,Midlands,CONTINENTAL LANDSCAPES - GREENHAND,DWM0823-SERVICE-Year 3 extension of NL430-2015-2018,13/12/2017,550.77,L,72101500,Building maintenance and repair services
Communities and Local Government,Homes and Communities Agency,Estate Management Yorks,North West,CONTINENTAL LANDSCAPES - GREENHAND,DAM3279-SERVICE-WARRINGTON     Warrington landscape maintenan,20/12/2017,786.55,L,72101500,Building maintenance and repair services
Communities and Local Government,Homes and Communities Agency,Economic Assets Nw Prog,North West,CONTINENTAL LANDSCAPES - GREENHAND,DAP3247-SERVICE-Wavertree,20/12/2017,277.73,L,72101500,Building maintenance and repair services
Communities and Local Government,Homes and Communities Agency,Economic Assets Nw Prog,North West,CONTINENTAL LANDSCAPES - GREENHAND,DAP3247-SERVICE-Hooton - Year 2 of the EAP.NW.012 contract,20/12/2017,360.08,L,72101500,Building maintenance and repair services
Communities and Local Government,Homes and Communities Agency,Economic Assets Nw Prog,North West,CONTINENTAL LANDSCAPES - GREENHAND,DAP3247-SERVICE-Innovation Park - Year 2 of the EAP.NW.012 co,20/12/2017,360.96,L,72101500,Building maintenance and repair services
Communities and Local Government,Homes and Communities Agency,Economic Assets Nw Prog,North West,CONTINENTAL LANDSCAPES - GREENHAND,DAP3247-SERVICE-Croft - Year 2 of the EAP.NW.012 contract,20/12/2017,390.96,L,72101500,Building maintenance and repair services
Communities and Local Government,Homes and Communities Agency,Economic Assets Nw Prog,North West,CONTINENTAL LANDSCAPES - GREENHAND,DAP3247-SERVICE-Boulevard - Year 2 of the EAP.NW.012 contract,20/12/2017,685.34,L,72101500,Building maintenance and repair services
Communities and Local Government,Homes and Communities Agency,Economic Assets Nw Prog,North West,CB RICHARD ELLIS,IT73879-SERVICE-Boulevard Service Charge Audit 2016 and 2017 ,04/12/2017,3000,L,80131800,Real estate management services
Communities and Local Government,Homes and Communities Agency,Economic Assets S&Sw Prog,South West,CB RICHARD ELLIS,IT74781-SERVICE-Tripos rates appeal works,14/12/2017,10130,L,80131800,Real estate management services
Communities and Local Government,Homes and Communities Agency,Economic Assets Ne-Y Prog,North East And Yorkshire,J W CROWTHER & SON LTD,"DAP2826-SERVICE-Gritting, Initial 20 visits, 90.00 per visit",20/12/2017,990,S,72101500,Building maintenance and repair services
Communities and Local Government,Homes and Communities Agency,East And South East,East And South East,CREATIVE CONCERN LTD,DAP1339-SERVICE-Communications Support,08/12/2017,1400,S,82101500,Print advertising
Communities and Local Government,Homes and Communities Agency,Budget 2013 - Midlands Wm,Midlands,THE CROWN ESTATE,DAP3202-SERVICE-Trinity Wharf - Rent payable to Crown Estate,01/12/2017,1815,G,80131500,Lease and rental of property or building
Communities and Local Government,Homes and Communities Agency,Area Dir Mids Worcs-Shrop-Here,Midlands,CANNOCK CHASE COUNCIL,PLANNING APP FEE WALK MILL LANE,06/12/2017,10447,G,80131500,Lease and rental of property or building
Communities and Local Government,Homes and Communities Agency,Spatial Intelligence Telford,Programmes,CHANNEL ENGINEERING LTD,DAP2836-SERVICE-Call off order - Eastbourne Magistrates Court,04/12/2017,3435,S,72101500,Building maintenance and repair services
Communities and Local Government,Homes and Communities Agency,Spatial Intelligence Telford,Programmes,CHANNEL ENGINEERING LTD,DAP2834-SERVICE-Eastbourne Magistrates Court:,04/12/2017,2240,S,72101500,Building maintenance and repair services
Communities and Local Government,Homes and Communities Agency,South East,East And South East,CHANNEL ENGINEERING LTD,DAM3296-SERVICE-Materials,12/12/2017,898,S,72101500,Building maintenance and repair services
Communities and Local Government,Homes and Communities Agency,East And South East,East And South East,CHANNEL ENGINEERING LTD,DAP3353-SERVICE-Boarding up gatehouse building,19/12/2017,705,S,72101500,Building maintenance and repair services
Communities and Local Government,Homes and Communities Agency,East And South East,East And South East,CHANNEL ENGINEERING LTD,DAP1762-SERVICE-Call off order - Northfleet Embankment,19/12/2017,580,S,72101500,Building maintenance and repair services
Communities and Local Government,Homes and Communities Agency,East And South East,East And South East,CHANNEL ENGINEERING LTD,DAP2845-SERVICE-Queenborough and Rushenden -,19/12/2017,2250,S,72101500,Building maintenance and repair services
Communities and Local Government,Homes and Communities Agency,East And South East,East And South East,CHANNEL ENGINEERING LTD,DAP2845-SERVICE-Queenborough and Rushenden - Materials,19/12/2017,2501,S,72101500,Building maintenance and repair services
Communities and Local Government,Homes and Communities Agency,Comms Transition Budget,Finance & Corporate Services,CAM-TEC SYSTEMS LIMITED,DAP3137-SERVICE-Card holders for all staff ID/passes (800 bla,06/12/2017,391,S,72102900,Facility maintenance and repair services
Communities and Local Government,Homes and Communities Agency,Public Land and Regeneration,Programmes,CARTWRIGHT LANDSCAPES,DAP0448-SERVICE-Wrest Park - LM&C Works 2017-2018 as per Cont,07/12/2017,557.42,S,72101500,Building maintenance and repair services
Communities and Local Government,Homes and Communities Agency,Budget 2013 - Midlands Wm,Midlands,CARTWRIGHT LANDSCAPES,DAP1997-SERVICE-Upton Landscape Maintenance works August 17 -,07/12/2017,370,S,72101500,Building maintenance and repair services
Communities and Local Government,Homes and Communities Agency,Budget 2013 - Midlands Wm,Midlands,CARTWRIGHT LANDSCAPES,DAP2001-SERVICE-Upton - St Crispins Maintenance August 17 - N,07/12/2017,781.25,S,72101500,Building maintenance and repair services
Communities and Local Government,Homes and Communities Agency,Budget 2013 - Midlands Wm,Midlands,CARTWRIGHT LANDSCAPES,DAP3217-SERVICE-Upton - to clear debris of burnt out vehicle,07/12/2017,375,S,72101500,Building maintenance and repair services
Communities and Local Government,Homes and Communities Agency,Estate Management Yorks,North West,CARTWRIGHT LANDSCAPES,DAP2823-SERVICE-Tattenhoe Park - Long grass cut to 150mm and,12/12/2017,4300,S,72101500,Building maintenance and repair services
Communities and Local Government,Homes and Communities Agency,Capital Grant to RPs,South West,CARTWRIGHT LANDSCAPES,DAP3445-SERVICE-To clear scrub vegetation from the waterbody,21/12/2017,250,S,72101500,Building maintenance and repair services
Communities and Local Government,Homes and Communities Agency,Economic Assets Ne-Y Prog,North East And Yorkshire,ENGIE FM LIMITED,"DAP3218-SERVICE-Works to units at Enterprise Court, Hartlepoo",05/12/2017,832.43,L,72102900,Facility maintenance and repair services
Communities and Local Government,Homes and Communities Agency,Comms Transition Budget,Finance & Corporate Services,ENGIE FM LIMITED,DAP0338-SERVICE-Tenant proportion,19/12/2017,950.85,L,72102900,Facility maintenance and repair services
Communities and Local Government,Homes and Communities Agency,Comms Transition Budget,Finance & Corporate Services,ENGIE FM LIMITED,"DAP0338-SERVICE-Electrical, Mechanical and Public Health",19/12/2017,2306.61,L,72102900,Facility maintenance and repair services
Communities and Local Government,Homes and Communities Agency,Comms Transition Budget,Finance & Corporate Services,ENGIE FM LIMITED,DAP0340-SERVICE-BIS/SFA tenant proportion,19/12/2017,926.93,L,72102900,Facility maintenance and repair services
Communities and Local Government,Homes and Communities Agency,Comms Transition Budget,Finance & Corporate Services,ENGIE FM LIMITED,"DAP0340-SERVICE-Electrical, Mechanical and Public Health Plan",19/12/2017,2009.19,L,72102900,Facility maintenance and repair services
Communities and Local Government,Homes and Communities Agency,It - Rda Transition,Finance & Corporate Services,OASIS UK NORTH LIMITED,DGC1157-SERVICE-Media transportaion services and secure stora,12/12/2017,1135.32,L,81111200,Data services
Communities and Local Government,Homes and Communities Agency,Land And Regeneration Mh,Programmes,DRIVERS JONAS DELOITTE,IT74707-SERVICE-HIF: Assessment Support,11/12/2017,90068.21,L,80131800,Real estate management services
Communities and Local Government,Homes and Communities Agency,Communications Allerton,Executive Office,GORKANA GROUP LTD,DBP0543-SERVICE-Gorkana press cuttings 2017/18,06/12/2017,763.95,L,82101500,Print advertising
Communities and Local Government,Homes and Communities Agency,Communications Allerton,Executive Office,GORKANA GROUP LTD,DAP3254-SERVICE-Annual Gorkana media database subscription,06/12/2017,7982.5,L,82101500,Print advertising
Communities and Local Government,Homes and Communities Agency,Public Land and Regeneration,Programmes,CUSHMAN & WAKEFIELD DEBENHAM TIE LEUNG,IT72924-SERVICE-Vacant Property inspections at Skegness,01/12/2017,1050,L,80131800,Real estate management services
Communities and Local Government,Homes and Communities Agency,East And Se Essex And Kent,East And South East,CUSHMAN & WAKEFIELD DEBENHAM TIE LEUNG,IT73174-SERVICE-Dartford Mag Court managing Agent,04/12/2017,1000,L,80131800,Real estate management services
Communities and Local Government,Homes and Communities Agency,Estate Management Yorks,North West,CUSHMAN & WAKEFIELD DEBENHAM TIE LEUNG,IT73824-SERVICE-Helpdesk Provision,04/12/2017,4000,L,80131800,Real estate management services
Communities and Local Government,Homes and Communities Agency,East And Se And Surr And Suss,East And South East,CUSHMAN & WAKEFIELD DEBENHAM TIE LEUNG,IT70681-SERVICE-Tinsley lane,04/12/2017,1000,L,80131800,Real estate management services
Communities and Local Government,Homes and Communities Agency,Spatial Intelligence Telford,Programmes,CUSHMAN & WAKEFIELD DEBENHAM TIE LEUNG,IT74294-SERVICE-AC Local Authority DVA - Site Ref No AC101-01,05/12/2017,2188,L,80131800,Real estate management services
Communities and Local Government,Homes and Communities Agency,Spatial Intelligence Telford,Programmes,CUSHMAN & WAKEFIELD DEBENHAM TIE LEUNG,IT74288-SERVICE-AC Local Authority DVA - Site Ref No AC094-02,05/12/2017,2188,L,80131800,Real estate management services
Communities and Local Government,Homes and Communities Agency,Spatial Intelligence Telford,Programmes,CUSHMAN & WAKEFIELD DEBENHAM TIE LEUNG,IT74286-SERVICE-AC Local Authority DVA - Site Ref No AC061-05,05/12/2017,2188,L,80131800,Real estate management services
Communities and Local Government,Homes and Communities Agency,Spatial Intelligence Telford,Programmes,CUSHMAN & WAKEFIELD DEBENHAM TIE LEUNG,IT74285-SERVICE-AC Local Authority DVA - Site Ref No AC061-04,05/12/2017,2188,L,80131800,Real estate management services
Communities and Local Government,Homes and Communities Agency,Land And Regeneration Mh,Programmes,CUSHMAN & WAKEFIELD DEBENHAM TIE LEUNG,IT72660-SERVICE-Petersfield,11/12/2017,800,L,80131800,Real estate management services
Communities and Local Government,Homes and Communities Agency,Area Dir Mids Worcs-Shrop-Here,Midlands,CUSHMAN & WAKEFIELD DEBENHAM TIE LEUNG,IT74011-SERVICE-Lodgewood Farm,11/12/2017,3000,L,80131800,Real estate management services
Communities and Local Government,Homes and Communities Agency,Land And Regeneration Mh,Programmes,CUSHMAN & WAKEFIELD DEBENHAM TIE LEUNG,IT72111-SERVICE-The Forge,11/12/2017,700,L,80131800,Real estate management services
Communities and Local Government,Homes and Communities Agency,Public Land and Regeneration,Programmes,CUSHMAN & WAKEFIELD DEBENHAM TIE LEUNG,IT73677-SERVICE-Corby Magistrates Court - MoJ,12/12/2017,2000,L,80131800,Real estate management services
Communities and Local Government,Homes and Communities Agency,Public Land and Regeneration,Programmes,CUSHMAN & WAKEFIELD DEBENHAM TIE LEUNG,IT73677-SERVICE-Corby Magistrates Court - MoJ,12/12/2017,1000,L,80131800,Real estate management services
Communities and Local Government,Homes and Communities Agency,Land And Regeneration Mh,Programmes,CUSHMAN & WAKEFIELD DEBENHAM TIE LEUNG,IT73781-SERVICE-Monitoring Surveyor Appointment for THBF deve,12/12/2017,2000,L,80131800,Real estate management services
Communities and Local Government,Homes and Communities Agency,Public Land and Regeneration,Programmes,CUSHMAN & WAKEFIELD DEBENHAM TIE LEUNG,IT73677-SERVICE-Corby Magistrates Court - MoJ,12/12/2017,1000,L,80131800,Real estate management services
Communities and Local Government,Homes and Communities Agency,Land And Regeneration Mh,Programmes,CUSHMAN & WAKEFIELD DEBENHAM TIE LEUNG,IT73781-SERVICE-Monitoring Surveyor Appointment for THBF deve,12/12/2017,700,L,80131800,Real estate management services
Communities and Local Government,Homes and Communities Agency,Land And Regeneration Mh,Programmes,CUSHMAN & WAKEFIELD DEBENHAM TIE LEUNG,IT74356-SERVICE-14-16 Ship Hill,12/12/2017,2250,L,80131800,Real estate management services
Communities and Local Government,Homes and Communities Agency,East And Se Essex And Kent,East And South East,CUSHMAN & WAKEFIELD DEBENHAM TIE LEUNG,IT70672-SERVICE-Officers Mess Marketing and ongoing monitorin,12/12/2017,20000,L,80131800,Real estate management services
Communities and Local Government,Homes and Communities Agency,Land And Regeneration Mh,Programmes,CUSHMAN & WAKEFIELD DEBENHAM TIE LEUNG,IT72179-SERVICE-Project Monitoring Surveyor Services - The Or,13/12/2017,800,L,80131800,Real estate management services
Communities and Local Government,Homes and Communities Agency,Land And Regeneration Mh,Programmes,CUSHMAN & WAKEFIELD DEBENHAM TIE LEUNG,IT72307-SERVICE-MS Reporting Services for THBF,13/12/2017,800,L,80131800,Real estate management services
Communities and Local Government,Homes and Communities Agency,Economic Assets Ne-Y Prog,North East And Yorkshire,CUSHMAN & WAKEFIELD DEBENHAM TIE LEUNG,IT74110-SERVICE-Valuation Rydberg Meadowfield,13/12/2017,1000,L,80131800,Real estate management services
Communities and Local Government,Homes and Communities Agency,Land And Regeneration Mh,Programmes,CUSHMAN & WAKEFIELD DEBENHAM TIE LEUNG,IT72179-SERVICE-Project Monitoring Surveyor Services - The Or,13/12/2017,700,L,80131800,Real estate management services
Communities and Local Government,Homes and Communities Agency,Land And Regeneration Mh,Programmes,CUSHMAN & WAKEFIELD DEBENHAM TIE LEUNG,IT72306-SERVICE-MS Reporting Services for THBF,13/12/2017,800,L,80131800,Real estate management services
Communities and Local Government,Homes and Communities Agency,East And South East,East And South East,CUSHMAN & WAKEFIELD DEBENHAM TIE LEUNG,IT74353-SERVICE-Dover Mag Court Managing Agent,13/12/2017,2500,L,80131800,Real estate management services
Communities and Local Government,Homes and Communities Agency,Area Dir Mids Worcs-Shrop-Here,Midlands,CUSHMAN & WAKEFIELD DEBENHAM TIE LEUNG,IT72754-SERVICE-Luddington,15/12/2017,3640,L,80131800,Real estate management services
Communities and Local Government,Homes and Communities Agency,Budget 2013 - Midlands Wm,Midlands,CUSHMAN & WAKEFIELD DEBENHAM TIE LEUNG,IT74734-SERVICE-Mile Bank - viabilitytesting and market input,15/12/2017,6500,L,80131800,Real estate management services
Communities and Local Government,Homes and Communities Agency,Area Dir Mids Worcs-Shrop-Here,Midlands,CUSHMAN & WAKEFIELD DEBENHAM TIE LEUNG,IT72754-SERVICE-Luddington,15/12/2017,11531,L,80131800,Real estate management services
Communities and Local Government,Homes and Communities Agency,Economic Assets Ne-Y Prog,North East And Yorkshire,CUSHMAN & WAKEFIELD DEBENHAM TIE LEUNG,IT74874-SERVICE-Valuation of land at Simonside Industrial Est,19/12/2017,1250,,N/A,Loans
Communities and Local Government,Homes and Communities Agency,Budget 2013 - Midlands Wm,Midlands,CUSHMAN & WAKEFIELD DEBENHAM TIE LEUNG,IT74814-SERVICE-Goscote Lane,20/12/2017,2500,,N/A,Loans
Communities and Local Government,Homes and Communities Agency,Economic Assets S&Sw Prog,South West,CUSHMAN & WAKEFIELD DEBENHAM TIE LEUNG,IT73588-SERVICE-Island Technology site - managing agency 2017,21/12/2017,2400,,N/A,Loans
Communities and Local Government,Homes and Communities Agency,Budget 2013 - Midlands Wm,Midlands,CUSHMAN & WAKEFIELD DEBENHAM TIE LEUNG,IT74640-SERVICE-Stretton Hall - Land Option Heads of Terms ,21/12/2017,3000,,N/A,Loans
Communities and Local Government,Homes and Communities Agency,Economic Assets Ne-Y Prog,North East And Yorkshire,DEBT SQUARED GROUP LIMITED,DAP3214-SERVICE-Eviciton of Travellers to void land at Queens,04/12/2017,1380,M,72101500,Building maintenance and repair services
Communities and Local Government,Homes and Communities Agency,Economic Assets Hub Transition,Economic Assets Hub,DEEBLE VENTURES TWO LIMITED,STF - Deeble Ventures _ Ln Drdn - Dec 17,14/12/2017,576891,,N/A,Loans
Communities and Local Government,Homes and Communities Agency,Economic Assets Hub Transition,Economic Assets Hub,DWF LLP,"TS00069-SERVICE-27562 - RJ Walker (Newquay) Ltd, Trevemper",04/12/2017,2424.5,L,80121600,Business law services
Communities and Local Government,Homes and Communities Agency,Area Dir Mids Worcs-Shrop-Here,Midlands,DWF LLP,IS12278-SERVICE-Land at Chelmsley Lane and Coleshill Road,05/12/2017,2544.04,L,80121600,Business law services
Communities and Local Government,Homes and Communities Agency,Ad Manchester Trafford,North West,DWF LLP,IS11301-SERVICE-Bickershaw Colliery - Plank Lane,05/12/2017,250,L,80121600,Business law services
Communities and Local Government,Homes and Communities Agency,Budget 2013 - Midlands Wm,Midlands,DWF LLP,IS10823-SERVICE-James Bridge - (EZ Site),07/12/2017,4663.5,L,80121600,Business law services
Communities and Local Government,Homes and Communities Agency,Economic Assets Ne-Y Prog,North East And Yorkshire,DWF LLP,IS12237-SERVICE-Land North of Stella House,13/12/2017,1540.95,L,80121600,Business law services
Communities and Local Government,Homes and Communities Agency,Ne-Y North East Washington,North East And Yorkshire,DWF LLP,IS12934-SERVICE-Hansteen Site,13/12/2017,750,L,80121600,Business law services
Communities and Local Government,Homes and Communities Agency,Ad Manchester Trafford,North West,DWF LLP,IS11347-SERVICE-Bickershaw South Scheme,14/12/2017,7920.75,L,80121600,Business law services
Communities and Local Government,Homes and Communities Agency,Ne-Y North East Washington,North East And Yorkshire,DWF LLP,IS11984-SERVICE-North Shore - Proposed New Hotel,19/12/2017,1140,L,80121600,Business law services
Communities and Local Government,Homes and Communities Agency,Ne-Yh Sheffield And Humb Ne-Y,North East And Yorkshire,DWF LLP,IS12442-SERVICE-Plot 8,22/12/2017,5073.95,L,80121600,Business law services
Communities and Local Government,Homes and Communities Agency,Economic Assets Ne-Y Prog,North East And Yorkshire,DWF LLP,IS13151-SERVICE-Goole36,22/12/2017,2400,L,80121600,Business law services
Communities and Local Government,Homes and Communities Agency,Comms Transition Budget,Finance & Corporate Services,DEAN TAXI LIMITED,DAP1916-SERVICE-Taxi Services to HCA Gateshead -12 month peri,07/12/2017,453.6,S,78111800,Passenger road transportation
Communities and Local Government,Homes and Communities Agency,Capital Grant to RPs,South West,DATARA MANAGEMENT SOLUTIONS LIMITED,DAP3075-SERVICE-Specialist Advice regarding site management f,11/12/2017,1612,S,80131800,Real estate management services
Communities and Local Government,Homes and Communities Agency,It - Rda Transition,Finance & Corporate Services,THUS LTD,DGC0538-SERVICE-Broadband & bridge link Gat/War,01/12/2017,262.2,L,81112100,Internet services
Communities and Local Government,Homes and Communities Agency,Economic Assets Ne-Y Prog,North East And Yorkshire,DWW CONTRACTING SERVICES LTD,"DAP3151-SERVICE-Burt Street Units, Blyth Quayside - Unit 3 Bu",19/12/2017,250,S,72101500,Building maintenance and repair services
Communities and Local Government,Homes and Communities Agency,It - Rda Transition,Finance & Corporate Services,DEPOEL MANAGED SERVICES LTD,DAP2384-SERVICE- Technical Architect. For 120,04/12/2017,2844.98,L,80111600,Temporary personnel services
Communities and Local Government,Homes and Communities Agency,It - Rda Transition,Finance & Corporate Services,DEPOEL MANAGED SERVICES LTD,DAP2390-SERVICE Business Analyst. For 120 days (s,04/12/2017,2019.67,L,80111600,Temporary personnel services
Communities and Local Government,Homes and Communities Agency,It - Rda Transition,Finance & Corporate Services,DEPOEL MANAGED SERVICES LTD,DAP0374-SERVICE - TMS .Net Developer,04/12/2017,2272.83,L,80111600,Temporary personnel services
Communities and Local Government,Homes and Communities Agency,It - Rda Transition,Finance & Corporate Services,DEPOEL MANAGED SERVICES LTD,DAP0385-SERVICE - IMS Test Analyst,04/12/2017,1955.06,L,80111600,Temporary personnel services
Communities and Local Government,Homes and Communities Agency,It - Rda Transition,Finance & Corporate Services,DEPOEL MANAGED SERVICES LTD,DAP0386-SERVICE TMS Test Analyst,04/12/2017,1955.06,L,80111600,Temporary personnel services
Communities and Local Government,Homes and Communities Agency,It - Rda Transition,Finance & Corporate Services,DEPOEL MANAGED SERVICES LTD,DAP2387-SERVICE - TMS .Net Developer. For 120 da,04/12/2017,2743.28,L,80111600,Temporary personnel services
Communities and Local Government,Homes and Communities Agency,It - Rda Transition,Finance & Corporate Services,DEPOEL MANAGED SERVICES LTD,DAP2388-SERVICE - IMS .Net Developer. For 120 da,04/12/2017,2514.39,L,80111600,Temporary personnel services
Communities and Local Government,Homes and Communities Agency,It - Rda Transition,Finance & Corporate Services,DEPOEL MANAGED SERVICES LTD,DAP2398-SERVICE - TMS .Net Developer. For 120 d,04/12/2017,2743.28,L,80111600,Temporary personnel services
Communities and Local Government,Homes and Communities Agency,It - Rda Transition,Finance & Corporate Services,DEPOEL MANAGED SERVICES LTD,DAP0995-SERVICE- Contract until 30/06/17,07/12/2017,625.04,L,80111600,Temporary personnel services
Communities and Local Government,Homes and Communities Agency,It - Rda Transition,Finance & Corporate Services,DEPOEL MANAGED SERVICES LTD,DAP0995-SERVICE-Contract until 30/06/17,07/12/2017,625.04,L,80111600,Temporary personnel services
Communities and Local Government,Homes and Communities Agency,It - Rda Transition,Finance & Corporate Services,DEPOEL MANAGED SERVICES LTD,DAP2390-SERVICE - Business Analyst. For 120 days (s,08/12/2017,2524.59,L,80111600,Temporary personnel services
Communities and Local Government,Homes and Communities Agency,It - Rda Transition,Finance & Corporate Services,DEPOEL MANAGED SERVICES LTD,DAP0374-SERVICE- TMS .Net Developer,08/12/2017,2272.83,L,80111600,Temporary personnel services
Communities and Local Government,Homes and Communities Agency,It - Rda Transition,Finance & Corporate Services,DEPOEL MANAGED SERVICES LTD,DAP0385-SERVICE - IMS Test Analyst,08/12/2017,1955.06,L,80111600,Temporary personnel services
Communities and Local Government,Homes and Communities Agency,It - Rda Transition,Finance & Corporate Services,DEPOEL MANAGED SERVICES LTD,DAP0386-SERVICE- TMS Test Analyst,08/12/2017,1955.06,L,80111600,Temporary personnel services
Communities and Local Government,Homes and Communities Agency,It - Rda Transition,Finance & Corporate Services,DEPOEL MANAGED SERVICES LTD,DAP2387-SERVICE - TMS .Net Developer. For 120 da,08/12/2017,2743.28,L,80111600,Temporary personnel services
Communities and Local Government,Homes and Communities Agency,It - Rda Transition,Finance & Corporate Services,DEPOEL MANAGED SERVICES LTD,DAP2388-SERVICE- IMS .Net Developer. For 120 da,08/12/2017,2514.39,L,80111600,Temporary personnel services
Communities and Local Government,Homes and Communities Agency,It - Rda Transition,Finance & Corporate Services,DEPOEL MANAGED SERVICES LTD,DAP2398-SERVICE - TMS .Net Developer. For 120 d,08/12/2017,2743.28,L,80111600,Temporary personnel services
Communities and Local Government,Homes and Communities Agency,It - Rda Transition,Finance & Corporate Services,DEPOEL MANAGED SERVICES LTD,DAP0995-SERVICE- Contract until 30/06/17,14/12/2017,625.04,L,80111600,Temporary personnel services
Communities and Local Government,Homes and Communities Agency,It - Rda Transition,Finance & Corporate Services,DEPOEL MANAGED SERVICES LTD,DAP2384-SERVICE - Technical Architect. For 120,18/12/2017,2844.98,L,80111600,Temporary personnel services
Communities and Local Government,Homes and Communities Agency,It - Rda Transition,Finance & Corporate Services,DEPOEL MANAGED SERVICES LTD,DAP2390-SERVICE - Business Analyst. For 120 days (s,18/12/2017,2524.59,L,80111600,Temporary personnel services
Communities and Local Government,Homes and Communities Agency,It - Rda Transition,Finance & Corporate Services,DEPOEL MANAGED SERVICES LTD,DAP0374-SERVICE- TMS .Net Developer,18/12/2017,1363.7,L,80111600,Temporary personnel services
Communities and Local Government,Homes and Communities Agency,It - Rda Transition,Finance & Corporate Services,DEPOEL MANAGED SERVICES LTD,DAP0385-SERVICE-- IMS Test Analyst,18/12/2017,1955.06,L,80111600,Temporary personnel services
Communities and Local Government,Homes and Communities Agency,It - Rda Transition,Finance & Corporate Services,DEPOEL MANAGED SERVICES LTD,DAP0386-SERVICE- TMS Test Analyst,18/12/2017,1955.06,L,80111600,Temporary personnel services
Communities and Local Government,Homes and Communities Agency,It - Rda Transition,Finance & Corporate Services,DEPOEL MANAGED SERVICES LTD,DAP2387-SERVICE- TMS .Net Developer. For 120 da,18/12/2017,2743.28,L,80111600,Temporary personnel services
Communities and Local Government,Homes and Communities Agency,It - Rda Transition,Finance & Corporate Services,DEPOEL MANAGED SERVICES LTD,DAP2388-SERVICE- IMS .Net Developer. For 120 da,18/12/2017,2514.39,L,80111600,Temporary personnel services
Communities and Local Government,Homes and Communities Agency,It - Rda Transition,Finance & Corporate Services,DEPOEL MANAGED SERVICES LTD,DAP2398-SERVICE- TMS .Net Developer. For 120 d,18/12/2017,3840.59,L,80111600,Temporary personnel services
Communities and Local Government,Homes and Communities Agency,It - Rda Transition,Finance & Corporate Services,DEPOEL MANAGED SERVICES LTD,DAP2384-SERVICE- Technical Architect. For 120,21/12/2017,2844.98,L,80111600,Temporary personnel services
Communities and Local Government,Homes and Communities Agency,It - Rda Transition,Finance & Corporate Services,DEPOEL MANAGED SERVICES LTD,DAP2390-SERVICE- Business Analyst. For 120 days (s,21/12/2017,2524.59,L,80111600,Temporary personnel services
Communities and Local Government,Homes and Communities Agency,It - Rda Transition,Finance & Corporate Services,DEPOEL MANAGED SERVICES LTD,DAP0374-SERVICE - TMS .Net Developer,21/12/2017,2272.83,L,80111600,Temporary personnel services
Communities and Local Government,Homes and Communities Agency,It - Rda Transition,Finance & Corporate Services,DEPOEL MANAGED SERVICES LTD,DAP0385-SERVICE- IMS Test Analyst,21/12/2017,1955.06,L,80111600,Temporary personnel services
Communities and Local Government,Homes and Communities Agency,It - Rda Transition,Finance & Corporate Services,DEPOEL MANAGED SERVICES LTD,DAP0386-SERVICE- TMS Test Analyst,21/12/2017,1955.06,L,80111600,Temporary personnel services
Communities and Local Government,Homes and Communities Agency,It - Rda Transition,Finance & Corporate Services,DEPOEL MANAGED SERVICES LTD,DAP2387-SERVICE- TMS .Net Developer. For 120 da,21/12/2017,2743.28,L,80111600,Temporary personnel services
Communities and Local Government,Homes and Communities Agency,It - Rda Transition,Finance & Corporate Services,DEPOEL MANAGED SERVICES LTD,DAP2388-SERVICE - IMS .Net Developer. For 120 da,21/12/2017,2514.39,L,80111600,Temporary personnel services
Communities and Local Government,Homes and Communities Agency,It - Rda Transition,Finance & Corporate Services,DEPOEL MANAGED SERVICES LTD,DAP2398-SERVICE- TMS .Net Developer. For 120 d,21/12/2017,2743.28,L,80111600,Temporary personnel services
Communities and Local Government,Homes and Communities Agency,Economic Assets Hub Transition,Economic Assets Hub,DEVON PROPERTY DEVELOPMENTS LTD,THBF-Old Savoy Cinema-Dec17,04/12/2017,50000,,N/A,Loans
Communities and Local Government,Homes and Communities Agency,East And South East,East And South East,DARTFORD BOROUGH COUNCIL,DEE0016-SERVICE-Revenue repayment to Dartford Borough Council,21/12/2017,9042.41,G,N/A,Grant
Communities and Local Government,Homes and Communities Agency,Land And Regeneration Mh,Programmes,EVERSHEDS LLP,IS11870-SERVICE-Kickstart - Ice Plant Manchester,04/12/2017,5167.35,L,80121600,Business law services
Communities and Local Government,Homes and Communities Agency,Economic Assets Nw Prog,North West,EVERSHEDS LLP,IS08602-SERVICE-Rochdale,05/12/2017,10061.4,L,80121600,Business law services
Communities and Local Government,Homes and Communities Agency,Economic Assets Nw Prog,North West,EVERSHEDS LLP,IS08602-SERVICE-Rochdale,05/12/2017,2516.7,L,80121600,Business law services
Communities and Local Government,Homes and Communities Agency,It - Rda Transition,Finance & Corporate Services,DB GROUP LTD T/A ESUASIVE,DAP1067-SERVICE-Services to support the replacement of CRM v4,06/12/2017,5452.5,L,43231500,Business function specific software
Communities and Local Government,Homes and Communities Agency,It - Rda Transition,Finance & Corporate Services,DB GROUP LTD T/A ESUASIVE,DAP3081-SERVICE-Services to support the replacement of CRM v4,06/12/2017,4757.5,L,43231500,Business function specific software
Communities and Local Government,Homes and Communities Agency,Economic Assets S&Sw Prog,South West,ENQUIN ENVIRONMENTAL LIMITED,DAP1407-SERVICE-Northern United - attendance at site with bat,19/12/2017,407.5,S,80131800,Real estate management services
Communities and Local Government,Homes and Communities Agency,Economic Assets S&Sw Prog,South West,ENQUIN ENVIRONMENTAL LIMITED,DAP1407-SERVICE-Northern United - attendance at site with bat,21/12/2017,407.5,S,80131800,Real estate management services
Communities and Local Government,Homes and Communities Agency,East And Se And Surr And Suss,East And South East,AMEC FOSTER WHEELER & INFASTRUCTURE UK LTD,IT70356-SERVICE-Planning Instruction at Tinlsey Lane,06/12/2017,1000,L,80131800,Real estate management services
Communities and Local Government,Homes and Communities Agency,Area Dir Mids Worcs-Shrop-Here,Midlands,AMEC FOSTER WHEELER & INFASTRUCTURE UK LTD,IT70169-SERVICE-Lea Castle Outline Planning Application - Lea,07/12/2017,11000,L,80131800,Real estate management services
Communities and Local Government,Homes and Communities Agency,Budget 2013 - Midlands Wm,Midlands,AMEC FOSTER WHEELER & INFASTRUCTURE UK LTD,IT73870-SERVICE-Planning Application for Ecological Mitigatio,07/12/2017,4999,L,80131800,Real estate management services
Communities and Local Government,Homes and Communities Agency,East And South East,East And South East,AMEC FOSTER WHEELER & INFASTRUCTURE UK LTD,IT74432-SERVICE-Review of conditions,12/12/2017,1500,L,80131800,Real estate management services
Communities and Local Government,Homes and Communities Agency,Mk Development Control Mk,Midlands,AMEC FOSTER WHEELER & INFASTRUCTURE UK LTD,IT66398-SERVICE-Provision of advice and expertise for the Tat,12/12/2017,2693.75,L,80131800,Real estate management services
Communities and Local Government,Homes and Communities Agency,East And South East,East And South East,AMEC FOSTER WHEELER & INFASTRUCTURE UK LTD,IT73379-SERVICE-Towergate A,13/12/2017,5000,L,80131800,Real estate management services
Communities and Local Government,Homes and Communities Agency,Land And Regeneration Mh,Programmes,AMEC FOSTER WHEELER & INFASTRUCTURE UK LTD,IT73955-SERVICE-Ground Penetrating Radar,14/12/2017,5466.65,L,80131800,Real estate management services
Communities and Local Government,Homes and Communities Agency,Mk Development Control Mk,Midlands,AMEC FOSTER WHEELER & INFASTRUCTURE UK LTD,IT71394-SERVICE-CEMP Monitoring - Kingsmead South 1 & 2 Milto,14/12/2017,828.64,L,80131800,Real estate management services
Communities and Local Government,Homes and Communities Agency,Land And Regeneration Mh,Programmes,AMEC FOSTER WHEELER & INFASTRUCTURE UK LTD,IT73960-SERVICE-Engineering 3yr Advice,14/12/2017,4484.77,L,80131800,Real estate management services
Communities and Local Government,Homes and Communities Agency,Land And Regeneration Mh,Programmes,AMEC FOSTER WHEELER & INFASTRUCTURE UK LTD,IT73954-SERVICE-Foul Water CCTV Survey,14/12/2017,6320.36,L,80131800,Real estate management services
Communities and Local Government,Homes and Communities Agency,Mk Development Control Mk,Midlands,AMEC FOSTER WHEELER & INFASTRUCTURE UK LTD,IT73443-SERVICE-Utility Capacity and Condition Survey,18/12/2017,717.03,L,80131800,Real estate management services
Communities and Local Government,Homes and Communities Agency,East And Se Essex And Kent,East And South East,AMEC FOSTER WHEELER & INFASTRUCTURE UK LTD,IT72277-SERVICE-Planning Strategy Works - NCL Sites,22/12/2017,30597.06,L,80131800,Real estate management services
Communities and Local Government,Homes and Communities Agency,It - Rda Transition,Finance & Corporate Services,E-CYCLE LIMITED,DAP1723-SERVICE-Collection and disposal of IT equipment in ac,13/12/2017,777.33,S,76122300,Recycling services
Communities and Local Government,Homes and Communities Agency,Facilities Allerton Bywater,Finance & Corporate Services,EDENRED (UK GROUP) LTD,DAP1901-SERVICE-Instant Recognition Scheme,08/12/2017,1225,L,14111803,Vouchers
Communities and Local Government,Homes and Communities Agency,Economic Assets S&Sw Prog,South West,ECOVA,DAP2235-SERVICE-St James Hospital - Arrange removal of 1 elec,06/12/2017,1050,L,72101500,Building maintenance and repair services
Communities and Local Government,Homes and Communities Agency,Capital Grant to RPs,South West,ECOVA,DAP2234-SERVICE-Newbury Magistrates Court - Arrange removal o,06/12/2017,1050,L,72101500,Building maintenance and repair services
Communities and Local Government,Homes and Communities Agency,It - Rda Transition,Finance & Corporate Services,EE LTD,DAP0517-SERVICE-Monthly mobile bill x 3 ,11/12/2017,6258.82,L,83101600,Mobile communications services
Communities and Local Government,Homes and Communities Agency,It - Rda Transition,Finance & Corporate Services,EXACTIVE LIMITED,DAP3134-SERVICE-Espera Support Renewal 2017-2018,05/12/2017,1352.1,S,81112300,Computer hardware maintenance and support
Communities and Local Government,Homes and Communities Agency,Economic Assets Nw Prog,North West,ECOLOGICAL LAND MANGEMENT LTD,DAP2648-SERVICE-To undertake treatment of Japanese knotweed r,05/12/2017,590,S,72101500,Building maintenance and repair services
Communities and Local Government,Homes and Communities Agency,Economic Assets Nw Prog,North West,ECOLOGICAL LAND MANGEMENT LTD,"DAP3289-SERVICE-Rossmore Road, vegetation clearance as per qu",22/12/2017,1140,S,72101500,Building maintenance and repair services
Communities and Local Government,Homes and Communities Agency,Public Land and Regeneration,Programmes,EMCOR GROUP (UK) lTD,DAP0510-SERVICE-Fareham Magistrates Court - site decommission,06/12/2017,3000,L,72101500,Building maintenance and repair services
Communities and Local Government,Homes and Communities Agency,Economic Assets Hub Transition,Economic Assets Hub,ENJOY HOMES LTD,STF - Rectory Road - Ln Drdn - Dec 17,11/12/2017,100000,,N/A,Loans
Communities and Local Government,Homes and Communities Agency,Capital Grant to RPs,South West,ENERGY ASSETS LIMITED,DAP3370-SERVICE-Brentwood Blood Centre - Remove Gas Meter and,15/12/2017,5857.74,M,72101500,Building maintenance and repair services
Communities and Local Government,Homes and Communities Agency,Estate Management Yorks,North West,ENVIRONMENTAL DESIGN,"DAP2584-SERVICE-Silvesters, Harlow - Removal of fly tip from",01/12/2017,324,S,72101500,Building maintenance and repair services
Communities and Local Government,Homes and Communities Agency,Estate Management Yorks,North West,ENVIRONMENTAL DESIGN,"DAP0553-SERVICE-Silvesters - Grass cutting, weed control in d",04/12/2017,500,S,72101500,Building maintenance and repair services
Communities and Local Government,Homes and Communities Agency,Estate Management Yorks,North West,ENVIRONMENTAL DESIGN,"DAP0553-SERVICE-Netteswell Road -  grass cutting, hedge cutti",04/12/2017,610,S,72101500,Building maintenance and repair services
Communities and Local Government,Homes and Communities Agency,Facilities Allerton Bywater,Finance & Corporate Services,EDGBASTON STADIUM,"DAP2955-SERVICE-Aventeq providing all AV, additional breakfas",06/12/2017,4651.5,L,90111600,Meeting facilities
Communities and Local Government,Homes and Communities Agency,Economic Assets Ne-Y Prog,North East And Yorkshire,ENVIROCARE MAINTENACE SOLUTIONS LIMITED,DAP2556-SERVICE-Capitol - Strimming work.,08/12/2017,1920,S,72101500,Building maintenance and repair services
Communities and Local Government,Homes and Communities Agency,Economic Assets Ne-Y Prog,North East And Yorkshire,ENVIROCARE MAINTENACE SOLUTIONS LIMITED,DAP2958-SERVICE-To carry out a 'one off' treatment of the Jap,15/12/2017,375,S,72101500,Building maintenance and repair services
Communities and Local Government,Homes and Communities Agency,Economic Assets Hub Transition,Economic Assets Hub,EARLS COURT PARTNERSHIP LIMITED,EARLS COURT PARTNERSHIP LIMITE,21/12/2017,3992272,,N/A,Grant
Communities and Local Government,Homes and Communities Agency,Area Dir Cumbria Lancs Skelmer,North West,AECOM LIMITED,IT73404-SERVICE-EPSL monitoring at Cottam Hall,04/12/2017,2326,L,72101500,Building maintenance and repair services
Communities and Local Government,Homes and Communities Agency,South West Of Eng-Glouc-Oxford,South West,AECOM LIMITED,IT73701-SERVICE-Tecnical support to planning at Chalgrove,12/12/2017,29626.34,L,72101500,Building maintenance and repair services
Communities and Local Government,Homes and Communities Agency,East And South East,East And South East,AECOM LIMITED,IT73475-SERVICE-Initial Planning Advice,14/12/2017,1989.8,L,72101500,Building maintenance and repair services
Communities and Local Government,Homes and Communities Agency,Capital Grant to RPs,South West,AECOM LIMITED,IT73474-SERVICE-Initial Planning Advice,14/12/2017,1989.8,L,72101500,Building maintenance and repair services
Communities and Local Government,Homes and Communities Agency,East And South East,East And South East,AECOM LIMITED,IT73473-SERVICE-Initial Planning Advice,14/12/2017,1989.8,L,72101500,Building maintenance and repair services
Communities and Local Government,Homes and Communities Agency,East And South East,East And South East,AECOM LIMITED,IT73905-SERVICE-HDC Call for Sites response,14/12/2017,2623.55,L,72101500,Building maintenance and repair services
Communities and Local Government,Homes and Communities Agency,Ne-Y North East Washington,North East And Yorkshire,AECOM LIMITED,IT72504-SERVICE-Balancing Lagoon,14/12/2017,2491.25,L,72101500,Building maintenance and repair services
Communities and Local Government,Homes and Communities Agency,Area Dir Cumbria Lancs Skelmer,North West,AECOM LIMITED,IT74131-SERVICE-HCA NW FIxed Term Consultancy Support,18/12/2017,7097,L,72101500,Building maintenance and repair services
Communities and Local Government,Homes and Communities Agency,Economic Assets Nw Prog,North West,AECOM LIMITED,IT74067-SERVICE-North West OA Accelerated Delivery team: Cons,18/12/2017,7875,L,72101500,Building maintenance and repair services
Communities and Local Government,Homes and Communities Agency,Spatial Intelligence Telford,Programmes,AECOM LIMITED,IT73615-SERVICE-SPSL Due Diligence - 12323 - Carleton Clinic,19/12/2017,2133.24,L,72101500,Building maintenance and repair services
Communities and Local Government,Homes and Communities Agency,South West Hants-Iow-Dorset-Bu,South West,AECOM LIMITED,IT72457-SERVICE-Civic Quarter,19/12/2017,5518.68,L,72101500,Building maintenance and repair services
Communities and Local Government,Homes and Communities Agency,Economic Assets S&Sw Prog,South West,AECOM LIMITED,IT73753-SERVICE-Former Pirbright Institute,19/12/2017,37816.53,L,72101500,Building maintenance and repair services
Communities and Local Government,Homes and Communities Agency,Economic Assets S&Sw Prog,South West,AECOM LIMITED,IT74610-SERVICE-Further utilities and site investigation work,19/12/2017,1000,L,72101500,Building maintenance and repair services
Communities and Local Government,Homes and Communities Agency,LIF LS Loans Private additions,Programmes,AECOM LIMITED,IT71864-SERVICE-Project monitoring of Chilmington Green infra,20/12/2017,2271,L,72101500,Building maintenance and repair services
Communities and Local Government,Homes and Communities Agency,East And Se Cambs Herts And Bu,East And South East,AECOM LIMITED,IT73580-SERVICE-Houghton Grange - Provision of Planning & Tec,21/12/2017,12908.43,L,72101500,Building maintenance and repair services
Communities and Local Government,Homes and Communities Agency,East And Se Cambs Herts And Bu,East And South East,AECOM LIMITED,IT73581-SERVICE-Houghton Grange - Provision of Planning & Tec,21/12/2017,1319.08,L,72101500,Building maintenance and repair services
Communities and Local Government,Homes and Communities Agency,East And Se Cambs Herts And Bu,East And South East,AECOM LIMITED,IT73582-SERVICE-Houghton Grange - Provision of Planning & Tec,21/12/2017,6310.35,L,72101500,Building maintenance and repair services
Communities and Local Government,Homes and Communities Agency,Economic Assets Ne-Y Prog,North East And Yorkshire,AECOM LIMITED,IT74018-SERVICE-Provision of Technical Reports for Housing at,22/12/2017,14573.67,L,72101500,Building maintenance and repair services
Communities and Local Government,Homes and Communities Agency,East And Se Cambs Herts And Bu,East And South East,AECOM LIMITED,IT73909-SERVICE-Below Ground Services Survey,22/12/2017,660.78,L,72101500,Building maintenance and repair services
Communities and Local Government,Homes and Communities Agency,Spatial Intelligence Telford,Programmes,SAVILLS UK LIMITED,IT74255-SERVICE-AC Local Authority DVA � AC089 - 01 - Tulin M,04/12/2017,3047.61,L,80131800,Real estate management services
Communities and Local Government,Homes and Communities Agency,Spatial Intelligence Telford,Programmes,SAVILLS UK LIMITED,IT74254-SERVICE-To carry out a 'clean site' appraisal for the,04/12/2017,6089.82,L,80131800,Real estate management services
Communities and Local Government,Homes and Communities Agency,Spatial Intelligence Telford,Programmes,SAVILLS UK LIMITED,IT74253-SERVICE-To carry out a 'clean site' appraisal for the,04/12/2017,6119.82,L,80131800,Real estate management services
Communities and Local Government,Homes and Communities Agency,Spatial Intelligence Telford,Programmes,SAVILLS UK LIMITED,IT74257-SERVICE-AC Local Authority DVA � AC121- 08 - Bitterne,04/12/2017,3050.91,L,80131800,Real estate management services
Communities and Local Government,Homes and Communities Agency,Spatial Intelligence Telford,Programmes,SAVILLS UK LIMITED,IT74343-SERVICE-AC Local Authority DVA � AC121- 01 - Oaklands,04/12/2017,3036.21,L,80131800,Real estate management services
Communities and Local Government,Homes and Communities Agency,Economic Assets S&Sw Prog,South West,SAVILLS UK LIMITED,IT74019-SERVICE-Farnborough Police Station and Civic Quarter ,05/12/2017,6000,L,80131800,Real estate management services
Communities and Local Government,Homes and Communities Agency,Budget 2013 - Midlands Wm,Midlands,SAVILLS UK LIMITED,IT74319-SERVICE-Perry Barr - Strategic Intervention Report,07/12/2017,9500,L,80131800,Real estate management services
Communities and Local Government,Homes and Communities Agency,Land And Regeneration Mh,Programmes,SAVILLS UK LIMITED,IT74651-SERVICE-Oakmere Homes Kendal Ltd - 22 Houses @ Sycamo,14/12/2017,4000,L,80131800,Real estate management services
Communities and Local Government,Homes and Communities Agency,Economic Assets S&Sw Prog,South West,SAVILLS UK LIMITED,IT74325-SERVICE-Variation of outline planning application - B,20/12/2017,9309.18,L,80131800,Real estate management services
Communities and Local Government,Homes and Communities Agency,Spatial Intelligence Telford,Programmes,SAVILLS UK LIMITED,IT74223-SERVICE-AC Local Authority DV AC.079-01/02  Derby Sou,22/12/2017,4700,L,80131800,Real estate management services
Communities and Local Government,Homes and Communities Agency,Spatial Intelligence Telford,Programmes,SAVILLS UK LIMITED,IT74225-SERVICE-AC Local Authority DVA - AC.079-01  Derby Cen,22/12/2017,4600,L,80131800,Real estate management services
Communities and Local Government,Homes and Communities Agency,Spatial Intelligence Telford,Programmes,SAVILLS UK LIMITED,IT74229-SERVICE-AC Local Authority DVA - AC.097 - 02 & 13 Che,22/12/2017,4600,L,80131800,Real estate management services
Communities and Local Government,Homes and Communities Agency,Spatial Intelligence Telford,Programmes,SAVILLS UK LIMITED,IT74222-SERVICE-Prepare development viability appraisal for t,22/12/2017,3100,L,80131800,Real estate management services
Communities and Local Government,Homes and Communities Agency,Spatial Intelligence Telford,Programmes,SAVILLS UK LIMITED,IT74226-SERVICE-AC Local Authority DVA - AC.097-02/AC034-03 D,22/12/2017,7800,L,80131800,Real estate management services
Communities and Local Government,Homes and Communities Agency,Spatial Intelligence Telford,Programmes,SAVILLS UK LIMITED,IT74224-SERVICE-AC local Authority DVA - AC079-06 Middleton H,22/12/2017,3100,L,80131800,Real estate management services
Communities and Local Government,Homes and Communities Agency,Spatial Intelligence Telford,Programmes,SAVILLS UK LIMITED,IT74227-SERVICE-AC Local Authority DVA - AC034 & AC037 Heanor,22/12/2017,4600,L,80131800,Real estate management services
Communities and Local Government,Homes and Communities Agency,Spatial Intelligence Telford,Programmes,SAVILLS UK LIMITED,IT74228-SERVICE-AC Local Authority DVA - AC097-22 - Clay Cros,22/12/2017,3100,L,80131800,Real estate management services
Communities and Local Government,Homes and Communities Agency,Spatial Intelligence Telford,Programmes,SAVILLS UK LIMITED,IT74230-SERVICE-AC Local Authority DVA - AC097-26 Chatsworth,22/12/2017,3100,L,80131800,Real estate management services
Communities and Local Government,Homes and Communities Agency,East And Se Essex And Kent,East And South East,SAVILLS UK LIMITED,IT72217-SERVICE-Land Agent Services - Lodge Hill NCL Sites,22/12/2017,3478.85,L,80131800,Real estate management services
Communities and Local Government,Homes and Communities Agency,Budget 2013 - Midlands Wm,Midlands,SAVILLS UK LIMITED,IT74057-SERVICE-Upton Lodge,22/12/2017,10410,L,80131800,Real estate management services
Communities and Local Government,Homes and Communities Agency,Economic Assets Hub Transition,Economic Assets Hub,FAIRBRIDGE DEVELOPMENTS LTD,THBF LTF-Fairbridge-Dec17 CHAPS,21/12/2017,5040490.61,,N/A,Loans
Communities and Local Government,Homes and Communities Agency,Company Secretary Mh,Finance & Corporate Services,4 NEW SQUARE,DAP3298-SERVICE-(Case No. 147298) Advising in Conference agai,12/12/2017,2500,L,80121600,Business law services
Communities and Local Government,Homes and Communities Agency,Capital Grant to RPs,South West,R FOX T/A SOUTHCOAST MAINTENANCE,DAP2582-SERVICE-Fareham Magistrates Court - Call off order fo,06/12/2017,299,S,72101500,Building maintenance and repair services
Communities and Local Government,Homes and Communities Agency,Economic Assets S&Sw Prog,South West,R FOX T/A SOUTHCOAST MAINTENANCE,DAP2979-SERVICE-Colt International - Call off order,06/12/2017,560,S,72101500,Building maintenance and repair services
Communities and Local Government,Homes and Communities Agency,Economic Assets S&Sw Prog,South West,R FOX T/A SOUTHCOAST MAINTENANCE,DAP2979-SERVICE-Colt International - Call off order,06/12/2017,590,S,72101500,Building maintenance and repair services
Communities and Local Government,Homes and Communities Agency,Economic Assets S&Sw Prog,South West,R FOX T/A SOUTHCOAST MAINTENANCE,DAP2975-SERVICE-Daedalus - Helpdesk call off order,06/12/2017,270,S,72101500,Building maintenance and repair services
Communities and Local Government,Homes and Communities Agency,Economic Assets S&Sw Prog,South West,R FOX T/A SOUTHCOAST MAINTENANCE,DAP3098-SERVICE-St James Hospital - Repairs to site bundary f,06/12/2017,2000,S,72101500,Building maintenance and repair services
Communities and Local Government,Homes and Communities Agency,Economic Assets S&Sw Prog,South West,R FOX T/A SOUTHCOAST MAINTENANCE,DAP3099-SERVICE-St James Hospital - Clearance of buildings fo,14/12/2017,4000,S,72101500,Building maintenance and repair services
Communities and Local Government,Homes and Communities Agency,Economic Assets S&Sw Prog,South West,R FOX T/A SOUTHCOAST MAINTENANCE,DAP1812-SERVICE-PD Fuels site Tipner - Landscaping to brownfi,14/12/2017,1000,S,72101500,Building maintenance and repair services
Communities and Local Government,Homes and Communities Agency,Economic Assets S&Sw Prog,South West,R FOX T/A SOUTHCOAST MAINTENANCE,DAP2581-SERVICE-Daedalus - Call off order for ongoing site wo,19/12/2017,1000,S,72101500,Building maintenance and repair services
Communities and Local Government,Homes and Communities Agency,Economic Assets S&Sw Prog,South West,R FOX T/A SOUTHCOAST MAINTENANCE,DAP2581-SERVICE-Daedalus - Call off order for ongoing site wo,21/12/2017,1920,S,72101500,Building maintenance and repair services
Communities and Local Government,Homes and Communities Agency,Economic Assets S&Sw Prog,South West,R FOX T/A SOUTHCOAST MAINTENANCE,DAP3328-SERVICE-Daedalus Waterfront - Monthly PPM works Nov 2,21/12/2017,1920,S,72101500,Building maintenance and repair services
Communities and Local Government,Homes and Communities Agency,Economic Assets S&Sw Prog,South West,R FOX T/A SOUTHCOAST MAINTENANCE,DAP3328-SERVICE-Daedalus Waterfront - Monthly PPM works Nov 2,21/12/2017,1920,S,72101500,Building maintenance and repair services
Communities and Local Government,Homes and Communities Agency,Economic Assets S&Sw Prog,South West,R FOX T/A SOUTHCOAST MAINTENANCE,DAP3329-SERVICE-Tipner Greyhound site - Winter site clearance,21/12/2017,3875,S,72101500,Building maintenance and repair services
Communities and Local Government,Homes and Communities Agency,East And Se Cambs Herts And Bu,East And South East,FALCON SECURITY,DAM3490-SERVICE-HOUGHTON GRANGE     To cover for the remainde,12/12/2017,16094.36,M,92121500,Guard services
Communities and Local Government,Homes and Communities Agency,East And South East,East And South East,FALCON SECURITY,DAP1084-SERVICE-Oakington Barracks - To the provision of mann,12/12/2017,19056.2,M,92121500,Guard services
Communities and Local Government,Homes and Communities Agency,It - Rda Transition,Finance & Corporate Services,FUTUREGOV LTD,DAP3017-SERVICE-Digital Strategy Work,21/12/2017,25000,,80101507,Information technology consultation services�
Communities and Local Government,Homes and Communities Agency,Economic Assets S&Sw Prog,South West,FRISKA LTD.,DSW0874-SERVICE-BBSP Catering,14/12/2017,6177.85,S,90101600,Banquet and catering services
Communities and Local Government,Homes and Communities Agency,Economic Assets S&Sw Prog,South West,FP MAILING LTD,DSW0885-SERVICE-Franking posting for tenants BBSP,06/12/2017,800,S,78102200,Postal and small parcel and courier services
Communities and Local Government,Homes and Communities Agency,Economic Assets Hub Transition,Economic Assets Hub,FAIRGROVE (NOTTINGHAM) LTD,STF - Kimberley Brewery - Ln Dd - Dec 17,19/12/2017,193166,,N/A,Loans
Communities and Local Government,Homes and Communities Agency,Economic Assets Hub Transition,Economic Assets Hub,FLOUR DEVELOPMENTS LIMITED,BTR - Flour Developments - Ln Dd- Dec 17,15/12/2017,1036485.45,,N/A,Loans
Communities and Local Government,Homes and Communities Agency,Estate Management Yorks,North West,F T GEARING L/S LTD,DAP2638-SERVICE-Removal of 2 cars and excavator for one day t,12/12/2017,950,M,72101500,Building maintenance and repair services
Communities and Local Government,Homes and Communities Agency,Estate Management Yorks,North West,F T GEARING L/S LTD,DAP1130-SERVICE-Paradise Fields - Annual Maintenance - Hedge,12/12/2017,395.23,M,72101500,Building maintenance and repair services
Communities and Local Government,Homes and Communities Agency,Area Dir Mids Worcs-Shrop-Here,Midlands,GVA GRIMLEY,IT72242-SERVICE-Halesfield 2 - James Gibson,01/12/2017,967.66,L,80131800,Real estate management services
Communities and Local Government,Homes and Communities Agency,Liverpool Cheshire Warrington,North West,GVA GRIMLEY,IT71421-SERVICE-Plot C Wavertree Technology Park - Viability,01/12/2017,750,L,80131800,Real estate management services
Communities and Local Government,Homes and Communities Agency,Economic Assets Ne-Y Prog,North East And Yorkshire,GVA GRIMLEY,IT73627-SERVICE-Final appraisal and reconciliation of PLI mod,01/12/2017,4000,L,80131800,Real estate management services
Communities and Local Government,Homes and Communities Agency,Affordable National,Programmes,GVA GRIMLEY,IT72417-SERVICE-ATLAS Viability support to large projects,01/12/2017,7080,L,80131800,Real estate management services
Communities and Local Government,Homes and Communities Agency,Area Dir Mids Worcs-Shrop-Here,Midlands,GVA GRIMLEY,IT72242-SERVICE-Halesfield 2 - James Gibson,04/12/2017,950,L,80131800,Real estate management services
Communities and Local Government,Homes and Communities Agency,East And South East,East And South East,GVA GRIMLEY,IT74757-SERVICE-Franking Report ,04/12/2017,8500,L,80131800,Real estate management services
Communities and Local Government,Homes and Communities Agency,Economic Assets Ne-Y Prog,North East And Yorkshire,GVA GRIMLEY,IT74493-SERVICE-York Local Plan Representation,04/12/2017,1500,L,80131800,Real estate management services
Communities and Local Government,Homes and Communities Agency,Budget 2013 - Midlands Wm,Midlands,GVA GRIMLEY,IT74026-SERVICE-Leicester City Centre Site Opportunities,05/12/2017,9500,L,80131800,Real estate management services
Communities and Local Government,Homes and Communities Agency,East And South East,East And South East,GVA GRIMLEY,IT74758-SERVICE-Valuation appraisal Affordable Housing policy,05/12/2017,2500,L,80131800,Real estate management services
Communities and Local Government,Homes and Communities Agency,Economic Assets S&Sw Prog,South West,GVA GRIMLEY,IT74543-SERVICE-Valuation of Daedalus Waterfront,05/12/2017,10000,L,80131800,Real estate management services
Communities and Local Government,Homes and Communities Agency,Spatial Intelligence Telford,Programmes,GVA GRIMLEY,IT74187-SERVICE-AC Medway Council - Site ref no AC022-01. - W,06/12/2017,3285,L,80131800,Real estate management services
Communities and Local Government,Homes and Communities Agency,Spatial Intelligence Telford,Programmes,GVA GRIMLEY,IT74189-SERVICE-AC022-02 Medway Towns Queen St Car Park ME44 ,06/12/2017,3285,L,80131800,Real estate management services
Communities and Local Government,Homes and Communities Agency,Spatial Intelligence Telford,Programmes,GVA GRIMLEY,IT74190-SERVICE-AC022-04 Medway Council Civic Centre Strood M,06/12/2017,3285,L,80131800,Real estate management services
Communities and Local Government,Homes and Communities Agency,Spatial Intelligence Telford,Programmes,GVA GRIMLEY,IT74191-SERVICE-AC129-01 Jaywick Sands,06/12/2017,3285,L,80131800,Real estate management services
Communities and Local Government,Homes and Communities Agency,Land And Regeneration Mh,Programmes,GVA GRIMLEY,IT74760-SERVICE-ECF Review ECF (28892),06/12/2017,9750,L,80131800,Real estate management services
Communities and Local Government,Homes and Communities Agency,East And South East,East And South East,GVA GRIMLEY,IT74777-SERVICE-West Stevenage ,07/12/2017,771,L,80131800,Real estate management services
Communities and Local Government,Homes and Communities Agency,Spatial Intelligence Telford,Programmes,GVA GRIMLEY,IT74193-SERVICE-AC096-31-Thamesfield Farm,08/12/2017,3285,L,80131800,Real estate management services
Communities and Local Government,Homes and Communities Agency,Spatial Intelligence Telford,Programmes,GVA GRIMLEY,IT74197-SERVICE-AC096-21 Spelthorne District Council,08/12/2017,3285,L,80131800,Real estate management services
Communities and Local Government,Homes and Communities Agency,Spatial Intelligence Telford,Programmes,GVA GRIMLEY,IT74196-SERVICE-AC096-07 Reigate and Banstead,08/12/2017,3285,L,80131800,Real estate management services
Communities and Local Government,Homes and Communities Agency,Spatial Intelligence Telford,Programmes,GVA GRIMLEY,IT74194-SERVICE-AC135-01 Lower Tier,08/12/2017,3285,L,80131800,Real estate management services
Communities and Local Government,Homes and Communities Agency,Estate Management Yorks,North West,GVA GRIMLEY,IT73434-SERVICE-Security Management Ransome Road,12/12/2017,500,L,80131800,Real estate management services
Communities and Local Government,Homes and Communities Agency,Mk Development Control Mk,Midlands,GVA GRIMLEY,IT73546-SERVICE-Northampton Reactive Management Maintenance W,12/12/2017,1500,L,80131800,Real estate management services
Communities and Local Government,Homes and Communities Agency,Mk Development Control Mk,Midlands,GVA GRIMLEY,IT73480-SERVICE-Northampton Brownfield Management - Ransome R,12/12/2017,2250,L,80131800,Real estate management services
Communities and Local Government,Homes and Communities Agency,East And South East,East And South East,GVA GRIMLEY,IT74775-SERVICE-Ransome Road Additonal Inspections,12/12/2017,1687.5,L,80131800,Real estate management services
Communities and Local Government,Homes and Communities Agency,East And South East,East And South East,GVA GRIMLEY,IT74778-SERVICE-West Stevenage ,12/12/2017,4875,L,80131800,Real estate management services
Communities and Local Government,Homes and Communities Agency,Economic Assets Ne-Y Prog,North East And Yorkshire,GVA GRIMLEY,IT73851-SERVICE-DN7 Waystone Valuation,12/12/2017,930,L,80131800,Real estate management services
Communities and Local Government,Homes and Communities Agency,Budget 2013 - Midlands Wm,Midlands,GVA GRIMLEY,IT73806-SERVICE-Property Inspections,13/12/2017,750,L,80131800,Real estate management services
Communities and Local Government,Homes and Communities Agency,Budget 2013 - Midlands Wm,Midlands,GVA GRIMLEY,IT73805-SERVICE-Managing Agent,13/12/2017,1500,L,80131800,Real estate management services
Communities and Local Government,Homes and Communities Agency,Budget 2013 - Midlands Wm,Midlands,GVA GRIMLEY,IT73807-SERVICE-Managing Agent,13/12/2017,2375,L,80131800,Real estate management services
Communities and Local Government,Homes and Communities Agency,Land And Regeneration Mh,Programmes,GVA GRIMLEY,IT71994-SERVICE-BFF Monitoring Surveyor Appointment - Mill Mo,14/12/2017,750,L,80131800,Real estate management services
Communities and Local Government,Homes and Communities Agency,Economic Assets Ne-Y Prog,North East And Yorkshire,GVA GRIMLEY,IT74090-SERVICE-General Market Advice and reveiw of PRS in Ne,15/12/2017,3750,L,80131800,Real estate management services
Communities and Local Government,Homes and Communities Agency,Spatial Intelligence Telford,Programmes,GVA GRIMLEY,IT73604-SERVICE-Vacant Property Inspections at Burton MC,18/12/2017,562.5,L,80131800,Real estate management services
Communities and Local Government,Homes and Communities Agency,Capital Grant to RPs,South West,GVA GRIMLEY,IT73643-SERVICE-Vacant Property Inspections Sandwell MC,18/12/2017,562.5,L,80131800,Real estate management services
Communities and Local Government,Homes and Communities Agency,Spatial Intelligence Telford,Programmes,GVA GRIMLEY,IT73642-SERVICE-Vacant Property Inspections Stourbridge CC,18/12/2017,1100,L,80131800,Real estate management services
Communities and Local Government,Homes and Communities Agency,Budget 2013 - Midlands Wm,Midlands,GVA GRIMLEY,IT74884-SERVICE-Land at Snedshill - Red Book Valuation,20/12/2017,850,L,80131800,Real estate management services
Communities and Local Government,Homes and Communities Agency,Land And Regeneration Mh,Programmes,GVA GRIMLEY,IT74646-SERVICE-Chestnut Homes - 85 new open market homes in ,20/12/2017,3000,L,80131800,Real estate management services
Communities and Local Government,Homes and Communities Agency,Public Land and Regeneration,Programmes,GVA GRIMLEY,IT72699-SERVICE-City Hospital,21/12/2017,3600,L,80131800,Real estate management services
Communities and Local Government,Homes and Communities Agency,Economic Assets Ne-Y Prog,North East And Yorkshire,GVA GRIMLEY,DAP1178-SERVICE-West Hartford Business Park - Void land manag,21/12/2017,250,L,80131800,Real estate management services
Communities and Local Government,Homes and Communities Agency,Economic Assets Ne-Y Prog,North East And Yorkshire,GVA GRIMLEY,DAP1178-SERVICE-Villa Real - Void land management fee for 17/,21/12/2017,375,L,80131800,Real estate management services
Communities and Local Government,Homes and Communities Agency,Economic Assets Ne-Y Prog,North East And Yorkshire,GVA GRIMLEY,DAP1178-SERVICE-Simonside Industrial Park - Void land managem,21/12/2017,500,L,80131800,Real estate management services
Communities and Local Government,Homes and Communities Agency,Economic Assets Ne-Y Prog,North East And Yorkshire,GVA GRIMLEY,DAP1178-SERVICE-Sedgeletch Industrial Estate - Void land mana,21/12/2017,250,L,80131800,Real estate management services
Communities and Local Government,Homes and Communities Agency,Economic Assets Ne-Y Prog,North East And Yorkshire,GVA GRIMLEY,DAP1178-SERVICE-Nelson Park Industrial Estate - Void land man,21/12/2017,500,L,80131800,Real estate management services
Communities and Local Government,Homes and Communities Agency,Economic Assets Ne-Y Prog,North East And Yorkshire,GVA GRIMLEY,DAP1178-SERVICE-Queens Meadow Business Park - Void land manag,21/12/2017,500,L,80131800,Real estate management services
Communities and Local Government,Homes and Communities Agency,Economic Assets Ne-Y Prog,North East And Yorkshire,GVA GRIMLEY,DAP1178-SERVICE-Newburn Riverside - Void land management fee,21/12/2017,250,L,80131800,Real estate management services
Communities and Local Government,Homes and Communities Agency,Economic Assets Ne-Y Prog,North East And Yorkshire,GVA GRIMLEY,"DAP1178-SERVICE-Meadowfield Business Park, Durham - Void land",21/12/2017,500,L,80131800,Real estate management services
Communities and Local Government,Homes and Communities Agency,Economic Assets Ne-Y Prog,North East And Yorkshire,GVA GRIMLEY,DAP1178-SERVICE-Kirkleatham Buisness Park - Void land managem,21/12/2017,250,L,80131800,Real estate management services
Communities and Local Government,Homes and Communities Agency,Economic Assets Ne-Y Prog,North East And Yorkshire,GVA GRIMLEY,DAP1178-SERVICE-Ashwood Business Park - Void land management,21/12/2017,375,L,80131800,Real estate management services
Communities and Local Government,Homes and Communities Agency,Spatial Intelligence Telford,Programmes,GVA GRIMLEY,IT74486-SERVICE-Land at Ifield,21/12/2017,10000,L,80131800,Real estate management services
Communities and Local Government,Homes and Communities Agency,Economic Assets Nw Prog,North West,GVA GRIMLEY,IT74741-SERVICE-Advice relating to the Disposal of the Office,22/12/2017,2000,L,80131800,Real estate management services
Communities and Local Government,Homes and Communities Agency,Budget 2013 - Midlands Wm,Midlands,GVA GRIMLEY,IT74023-SERVICE-Pre-acquistion due dilligence - Basford East ,22/12/2017,1500,L,80131800,Real estate management services
Communities and Local Government,Homes and Communities Agency,Economic Assets Ne-Y Prog,North East And Yorkshire,GVA GRIMLEY,IT74511-SERVICE-Carr Lodge Phase 2 - ACDC Tender Assessment a,22/12/2017,9450,L,80131800,Real estate management services
Communities and Local Government,Homes and Communities Agency,Economic Assets Ne-Y Prog,North East And Yorkshire,GREENFINGERS LANDSCAPES LIMITED,DAP2984-SERVICE-2017-2018 Ashwood 2911.47 (242.62 monthly),21/12/2017,253.28,M,72101500,Building maintenance and repair services
Communities and Local Government,Homes and Communities Agency,Economic Assets Ne-Y Prog,North East And Yorkshire,GREENFINGERS LANDSCAPES LIMITED,DAP2985-SERVICE-2017-2018 Oakesway 9275.68 (772.97 monthly),21/12/2017,772.97,M,72101500,Building maintenance and repair services
Communities and Local Government,Homes and Communities Agency,Economic Assets Ne-Y Prog,North East And Yorkshire,GREENFINGERS LANDSCAPES LIMITED,DAP2712-SERVICE-Re-treatment of Japanese Knotweed at Newburn,21/12/2017,250,M,72101500,Building maintenance and repair services
Communities and Local Government,Homes and Communities Agency,Economic Assets Ne-Y Prog,North East And Yorkshire,GREENFINGERS LANDSCAPES LIMITED,DAP2218-SERVICE-Gate and post replacement,21/12/2017,430,M,72101500,Building maintenance and repair services
Communities and Local Government,Homes and Communities Agency,Economic Assets Nw Prog,North West,GREATER MANCHESTER TREESTATION LTD,DAP3284-SERVICE-Fell damaged tree and fell marked trees - Wei,15/12/2017,900,S,72101500,Building maintenance and repair services
Communities and Local Government,Homes and Communities Agency,Economic Assets S&Sw Prog,South West,GVA,DAP3376-SERVICE-BBSP - HCA service charge for development plo,21/12/2017,7438,L,80131500,Lease and rental of property or building
Communities and Local Government,Homes and Communities Agency,Economic Assets S&Sw Prog,South West,GVA,DAP3375-SERVICE-BBSP - HCA service charge for Innovation Cent,21/12/2017,29393,L,80131500,Lease and rental of property or building
Communities and Local Government,Homes and Communities Agency,Economic Assets S&Sw Prog,South West,GVA,DAP3375-SERVICE-BBSP - HCA service charge for Innovation Cent,21/12/2017,29662,L,80131500,Lease and rental of property or building
Communities and Local Government,Homes and Communities Agency,Economic Assets S&Sw Prog,South West,GVA,DAP3376-SERVICE-BBSP - HCA service charge for development plo,21/12/2017,16066,L,80131500,Lease and rental of property or building
Communities and Local Government,Homes and Communities Agency,Economic Assets S&Sw Prog,South West,GVA,DAP3375-SERVICE-BBSP - HCA service charge for Innovation Cent,21/12/2017,29393,L,80131500,Lease and rental of property or building
Communities and Local Government,Homes and Communities Agency,Economic Assets S&Sw Prog,South West,GVA,DAP3375-SERVICE-BBSP - HCA service charge for Innovation Cent,21/12/2017,29662,L,80131500,Lease and rental of property or building
Communities and Local Government,Homes and Communities Agency,Economic Assets Hub Transition,Economic Assets Hub,THE GROUND GROUP LTD,STF - Scrooby Road - Ln Drdn - Dec 17,19/12/2017,92091.08,,N/A,Loans
Communities and Local Government,Homes and Communities Agency,Economic Assets Hub Transition,Economic Assets Hub,GLASSHOUSES123 LIMITED,STF- Glasshouses Mill - Ln Drdn - Dec 17,18/12/2017,158522,,N/A,Loans
Communities and Local Government,Homes and Communities Agency,Economic Assets Hub Transition,Economic Assets Hub,GREGORY ROBINSON DEVELOPMENTS LTD,STF - Eccleshill - Ln Drdn - Dec 17,01/12/2017,134547.63,,N/A,Loans
Communities and Local Government,Homes and Communities Agency,Economic Assets Hub Transition,Economic Assets Hub,GOLDEN ASH HOMES LIMITED,THBF STF-Golden Ash Gardens-Dec17,20/12/2017,55038,,N/A,Loans
Communities and Local Government,Homes and Communities Agency,Area Dir Cumbria Lancs Skelmer,North West,GALLIFORDTRY PARTNERSHIPS,DNW0699-SERVICE-LAYOUT PLAN REDESIGN THE MALTINGS,04/12/2017,4950,L,80131800,Real estate management services
Communities and Local Government,Homes and Communities Agency,Economic Assets Ne-Y Prog,North East And Yorkshire,GVA GRIMLEY LIMITED,DAP2091-SERVICE-Management shortfall fee,04/12/2017,1026.73,L,80131800,Real estate management services
Communities and Local Government,Homes and Communities Agency,Economic Assets Ne-Y Prog,North East And Yorkshire,GVA GRIMLEY LIMITED,DAP2102-SERVICE-Void Service charge for Nelson Park for perio,04/12/2017,684.87,L,80131800,Real estate management services
Communities and Local Government,Homes and Communities Agency,Economic Assets Ne-Y Prog,North East And Yorkshire,GVA GRIMLEY LIMITED,DAP2102-SERVICE-Void Service charge for Nelson Park for perio,04/12/2017,915.59,L,80131800,Real estate management services
Communities and Local Government,Homes and Communities Agency,Economic Assets Ne-Y Prog,North East And Yorkshire,GVA GRIMLEY LIMITED,DAP2102-SERVICE-Void Service charge for Nelson Park for perio,04/12/2017,892.96,L,80131800,Real estate management services
Communities and Local Government,Homes and Communities Agency,Economic Assets Ne-Y Prog,North East And Yorkshire,GVA GRIMLEY LIMITED,DAP2102-SERVICE-Void Service charge for Nelson Park for perio,04/12/2017,3525.83,L,80131800,Real estate management services
Communities and Local Government,Homes and Communities Agency,Economic Assets Ne-Y Prog,North East And Yorkshire,GVA GRIMLEY LIMITED,DAP2102-SERVICE-Void Service charge for Nelson Park for perio,04/12/2017,313.5,L,80131800,Real estate management services
Communities and Local Government,Homes and Communities Agency,Economic Assets Ne-Y Prog,North East And Yorkshire,GVA GRIMLEY LIMITED,DAP2102-SERVICE-Void Service charge for Nelson Park for perio,04/12/2017,305.75,L,80131800,Real estate management services
Communities and Local Government,Homes and Communities Agency,Economic Assets Ne-Y Prog,North East And Yorkshire,GVA GRIMLEY LIMITED,DAP2102-SERVICE-Void Service charge for Nelson Park for perio,04/12/2017,1207.25,L,80131800,Real estate management services
Communities and Local Government,Homes and Communities Agency,Economic Assets Ne-Y Prog,North East And Yorkshire,GVA GRIMLEY LIMITED,DAP2102-SERVICE-Void Service charge for Nelson Park for perio,04/12/2017,313.5,L,80131800,Real estate management services
Communities and Local Government,Homes and Communities Agency,Economic Assets Ne-Y Prog,North East And Yorkshire,GVA GRIMLEY LIMITED,DAP2102-SERVICE-Void Service charge for Nelson Park for perio,04/12/2017,305.75,L,80131800,Real estate management services
Communities and Local Government,Homes and Communities Agency,Economic Assets Ne-Y Prog,North East And Yorkshire,GVA GRIMLEY LIMITED,DAP2102-SERVICE-Void Service charge for Nelson Park for perio,04/12/2017,1207.25,L,80131800,Real estate management services
Communities and Local Government,Homes and Communities Agency,Economic Assets Ne-Y Prog,North East And Yorkshire,GVA GRIMLEY LIMITED,DAP2091-SERVICE-Void Service charge for Ashwood Business Park,04/12/2017,3462,L,80131800,Real estate management services
Communities and Local Government,Homes and Communities Agency,Economic Assets Ne-Y Prog,North East And Yorkshire,GVA GRIMLEY LIMITED,DAP2102-SERVICE-Void Service charge for Newbrun Riversidefor,04/12/2017,2089,L,80131800,Real estate management services
Communities and Local Government,Homes and Communities Agency,Economic Assets Ne-Y Prog,North East And Yorkshire,GVA GRIMLEY LIMITED,DAP2102-SERVICE-Void Service charge for Nelson Park for perio,04/12/2017,450.44,L,80131800,Real estate management services
Communities and Local Government,Homes and Communities Agency,Economic Assets Ne-Y Prog,North East And Yorkshire,GVA GRIMLEY LIMITED,DAP2102-SERVICE-Void Service charge for Nelson Park for perio,04/12/2017,313.5,L,80131800,Real estate management services
Communities and Local Government,Homes and Communities Agency,Economic Assets Ne-Y Prog,North East And Yorkshire,GVA GRIMLEY LIMITED,DAP2102-SERVICE-Void Service charge for Nelson Park for perio,04/12/2017,305.75,L,80131800,Real estate management services
Communities and Local Government,Homes and Communities Agency,Economic Assets Ne-Y Prog,North East And Yorkshire,GVA GRIMLEY LIMITED,DAP2102-SERVICE-Void Service charge for Nelson Park for perio,04/12/2017,1207.25,L,80131800,Real estate management services
Communities and Local Government,Homes and Communities Agency,Economic Assets Ne-Y Prog,North East And Yorkshire,GVA GRIMLEY LIMITED,DAP2091-SERVICE-Void Service charge for Ashwood Business Park,04/12/2017,3462,L,80131800,Real estate management services
Communities and Local Government,Homes and Communities Agency,Economic Assets Ne-Y Prog,North East And Yorkshire,GVA GRIMLEY LIMITED,DAP2102-SERVICE-Void Service charge for Kirkleatham for perio,04/12/2017,5449,L,80131800,Real estate management services
Communities and Local Government,Homes and Communities Agency,Economic Assets Ne-Y Prog,North East And Yorkshire,GVA GRIMLEY LIMITED,DAP2102-SERVICE-Void Service charge for Newbrun Riversidefor,04/12/2017,2089,L,80131800,Real estate management services
Communities and Local Government,Homes and Communities Agency,Economic Assets Ne-Y Prog,North East And Yorkshire,GVA GRIMLEY LIMITED,DAP2102-SERVICE-Void Service charge for Queens Meadow for per,04/12/2017,1385,L,80131800,Real estate management services
Communities and Local Government,Homes and Communities Agency,Economic Assets Ne-Y Prog,North East And Yorkshire,GVA GRIMLEY LIMITED,DAP2850-SERVICE-Void service charge for Sedgeletch for period,04/12/2017,1136,L,80131800,Real estate management services
Communities and Local Government,Homes and Communities Agency,Economic Assets Ne-Y Prog,North East And Yorkshire,GVA GRIMLEY LIMITED,"DAP3456-SERVICE-Void Service Charge - Enterprise Court, Queen",22/12/2017,251.29,L,80131800,Real estate management services
Communities and Local Government,Homes and Communities Agency,Economic Assets S&Sw Prog,South West,GVA,DAP3403-SERVICE-BBSP - HCA Service Charge for MANCO,21/12/2017,21385,L,80131500,Lease and rental of property or building
Communities and Local Government,Homes and Communities Agency,Economic Assets S&Sw Prog,South West,GVA,DAP3403-SERVICE-BBSP - HCA Service Charge for MANCO,21/12/2017,21385,L,80131500,Lease and rental of property or building
Communities and Local Government,Homes and Communities Agency,Economic Assets S&Sw Prog,South West,GVA,DAP3403-SERVICE-BBSP - HCA Service Charge for MANCO,21/12/2017,61167.92,L,80131500,Lease and rental of property or building
Communities and Local Government,Homes and Communities Agency,Public Land and Regeneration,Programmes,GREENFIELDS GARDEN SERVICES LTD,DSW1088-SERVICE-Standish Hospital - annual maintainence under,19/12/2017,654.69,S,72101500,Building maintenance and repair services
Communities and Local Government,Homes and Communities Agency,Land And Regeneration Mh,Programmes,ARCADIS CONSULTING (UK) LIMITED,IT73092-SERVICE-kitchener MS reports,06/12/2017,1900,L,811001500,Civil Engineering
Communities and Local Government,Homes and Communities Agency,Land And Regeneration Mh,Programmes,ARCADIS CONSULTING (UK) LIMITED,IT71533-SERVICE-Conduit Lane and High St,06/12/2017,1780,L,811001500,Civil Engineering
Communities and Local Government,Homes and Communities Agency,Land And Regeneration Mh,Programmes,ARCADIS CONSULTING (UK) LIMITED,IT71533-SERVICE-Conduit Lane and High St,06/12/2017,1780,L,811001500,Civil Engineering
Communities and Local Government,Homes and Communities Agency,South West Of Eng-Glouc-Oxford,South West,ARCADIS CONSULTING (UK) LIMITED,IT72838-SERVICE-Weston Regeneration Programme,15/12/2017,4000,L,811001500,Civil Engineering
Communities and Local Government,Homes and Communities Agency,South West Of Eng-Glouc-Oxford,South West,ARCADIS CONSULTING (UK) LIMITED,IT72837-SERVICE-Weston Regeneration Programme,15/12/2017,6000,L,811001500,Civil Engineering
Communities and Local Government,Homes and Communities Agency,Ftbi South East,East And South East,ARCADIS CONSULTING (UK) LIMITED,IT70838-SERVICE-Engineering Consultant,19/12/2017,9754,L,811001500,Civil Engineering
Communities and Local Government,Homes and Communities Agency,Ftbi South East,East And South East,ARCADIS CONSULTING (UK) LIMITED,IT70838-SERVICE-Engineering Consultant,19/12/2017,17192.45,L,811001500,Civil Engineering
Communities and Local Government,Homes and Communities Agency,Ftbi South East,East And South East,ARCADIS CONSULTING (UK) LIMITED,IT70838-SERVICE-Engineering Consultant,19/12/2017,8717.2,L,811001500,Civil Engineering
Communities and Local Government,Homes and Communities Agency,Ftbi South East,East And South East,ARCADIS CONSULTING (UK) LIMITED,IT70838-SERVICE-Engineering Consultant,19/12/2017,11478.5,L,811001500,Civil Engineering
Communities and Local Government,Homes and Communities Agency,Public Land and Regeneration,Programmes,ARCADIS CONSULTING (UK) LIMITED,IT73658-SERVICE-SPSL Due Diligence - 8531 - Wexham Park Hospi,21/12/2017,3750,L,811001500,Civil Engineering
Communities and Local Government,Homes and Communities Agency,Ftbi South East,East And South East,ARCADIS CONSULTING (UK) LIMITED,IT70838-SERVICE-Engineering Consultant,22/12/2017,6938,L,811001500,Civil Engineering
Communities and Local Government,Homes and Communities Agency,Ftbi South East,East And South East,ARCADIS CONSULTING (UK) LIMITED,IT70838-SERVICE-Engineering Consultant,22/12/2017,7969.5,L,811001500,Civil Engineering
Communities and Local Government,Homes and Communities Agency,Ftbi South East,East And South East,ARCADIS CONSULTING (UK) LIMITED,IT70838-SERVICE-Engineering Consultant,22/12/2017,1395,L,811001500,Civil Engineering
Communities and Local Government,Homes and Communities Agency,Ftbi South East,East And South East,ARCADIS CONSULTING (UK) LIMITED,IT70838-SERVICE-Engineering Consultant,22/12/2017,15950,L,811001500,Civil Engineering
Communities and Local Government,Homes and Communities Agency,Ftbi South East,East And South East,ARCADIS CONSULTING (UK) LIMITED,IT70838-SERVICE-Engineering Consultant,22/12/2017,5785.3,L,811001500,Civil Engineering
Communities and Local Government,Homes and Communities Agency,Economic Assets Hub Transition,Economic Assets Hub,KEEPMOAT HOMES LIMITED,STF - Central Park - Ln Drdn - Dec 17,01/12/2017,133552,L,N/A,Loans
Communities and Local Government,Homes and Communities Agency,Economic Assets Hub Transition,Economic Assets Hub,KEEPMOAT HOMES LIMITED,STF - Woodford Lodge - Ln Drdn Dec 17,14/12/2017,4050000,L,N/A,Loans
Communities and Local Government,Homes and Communities Agency,Economic Assets Hub Transition,Economic Assets Hub,HEYWOOD DEVELOPMENTS (BROCKHOLES) LTD,STF - Mill Moor Road - Ln Drdn - Dec 17,22/12/2017,64787,,N/A,Loans
Communities and Local Government,Homes and Communities Agency,Economic Assets Ne-Y Prog,North East And Yorkshire,CH2M HILL UNITED,IT73605-SERVICE-Demolition at North East Industrial Estate,05/12/2017,9266.27,L,81121500,Economic analysis
Communities and Local Government,Homes and Communities Agency,South West Of Eng-Glouc-Oxford,South West,CH2M HILL UNITED,IT73088-SERVICE-On-going support for Filwood Park Infrastruct,21/12/2017,5000,L,81121500,Economic analysis
Communities and Local Government,Homes and Communities Agency,Economic Assets S&Sw Prog,South West,HARTNELL TAYLOR COOK LLP,DAP3246-SERVICE-West End Honiton - Buildings defect report,18/12/2017,1800,M,80131800,Real estate management services
Communities and Local Government,Homes and Communities Agency,Economic Assets Hub Transition,Economic Assets Hub,HORNCASTLE GROUPL PLC,LTF- Land off Moor Rd - Ln Drdn - Dec 17,07/12/2017,339783.88,M,55101500,Printed publications
Communities and Local Government,Homes and Communities Agency,Economic Assets Hub Transition,Economic Assets Hub,HORNCASTLE GROUPL PLC,LTF - Land off Moor Rd - Ln Dd - Dec 17,22/12/2017,209290.86,,N/A,Loans
Communities and Local Government,Homes and Communities Agency,Economic Assets Hub Transition,Economic Assets Hub,HOLLINS HOMES (WHITCHURCH) LIMITED,STF - Chester Road - Ln Drdn - Dec 17,14/12/2017,42531,,N/A,Loans
Communities and Local Government,Homes and Communities Agency,Facilities Allerton Bywater,Finance & Corporate Services,HAYMARKET MEDIA GROUP,DAP3190-SERVICE-Job Advert - Economic Modeller/Economic Appra,06/12/2017,1460,,N/A,Loans
Communities and Local Government,Homes and Communities Agency,Economic Assets Hub Transition,Economic Assets Hub,H & S DEVELOPMENT (SOMERTON) LTD,THBF STF-Home Farm-Dec17,22/12/2017,120402,,N/A,Loans
Communities and Local Government,Homes and Communities Agency,Land And Regeneration Mh,Programmes,HOUSING GROWTH PARTNERSHIP LIMITED,HGP-Caedmon Homes-Dec17,21/12/2017,853955,,N/A,Loans
Communities and Local Government,Homes and Communities Agency,Land And Regeneration Mh,Programmes,HOUSING GROWTH PARTNERSHIP LIMITED,HGP-Service Charge-Dec17,21/12/2017,420714.62,,N/A,Loans
Communities and Local Government,Homes and Communities Agency,Economic Assets Hub Transition,Economic Assets Hub,HORNCASTLE GROUP PLC,LTF- Land off Moor Rd - Ln Drdn - Dec 17,07/12/2017,353860,,N/A,Loans
Communities and Local Government,Homes and Communities Agency,Economic Assets Hub Transition,Economic Assets Hub,HORNCASTLE GROUP PLC,LTF - Land off Moor Rd - Ln Dd - Dec 17,22/12/2017,298023,,N/A,Loans
Communities and Local Government,Homes and Communities Agency,Economic Assets Hub Transition,Economic Assets Hub,HODSON DEVELOPMENTS (ASHFORD) LTD.,LTF - Chilmington Green - Ln Dd - Dec 17,15/12/2017,720921.15,,N/A,Loans
Communities and Local Government,Homes and Communities Agency,Estate Management Yorks,North West,HULTONS LANDSCAPES,DAM3510-SERVICE-CENTRAL LANCS     Initial flail of grass at W,05/12/2017,625,M,72101500,Building maintenance and repair services
Communities and Local Government,Homes and Communities Agency,Estate Management Yorks,North West,HULTONS LANDSCAPES,DAP1621-SERVICE-To replace damaged road sign post with new po,05/12/2017,395.42,M,72101500,Building maintenance and repair services
Communities and Local Government,Homes and Communities Agency,Estate Management Yorks,North West,HULTONS LANDSCAPES,DAP2494-SERVICE-Year 3 Central Lancashire Term Landscape  Mai,20/12/2017,2216.52,M,72101500,Building maintenance and repair services
Communities and Local Government,Homes and Communities Agency,Land And Regeneration Mh,Programmes,HEWITSONS SOLICITORS,"TS00002-SERVICE-27559 - Medcentres PLC, Pratt Street Soham",04/12/2017,3402,S,80121600,Business law services
Communities and Local Government,Homes and Communities Agency,Economic Assets Hub Transition,Economic Assets Hub,HEWITSONS SOLICITORS,"TS00049-SERVICE-27559 - Warwick Developments (Heskin) Ltd, Wo",04/12/2017,2001.95,S,80121600,Business law services
Communities and Local Government,Homes and Communities Agency,East And Se Essex And Kent,East And South East,HEWITSONS SOLICITORS,IS12891-SERVICE-Craylands Phase West Infrastructure,04/12/2017,2400,S,80121600,Business law services
Communities and Local Government,Homes and Communities Agency,Economic Assets S&Sw Prog,South West,HEWITSONS SOLICITORS,IS12811-SERVICE-Plot Sales and Disposal - Plots Y & Z3 (Zero ,04/12/2017,400,S,80121600,Business law services
Communities and Local Government,Homes and Communities Agency,Ne-Yh Sheffield And Humb Ne-Y,North East And Yorkshire,HEWITSONS SOLICITORS,IS12679-SERVICE-Askern,05/12/2017,320,S,80121600,Business law services
Communities and Local Government,Homes and Communities Agency,South West,South West,HEWITSONS SOLICITORS,IS06851-SERVICE-Former CompAir Holman site,05/12/2017,350,S,80121600,Business law services
Communities and Local Government,Homes and Communities Agency,Economic Assets Ne-Y Prog,North East And Yorkshire,HEWITSONS SOLICITORS,IS11945-SERVICE-Brookvale Phase 1,05/12/2017,1600,S,80121600,Business law services
Communities and Local Government,Homes and Communities Agency,Mk Development Control Mk,Midlands,HEWITSONS SOLICITORS,IS10752-SERVICE-Oakgrove Phase 2B,05/12/2017,320,S,80121600,Business law services
Communities and Local Government,Homes and Communities Agency,Mk Development Control Mk,Midlands,HEWITSONS SOLICITORS,IS11751-SERVICE-Oakgrove Phase 2C,05/12/2017,1040,S,80121600,Business law services
Communities and Local Government,Homes and Communities Agency,South West Hants-Iow-Dorset-Bu,South West,HEWITSONS SOLICITORS,IS12534-SERVICE-Quebec Barracks,05/12/2017,840,S,80121600,Business law services
Communities and Local Government,Homes and Communities Agency,East And South East,East And South East,HEWITSONS SOLICITORS,IS13062-SERVICE-Nethermayne,05/12/2017,6000,S,80121600,Business law services
Communities and Local Government,Homes and Communities Agency,Area Dir Mids Worcs-Shrop-Here,Midlands,HEWITSONS SOLICITORS,IS08906-SERVICE-The Limes,05/12/2017,3750,S,80121600,Business law services
Communities and Local Government,Homes and Communities Agency,Ne-Yh Nrth - West Yorks Ne-Y,North East And Yorkshire,HEWITSONS SOLICITORS,IS11021-SERVICE-Millennium Community,06/12/2017,400,S,80121600,Business law services
Communities and Local Government,Homes and Communities Agency,Economic Assets Hub Transition,Economic Assets Hub,HEWITSONS SOLICITORS,"TS00077-SERVICE-27559 - Devon Property Developments Ltd, The",06/12/2017,1506.7,S,80121600,Business law services
Communities and Local Government,Homes and Communities Agency,Ftbi South East,East And South East,HEWITSONS SOLICITORS,IS12588-SERVICE-Northstowe - Phase 2 & 3 unlocking infrastruc,06/12/2017,1800,S,80121600,Business law services
Communities and Local Government,Homes and Communities Agency,Ne-Y North East Washington,North East And Yorkshire,HEWITSONS SOLICITORS,IS12403-SERVICE-St Georges Hospital Morpeth - phase 1,07/12/2017,320,S,80121600,Business law services
Communities and Local Government,Homes and Communities Agency,Ad West Mids West Birmingham,Midlands,HEWITSONS SOLICITORS,IS06346-SERVICE-amended code as should be coded to the projec,11/12/2017,980,S,80121600,Business law services
Communities and Local Government,Homes and Communities Agency,Area Dir Cumbria Lancs Skelmer,North West,HEWITSONS SOLICITORS,IS12802-SERVICE-Eastway,12/12/2017,560,S,80121600,Business law services
Communities and Local Government,Homes and Communities Agency,South West Somerset-Dev-Plym-T,South West,HEWITSONS SOLICITORS,IS10982-SERVICE-Vision,15/12/2017,960,S,80121600,Business law services
Communities and Local Government,Homes and Communities Agency,Land And Regeneration Mh,Programmes,HEWITSONS SOLICITORS,IS12783-SERVICE-Chilterns Business Centre,21/12/2017,500,S,80121600,Business law services
Communities and Local Government,Homes and Communities Agency,Ne-Yh Sheffield And Humb Ne-Y,North East And Yorkshire,HEWITSONS SOLICITORS,IS09885-SERVICE-Carr Lodge Phase 1A,22/12/2017,560,S,80121600,Business law services
Communities and Local Government,Homes and Communities Agency,It - Rda Transition,Finance & Corporate Services,HUDDLE,DAP3107-SERVICE-Huddle annual licence for 500 users commencin,05/12/2017,22800,S,43231500,Business function specific software
Communities and Local Government,Homes and Communities Agency,Comms Transition Budget,Finance & Corporate Services,HIGHWAYS ENGLAND COMPANY LTD,DAP3103-SERVICE-Rent charges - For the month of April 2017,06/12/2017,5400,G,80131500,Lease and rental of property or building
Communities and Local Government,Homes and Communities Agency,Comms Transition Budget,Finance & Corporate Services,HIGHWAYS ENGLAND COMPANY LTD,DAP3103-SERVICE-Service charges - Includes:- Head landlord se,06/12/2017,6009.91,G,80131500,Lease and rental of property or building
Communities and Local Government,Homes and Communities Agency,Comms Transition Budget,Finance & Corporate Services,HIGHWAYS ENGLAND COMPANY LTD,DAP3103-SERVICE-Service charges - Includes:- Head landlord se,06/12/2017,2389.97,G,80131500,Lease and rental of property or building
Communities and Local Government,Homes and Communities Agency,Comms Transition Budget,Finance & Corporate Services,HIGHWAYS ENGLAND COMPANY LTD,DAP3136-SERVICE-Rent charges - (Annual charge from May 17 to,21/12/2017,50000,G,80131500,Lease and rental of property or building
Communities and Local Government,Homes and Communities Agency,Comms Transition Budget,Finance & Corporate Services,HIGHWAYS ENGLAND COMPANY LTD,DAP3135-SERVICE-Service charges - (Annual charge from May 17,21/12/2017,4253.88,G,80131500,Lease and rental of property or building
Communities and Local Government,Homes and Communities Agency,Comms Transition Budget,Finance & Corporate Services,HIGHWAYS ENGLAND COMPANY LTD,DAP3135-SERVICE-Service charges - (Annual charge from May 17,21/12/2017,22903.63,G,80131500,Lease and rental of property or building
Communities and Local Government,Homes and Communities Agency,Comms Transition Budget,Finance & Corporate Services,HIGHWAYS ENGLAND COMPANY LTD,DAP3135-SERVICE-Service charges - (Annual charge from May 17,21/12/2017,19913.67,G,80131500,Lease and rental of property or building
Communities and Local Government,Homes and Communities Agency,Comms Transition Budget,Finance & Corporate Services,HIGHWAYS ENGLAND COMPANY LTD,DAP3135-SERVICE-Service charges - (Annual charge from May 17,21/12/2017,5854.47,G,80131500,Lease and rental of property or building
Communities and Local Government,Homes and Communities Agency,Comms Transition Budget,Finance & Corporate Services,HIGHWAYS ENGLAND COMPANY LTD,DAP3135-SERVICE-Service charges - (Annual charge from May 17,21/12/2017,1063.22,G,80131500,Lease and rental of property or building
Communities and Local Government,Homes and Communities Agency,Comms Transition Budget,Finance & Corporate Services,HIGHWAYS ENGLAND COMPANY LTD,DAP3135-SERVICE-Service charges - (Annual charge from May 17,21/12/2017,361.98,G,80131500,Lease and rental of property or building
Communities and Local Government,Homes and Communities Agency,Capital Grant to RPs,South West,HINCKLEY & BOSWORTH BOROUGH COUNCIL,DAP3275-SERVICE-Hinckley Court - void business rates,08/12/2017,309.09,G,80131500,Lease and rental of property or building
Communities and Local Government,Homes and Communities Agency,Capital Grant to RPs,South West,HINCKLEY & BOSWORTH BOROUGH COUNCIL,DAP3275-SERVICE-Hinckley Court - void business rates,08/12/2017,110197.68,G,80131500,Lease and rental of property or building
Communities and Local Government,Homes and Communities Agency,Comms Transition Budget,Finance & Corporate Services,INDUSTRIAL LANDSCAPES LIMITED,DAP0098-SERVICE-Landsacping Services to HCA SGH Gateshead,06/12/2017,293.85,S,72101500,Building maintenance and repair services
Communities and Local Government,Homes and Communities Agency,Comms Transition Budget,Finance & Corporate Services,INDUSTRIAL LANDSCAPES LIMITED,DAP0124-SERVICE-Landscaping maintenance at Gateshead office,06/12/2017,528.11,S,72101500,Building maintenance and repair services
Communities and Local Government,Homes and Communities Agency,Comms Transition Budget,Finance & Corporate Services,INDEPTH MANAGED SERVICES,DAP0107-SERVICE-BIS/SFA ELEMENT,04/12/2017,1244.3,L,76111500,General building and office cleaining and maintenance services
Communities and Local Government,Homes and Communities Agency,Comms Transition Budget,Finance & Corporate Services,INDEPTH MANAGED SERVICES,"DAP0107-SERVICE-DAILY OFFICE CLEANING, HCA G'HEAD HCA ELEMENT",04/12/2017,2697.11,L,76111500,General building and office cleaining and maintenance services
Communities and Local Government,Homes and Communities Agency,Comms Transition Budget,Finance & Corporate Services,INDEPTH MANAGED SERVICES,DAP3377-SERVICE-BIS/SFA element,15/12/2017,1244.3,L,76111500,General building and office cleaining and maintenance services
Communities and Local Government,Homes and Communities Agency,Comms Transition Budget,Finance & Corporate Services,INDEPTH MANAGED SERVICES,DAP3377-SERVICE-Daily office cleaning to HCA Gateshead office,15/12/2017,2697.11,L,76111500,General building and office cleaining and maintenance services
Communities and Local Government,Homes and Communities Agency,Comms Transition Budget,Finance & Corporate Services,INDEPTH MANAGED SERVICES,DAP3392-SERVICE-Tenants proportion of the above. Period Nov/D,18/12/2017,1120.99,L,76111500,General building and office cleaining and maintenance services
Communities and Local Government,Homes and Communities Agency,Comms Transition Budget,Finance & Corporate Services,INDEPTH MANAGED SERVICES,DAP3392-SERVICE-Daily office cleaning to HCA Warrington,18/12/2017,2719.3,L,76111500,General building and office cleaining and maintenance services
Communities and Local Government,Homes and Communities Agency,Comms Transition Budget,Finance & Corporate Services,INDEPTH MANAGED SERVICES,DAP3392-SERVICE-Tenants proportion of the above. Period Nov/D,19/12/2017,1120.98,L,76111500,General building and office cleaining and maintenance services
Communities and Local Government,Homes and Communities Agency,Comms Transition Budget,Finance & Corporate Services,INDEPTH MANAGED SERVICES,DAP3392-SERVICE-Daily office cleaning to HCA Warrington,19/12/2017,2719.31,L,76111500,General building and office cleaining and maintenance services
Communities and Local Government,Homes and Communities Agency,Economic Assets Hub Transition,Economic Assets Hub,IPSWICH WHARF DEVELOPMENTS LIMITED,STF - Ipswich Wharf - Ln Drdn - Dec 17,01/12/2017,91461.41,,N/A,Loans
Communities and Local Government,Homes and Communities Agency,Economic Assets Hub Transition,Economic Assets Hub,IPSWICH WHARF DEVELOPMENTS LIMITED,STF - Ipswich Wharf - Ln Drdn - Dec 17,01/12/2017,427887.24,,N/A,Loans
Communities and Local Government,Homes and Communities Agency,Company Secretary Mh,Finance & Corporate Services,INCHCAPE FLEET SOLUTIONS LIMITED,DGC1549-SERVICE-INFORMAL EXT SERVICE COSTS,05/12/2017,314.87,L,25101500,Passenger motor vehicles
Communities and Local Government,Homes and Communities Agency,It - Rda Transition,Finance & Corporate Services,INCHCAPE FLEET SOLUTIONS LIMITED,DGC1552-SERVICE-INFORMAL EXT SERVICE COSTS,05/12/2017,318.96,L,25101500,Passenger motor vehicles
Communities and Local Government,Homes and Communities Agency,Ne-Yh Sheffield And Humb Ne-Y,North East And Yorkshire,INCHCAPE FLEET SOLUTIONS LIMITED,DGC1228-SERVICE-PY62AWJ 6 MONTHS INFORMAL SERVICE COSTS,05/12/2017,266.09,L,25101500,Passenger motor vehicles
Communities and Local Government,Homes and Communities Agency,Public Land and Regeneration,Programmes,INCHCAPE FLEET SOLUTIONS LIMITED,DGC1571-SERVICE-INFORMAL EXT SERVICE COSTS,18/12/2017,273.28,L,25101500,Passenger motor vehicles
Communities and Local Government,Homes and Communities Agency,Spatial Intelligence Telford,Programmes,IMPERIUM LAW SOLICITORS,RAYMOND HUTCHFIELD V HCA/AYCLIFFE DEV CORP,22/12/2017,6933.24,S,80121600,Business law services
Communities and Local Government,Homes and Communities Agency,Economic Assets S&Sw Prog,South West,JONES LANG LASALLE,IT74745-SERVICE-Valuation advice in respect of disposal,01/12/2017,1200,L,80131800,Real estate management services
Communities and Local Government,Homes and Communities Agency,Land And Regeneration National,Programmes,JONES LANG LASALLE,IT72674-SERVICE-7497 Belle Vue Sidings,01/12/2017,2955,L,80131800,Real estate management services
Communities and Local Government,Homes and Communities Agency,Land And Regeneration National,Programmes,JONES LANG LASALLE,IT72676-SERVICE-7496 Waterloo Carriage Sidings,01/12/2017,2955,L,80131800,Real estate management services
Communities and Local Government,Homes and Communities Agency,Land And Regeneration National,Programmes,JONES LANG LASALLE,"IT72928-SERVICE-Stretton Land - ""Heathlands"" at City Fields",01/12/2017,1950,L,80131800,Real estate management services
Communities and Local Government,Homes and Communities Agency,Economic Assets Ne-Y Prog,North East And Yorkshire,JONES LANG LASALLE,IT72845-SERVICE-Vesuvius valuation and advice,04/12/2017,1500,L,80131800,Real estate management services
Communities and Local Government,Homes and Communities Agency,Public Land and Regeneration,Programmes,JONES LANG LASALLE,IT73619-SERVICE-Public Sector Land Programme - Valuations (HC,04/12/2017,2500,L,80131800,Real estate management services
Communities and Local Government,Homes and Communities Agency,Land And Regeneration National,Programmes,JONES LANG LASALLE,IT73539-SERVICE-7491 Timperley,04/12/2017,2955,L,80131800,Real estate management services
Communities and Local Government,Homes and Communities Agency,Land And Regeneration National,Programmes,JONES LANG LASALLE,IT73516-SERVICE-7487 Spekeland Road,04/12/2017,2955,L,80131800,Real estate management services
Communities and Local Government,Homes and Communities Agency,Spatial Intelligence Telford,Programmes,JONES LANG LASALLE,IT74716-SERVICE-Parr Street,04/12/2017,2955,L,80131800,Real estate management services
Communities and Local Government,Homes and Communities Agency,Economic Assets Ne-Y Prog,North East And Yorkshire,JONES LANG LASALLE,IT74114-SERVICE-Tower Street Valuations,14/12/2017,9040,L,80131800,Real estate management services
Communities and Local Government,Homes and Communities Agency,Spatial Intelligence Telford,Programmes,JONES LANG LASALLE,IT74389-SERVICE-To undertake a red book valuation of the form,21/12/2017,2500,L,80131800,Real estate management services
Communities and Local Government,Homes and Communities Agency,Spatial Intelligence Telford,Programmes,JONES LANG LASALLE,IT74571-SERVICE-7499 - Railway Street,21/12/2017,1950,L,80131800,Real estate management services
Communities and Local Government,Homes and Communities Agency,Spatial Intelligence Telford,Programmes,JONES LANG LASALLE,IT74831-SERVICE-Leeds Hunslet,21/12/2017,5900,L,80131800,Real estate management services
Communities and Local Government,Homes and Communities Agency,Budget 2013 - Midlands Wm,Midlands,JONES LANG LASALLE,IT74810-SERVICE-Consultancy Fees in respect of Pershore Road,21/12/2017,4750,L,80131800,Real estate management services
Communities and Local Government,Homes and Communities Agency,Budget 2013 - Midlands Wm,Midlands,JONES LANG LASALLE,IT74812-SERVICE-HIF appraisal/Viability Work,21/12/2017,2500,L,80131800,Real estate management services
Communities and Local Government,Homes and Communities Agency,Economic Assets Ne-Y Prog,North East And Yorkshire,JMC LANDSCAPES,"DAP3069-SERVICE-Electrolux, Spennymoor - Winter gritting and",18/12/2017,675,S,72101500,Building maintenance and repair services
Communities and Local Government,Homes and Communities Agency,Economic Assets Nw Prog,North West,KEPPIE MASSIE,DAP3383-SERVICE-Surveyor and Valuation Costs relating to the,19/12/2017,11940.85,S,80131800,Real estate management services
Communities and Local Government,Homes and Communities Agency,Economic Assets Nw Prog,North West,KEPPIE MASSIE,DAP3383-SERVICE-Surveyor and Valuation Costs relating to the,19/12/2017,14412.5,S,80131800,Real estate management services
Communities and Local Government,Homes and Communities Agency,Economic Assets S&Sw Prog,South West,KNIGHT FRANK LLP,DAP3181-SERVICE-Daedalus - Licence fee at outfall Lee on Sole,05/12/2017,500,L,80131800,Real estate management services
Communities and Local Government,Homes and Communities Agency,Spatial Intelligence Telford,Programmes,KMS COMMERCIAL PROPERTY MAINTENANCE LTD,DAP3234-SERVICE-Supply and Install plywood shutters to intern,06/12/2017,262.5,M,72101500,Building maintenance and repair services
Communities and Local Government,Homes and Communities Agency,Economic Assets Hub Transition,Economic Assets Hub,KINGSTON EASTFIELD LIMITED,STF- Kingston Eastfield - Ln Dd - Dec 17,20/12/2017,775136,,N/A,Loans
Communities and Local Government,Homes and Communities Agency,Economic Assets Hub Transition,Economic Assets Hub,KINGSWOOD HOMES DEVELOPMENTS LTD,STF - Kingswood Homes - Ln Drdn - Dec 17,19/12/2017,51518,,N/A,Loans
Communities and Local Government,Homes and Communities Agency,Economic Assets Ne-Y Prog,North East And Yorkshire,LAMBERT SMITH HAMPTON,IT74536-SERVICE-Tenant Management TATA and Autohorn Leemans R,04/12/2017,625,L,80131800,Real estate management services
Communities and Local Government,Homes and Communities Agency,Economic Assets S&Sw Prog,South West,LAMBERT SMITH HAMPTON,IT74457-SERVICE-Valuation of The Hollies site,04/12/2017,1200,L,80131800,Real estate management services
Communities and Local Government,Homes and Communities Agency,Economic Assets Ne-Y Prog,North East And Yorkshire,LAMBERT SMITH HAMPTON,IT74525-SERVICE-Burma Drive Valuations- Plots 7,04/12/2017,1500,L,80131800,Real estate management services
Communities and Local Government,Homes and Communities Agency,Land And Regeneration Mh,Programmes,LAMBERT SMITH HAMPTON,IT73441-SERVICE-Acacia Drive,06/12/2017,650,L,80131800,Real estate management services
Communities and Local Government,Homes and Communities Agency,Budget 2013 - Midlands Wm,Midlands,LAMBERT SMITH HAMPTON,IT74385-SERVICE-Parkside - Overage Review,07/12/2017,750,L,80131800,Real estate management services
Communities and Local Government,Homes and Communities Agency,Land And Regeneration Mh,Programmes,LAMBERT SMITH HAMPTON,IT73439-SERVICE-The Sidings Skate Park,07/12/2017,650,L,80131800,Real estate management services
Communities and Local Government,Homes and Communities Agency,Estate Management Yorks,North West,LAMBERT SMITH HAMPTON,IT74472-SERVICE-Estate Management Consultant Support,14/12/2017,1911.66,L,80131800,Real estate management services
Communities and Local Government,Homes and Communities Agency,Estate Management Yorks,North West,LAMBERT SMITH HAMPTON,IT74472-SERVICE-Estate Management Consultant Support,14/12/2017,5408.32,L,80131800,Real estate management services
Communities and Local Government,Homes and Communities Agency,Area Dir Mids South East Midla,Midlands,LAMBERT SMITH HAMPTON,IT71580-SERVICE-Site B Station Road,18/12/2017,5250,L,80131800,Real estate management services
Communities and Local Government,Homes and Communities Agency,Ad Manchester Trafford,North West,LAMBERT SMITH HAMPTON,IT74009-SERVICE-Baxi Site 2 - Land off Grove Lane Burnley,20/12/2017,2500,L,80131800,Real estate management services
Communities and Local Government,Homes and Communities Agency,Public Land and Regeneration,Programmes,LAMBERT SMITH HAMPTON,IT72468-SERVICE-Stone Row Head / Lancaster Farms - Marketing,21/12/2017,5268,L,80131800,Real estate management services
Communities and Local Government,Homes and Communities Agency,Mk Development Control Mk,Midlands,LAMBERT SMITH HAMPTON,IT72485-SERVICE-Meacham Day Centre Site,22/12/2017,1770.58,L,80131800,Real estate management services
Communities and Local Government,Homes and Communities Agency,Economic Assets S&Sw Prog,South West,LDA DESIGN CONSULTING LLP,DAP2875-SERVICE-Preliminary works brochure - Gloucester,13/12/2017,4045,L,80131800,Real estate management services
Communities and Local Government,Homes and Communities Agency,Capital Grant to RPs,Midlands,HASTOE HOUSING ASSOCIATION LIMITED,Daily IMS payment,22/12/2017,56000,M,84131500,Insurance services for strcutures and property and possessions
Communities and Local Government,Homes and Communities Agency,Capital Grant to RPs,East And South East,ORWELL HOUSING ASSOCIATION LIMITED,Daily IMS payment,11/12/2017,15000,M,84131500,Insurance services for strcutures and property and possessions
Communities and Local Government,Homes and Communities Agency,Capital Grant to RPs,North East And Yorkshire,THE RIVERSIDE GROUP,Daily IMS payment,15/12/2017,176000,,N/A,Grant
Communities and Local Government,Homes and Communities Agency,Capital Grant to RPs,North East And Yorkshire,THE RIVERSIDE GROUP,Daily IMS payment,19/12/2017,9000,,N/A,Grant
Communities and Local Government,Homes and Communities Agency,Capital Grant to RPs,North East And Yorkshire,THE RIVERSIDE GROUP,Daily IMS payment,19/12/2017,9000,,N/A,Grant
Communities and Local Government,Homes and Communities Agency,Capital Grant to RPs,North East And Yorkshire,THE RIVERSIDE GROUP,Daily IMS payment,19/12/2017,11000,,N/A,Grant
Communities and Local Government,Homes and Communities Agency,Capital Grant to RPs,London,IRWELL VALLEY HOUSING ASSOCIATION LTD,Daily IMS payment,22/12/2017,10000,,N/A,Grant
Communities and Local Government,Homes and Communities Agency,Capital Grant to RPs,North East And Yorkshire,SOUTH YORKSHIRE HOUSING ASSOC LTD,Daily IMS payment,22/12/2017,270000,,N/A,Grant
Communities and Local Government,Homes and Communities Agency,Liverpool Cheshire Warrington,North West,LOCKTON COMPANIES LLP,DAP3348-SERVICE-Legal Contingency Cover,14/12/2017,2240,M,84131500,Insurance services for strcutures and property and possessions
Communities and Local Government,Homes and Communities Agency,Economic Assets Nw Prog,North West,LOCKTON COMPANIES LLP,DAP3369-SERVICE-Defective Title Policy Premium,15/12/2017,2500,M,84131500,Insurance services for strcutures and property and possessions
Communities and Local Government,Homes and Communities Agency,Capital Grant to RPs,South West,STONEWATER (2) LTD,Daily IMS payment,22/12/2017,140000,,N/A,Grant
Communities and Local Government,Homes and Communities Agency,Capital Grant to RPs,South West,STONEWATER (2) LTD,Daily IMS payment,22/12/2017,39827,,N/A,Grant
Communities and Local Government,Homes and Communities Agency,Capital Grant to RPs,Programmes,SANCTUARY HOUSING ASSOCIATION,Daily IMS payment,08/12/2017,485027,,N/A,Grant
Communities and Local Government,Homes and Communities Agency,Capital Grant to RPs,Programmes,SANCTUARY HOUSING ASSOCIATION,Daily IMS payment,13/12/2017,10000,,N/A,Grant
Communities and Local Government,Homes and Communities Agency,Capital Grant to RPs,Programmes,SANCTUARY HOUSING ASSOCIATION,Daily IMS payment,15/12/2017,9000,,N/A,Grant
Communities and Local Government,Homes and Communities Agency,Capital Grant to RPs,Programmes,SANCTUARY HOUSING ASSOCIATION,Daily IMS payment,22/12/2017,96981,,N/A,Grant
Communities and Local Government,Homes and Communities Agency,Capital Grant to RPs,Programmes,SANCTUARY HOUSING ASSOCIATION,Daily IMS payment,22/12/2017,454800,,N/A,Grant
Communities and Local Government,Homes and Communities Agency,Economic Assets Nw Prog,North West,LANCASHIRE COUNTY COUNCIL,CITY DEAL GRANT-COTTAM HALL SITE K,19/12/2017,59404.24,G,N/A,Grant
Communities and Local Government,Homes and Communities Agency,Economic Assets Ne-Y Prog,North East And Yorkshire,LSH CLIENT PROPERTY MANAGEMENT A/C NOTTINGHAM,DYH0101-SERVICE-Service Charge,14/12/2017,1008.67,L,80131800,Real estate management services
Communities and Local Government,Homes and Communities Agency,Capital Grant to RPs,East And South East,WEST MERCIA HOUSING GROUP,Daily IMS payment,15/12/2017,11000,,N/A,Grant
Communities and Local Government,Homes and Communities Agency,Land And Regeneration Mh,Programmes,THOMAS LISTER LTD,IT74773-SERVICE-HIF Assessment Support,06/12/2017,34609.8,S,80131800,Real estate management services
Communities and Local Government,Homes and Communities Agency,Economic Assets Ne-Y Prog,North East And Yorkshire,THOMAS LISTER LTD,IT74739-SERVICE-Building Survey - Buildings 1 & 2 ,11/12/2017,9500,S,80131800,Real estate management services
Communities and Local Government,Homes and Communities Agency,Spatial Intelligence Telford,Programmes,THOMAS LISTER LTD,IT74335-SERVICE-Towergate House,11/12/2017,2000,S,80131800,Real estate management services
Communities and Local Government,Homes and Communities Agency,Spatial Intelligence Telford,Programmes,THOMAS LISTER LTD,IT74182-SERVICE-AC083-10/Kettering BC/Lawrences Desborough/NN,14/12/2017,1000,S,80131800,Real estate management services
Communities and Local Government,Homes and Communities Agency,Spatial Intelligence Telford,Programmes,THOMAS LISTER LTD,IT74213-SERVICE-AC139-08/Central Bedfordshire/ Town Centre Re,14/12/2017,1000,S,80131800,Real estate management services
Communities and Local Government,Homes and Communities Agency,Spatial Intelligence Telford,Programmes,THOMAS LISTER LTD,IT74212-SERVICE-AC139-05/Central Bedfordshire/Rural Exception,14/12/2017,1000,S,80131800,Real estate management services
Communities and Local Government,Homes and Communities Agency,Spatial Intelligence Telford,Programmes,THOMAS LISTER LTD,IT74214-SERVICE-AC043/Luton BC/The Parrot/LU1 5QX,14/12/2017,1000,S,80131800,Real estate management services
Communities and Local Government,Homes and Communities Agency,Spatial Intelligence Telford,Programmes,THOMAS LISTER LTD,IT74181-SERVICE-AC125-03/Broxbourne BC/Land adjacent to Bisho,14/12/2017,1000,S,80131800,Real estate management services
Communities and Local Government,Homes and Communities Agency,Spatial Intelligence Telford,Programmes,THOMAS LISTER LTD,IT74691-SERVICE-Appleton Homes - Mansfield,14/12/2017,551.2,S,80131800,Real estate management services
Communities and Local Government,Homes and Communities Agency,Spatial Intelligence Telford,Programmes,THOMAS LISTER LTD,IT74180-SERVICE-AC068-01/Land at RIverside Close/Bedford BC/M,15/12/2017,1000,S,80131800,Real estate management services
Communities and Local Government,Homes and Communities Agency,Economic Assets S&Sw Prog,South West,THOMAS LISTER LTD,IT74537-SERVICE-Bridon Ropes,15/12/2017,1250,S,80131800,Real estate management services
Communities and Local Government,Homes and Communities Agency,Economic Assets Ne-Y Prog,North East And Yorkshire,THOMAS LISTER LTD,IT74838-SERVICE-Development Land,15/12/2017,500,S,80131800,Real estate management services
Communities and Local Government,Homes and Communities Agency,Budget 2013 - Midlands Wm,Midlands,THOMAS LISTER LTD,IT74185-SERVICE-Land Park Lane Cradley Heath,20/12/2017,2250,S,80131800,Real estate management services
Communities and Local Government,Homes and Communities Agency,Budget 2013 - Midlands Wm,Midlands,THOMAS LISTER LTD,IT73818-SERVICE-Ansty Park Phase 2,21/12/2017,3375,S,80131800,Real estate management services
Communities and Local Government,Homes and Communities Agency,Budget 2013 - Midlands Wm,Midlands,THOMAS LISTER LTD,IT73394-SERVICE-P10 - Project Director,21/12/2017,1100,S,80131800,Real estate management services
Communities and Local Government,Homes and Communities Agency,Budget 2013 - Midlands Wm,Midlands,THOMAS LISTER LTD,IT74361-SERVICE-City Deal - Management Information ,21/12/2017,3575,S,80131800,Real estate management services
Communities and Local Government,Homes and Communities Agency,Help to Buy Additions,South West,SWAYTHLING HOUSING SOCIETY LIMITED,Daily IMS payment,08/12/2017,361,,N/A,Grant
Communities and Local Government,Homes and Communities Agency,Help to Buy Additions,South West,SWAYTHLING HOUSING SOCIETY LIMITED,Daily IMS payment,08/12/2017,361,,N/A,Grant
Communities and Local Government,Homes and Communities Agency,Help to Buy Additions,South West,SWAYTHLING HOUSING SOCIETY LIMITED,Daily IMS payment,08/12/2017,361,,N/A,Grant
Communities and Local Government,Homes and Communities Agency,Help to Buy Additions,South West,SWAYTHLING HOUSING SOCIETY LIMITED,Daily IMS payment,08/12/2017,361,,N/A,Grant
Communities and Local Government,Homes and Communities Agency,Help to Buy Additions,South West,SWAYTHLING HOUSING SOCIETY LIMITED,Daily IMS payment,08/12/2017,361,,N/A,Grant
Communities and Local Government,Homes and Communities Agency,Help to Buy Additions,South West,SWAYTHLING HOUSING SOCIETY LIMITED,Daily IMS payment,08/12/2017,361,,N/A,Grant
Communities and Local Government,Homes and Communities Agency,Help to Buy Additions,South West,SWAYTHLING HOUSING SOCIETY LIMITED,Daily IMS payment,08/12/2017,361,,N/A,Grant
Communities and Local Government,Homes and Communities Agency,Help to Buy Additions,South West,SWAYTHLING HOUSING SOCIETY LIMITED,Daily IMS payment,08/12/2017,361,,N/A,Grant
Communities and Local Government,Homes and Communities Agency,Help to Buy Additions,South West,SWAYTHLING HOUSING SOCIETY LIMITED,Daily IMS payment,08/12/2017,361,,N/A,Grant
Communities and Local Government,Homes and Communities Agency,Help to Buy Additions,South West,SWAYTHLING HOUSING SOCIETY LIMITED,Daily IMS payment,08/12/2017,361,,N/A,Grant
Communities and Local Government,Homes and Communities Agency,Help to Buy Additions,South West,SWAYTHLING HOUSING SOCIETY LIMITED,Daily IMS payment,08/12/2017,361,,N/A,Grant
Communities and Local Government,Homes and Communities Agency,Help to Buy Additions,South West,SWAYTHLING HOUSING SOCIETY LIMITED,Daily IMS payment,08/12/2017,361,,N/A,Grant
Communities and Local Government,Homes and Communities Agency,Help to Buy Additions,South West,SWAYTHLING HOUSING SOCIETY LIMITED,Daily IMS payment,08/12/2017,361,,N/A,Grant
Communities and Local Government,Homes and Communities Agency,Help to Buy Additions,South West,SWAYTHLING HOUSING SOCIETY LIMITED,Daily IMS payment,08/12/2017,361,,N/A,Grant
Communities and Local Government,Homes and Communities Agency,Help to Buy Additions,South West,SWAYTHLING HOUSING SOCIETY LIMITED,Daily IMS payment,08/12/2017,361,,N/A,Grant
Communities and Local Government,Homes and Communities Agency,Help to Buy Additions,South West,SWAYTHLING HOUSING SOCIETY LIMITED,Daily IMS payment,08/12/2017,361,,N/A,Grant
Communities and Local Government,Homes and Communities Agency,Help to Buy Additions,South West,SWAYTHLING HOUSING SOCIETY LIMITED,Daily IMS payment,08/12/2017,361,,N/A,Grant
Communities and Local Government,Homes and Communities Agency,Help to Buy Additions,South West,SWAYTHLING HOUSING SOCIETY LIMITED,Daily IMS payment,08/12/2017,361,,N/A,Grant
Communities and Local Government,Homes and Communities Agency,Help to Buy Additions,South West,SWAYTHLING HOUSING SOCIETY LIMITED,Daily IMS payment,08/12/2017,361,,N/A,Grant
Communities and Local Government,Homes and Communities Agency,Help to Buy Additions,South West,SWAYTHLING HOUSING SOCIETY LIMITED,Daily IMS payment,08/12/2017,361,,N/A,Grant
Communities and Local Government,Homes and Communities Agency,Help to Buy Additions,South West,SWAYTHLING HOUSING SOCIETY LIMITED,Daily IMS payment,08/12/2017,361,,N/A,Grant
Communities and Local Government,Homes and Communities Agency,Help to Buy Additions,South West,SWAYTHLING HOUSING SOCIETY LIMITED,Daily IMS payment,08/12/2017,361,,N/A,Grant
Communities and Local Government,Homes and Communities Agency,Help to Buy Additions,South West,SWAYTHLING HOUSING SOCIETY LIMITED,Daily IMS payment,08/12/2017,361,,N/A,Grant
Communities and Local Government,Homes and Communities Agency,Help to Buy Additions,South West,SWAYTHLING HOUSING SOCIETY LIMITED,Daily IMS payment,08/12/2017,361,,N/A,Grant
Communities and Local Government,Homes and Communities Agency,Help to Buy Additions,South West,SWAYTHLING HOUSING SOCIETY LIMITED,Daily IMS payment,08/12/2017,361,,N/A,Grant
Communities and Local Government,Homes and Communities Agency,Help to Buy Additions,South West,SWAYTHLING HOUSING SOCIETY LIMITED,Daily IMS payment,08/12/2017,361,,N/A,Grant
Communities and Local Government,Homes and Communities Agency,Help to Buy Additions,South West,SWAYTHLING HOUSING SOCIETY LIMITED,Daily IMS payment,08/12/2017,361,,N/A,Grant
Communities and Local Government,Homes and Communities Agency,Help to Buy Additions,South West,SWAYTHLING HOUSING SOCIETY LIMITED,Daily IMS payment,08/12/2017,361,,N/A,Grant
Communities and Local Government,Homes and Communities Agency,Help to Buy Additions,South West,SWAYTHLING HOUSING SOCIETY LIMITED,Daily IMS payment,08/12/2017,361,,N/A,Grant
Communities and Local Government,Homes and Communities Agency,Help to Buy Additions,South West,SWAYTHLING HOUSING SOCIETY LIMITED,Daily IMS payment,08/12/2017,361,,N/A,Grant
Communities and Local Government,Homes and Communities Agency,Help to Buy Additions,South West,SWAYTHLING HOUSING SOCIETY LIMITED,Daily IMS payment,11/12/2017,361,,N/A,Grant
Communities and Local Government,Homes and Communities Agency,Help to Buy Additions,South West,SWAYTHLING HOUSING SOCIETY LIMITED,Daily IMS payment,11/12/2017,361,,N/A,Grant
Communities and Local Government,Homes and Communities Agency,Help to Buy Additions,South West,SWAYTHLING HOUSING SOCIETY LIMITED,Daily IMS payment,11/12/2017,361,,N/A,Grant
Communities and Local Government,Homes and Communities Agency,Help to Buy Additions,South West,SWAYTHLING HOUSING SOCIETY LIMITED,Daily IMS payment,11/12/2017,361,,N/A,Grant
Communities and Local Government,Homes and Communities Agency,Help to Buy Additions,South West,SWAYTHLING HOUSING SOCIETY LIMITED,Daily IMS payment,11/12/2017,361,,N/A,Grant
Communities and Local Government,Homes and Communities Agency,Help to Buy Additions,South West,SWAYTHLING HOUSING SOCIETY LIMITED,Daily IMS payment,11/12/2017,361,,N/A,Grant
Communities and Local Government,Homes and Communities Agency,Help to Buy Additions,South West,SWAYTHLING HOUSING SOCIETY LIMITED,Daily IMS payment,11/12/2017,361,,N/A,Grant
Communities and Local Government,Homes and Communities Agency,Help to Buy Additions,South West,SWAYTHLING HOUSING SOCIETY LIMITED,Daily IMS payment,11/12/2017,361,,N/A,Grant
Communities and Local Government,Homes and Communities Agency,Help to Buy Additions,South West,SWAYTHLING HOUSING SOCIETY LIMITED,Daily IMS payment,11/12/2017,361,,N/A,Grant
Communities and Local Government,Homes and Communities Agency,Help to Buy Additions,South West,SWAYTHLING HOUSING SOCIETY LIMITED,Daily IMS payment,11/12/2017,361,,N/A,Grant
Communities and Local Government,Homes and Communities Agency,Help to Buy Additions,South West,SWAYTHLING HOUSING SOCIETY LIMITED,Daily IMS payment,11/12/2017,361,,N/A,Grant
Communities and Local Government,Homes and Communities Agency,Help to Buy Additions,South West,SWAYTHLING HOUSING SOCIETY LIMITED,Daily IMS payment,11/12/2017,361,,N/A,Grant
Communities and Local Government,Homes and Communities Agency,Help to Buy Additions,South West,SWAYTHLING HOUSING SOCIETY LIMITED,Daily IMS payment,11/12/2017,361,,N/A,Grant
Communities and Local Government,Homes and Communities Agency,Help to Buy Additions,South West,SWAYTHLING HOUSING SOCIETY LIMITED,Daily IMS payment,11/12/2017,361,,N/A,Grant
Communities and Local Government,Homes and Communities Agency,Help to Buy Additions,South West,SWAYTHLING HOUSING SOCIETY LIMITED,Daily IMS payment,11/12/2017,361,,N/A,Grant
Communities and Local Government,Homes and Communities Agency,Help to Buy Additions,South West,SWAYTHLING HOUSING SOCIETY LIMITED,Daily IMS payment,11/12/2017,361,,N/A,Grant
Communities and Local Government,Homes and Communities Agency,Help to Buy Additions,South West,SWAYTHLING HOUSING SOCIETY LIMITED,Daily IMS payment,11/12/2017,361,,N/A,Grant
Communities and Local Government,Homes and Communities Agency,Help to Buy Additions,South West,SWAYTHLING HOUSING SOCIETY LIMITED,Daily IMS payment,11/12/2017,361,,N/A,Grant
Communities and Local Government,Homes and Communities Agency,Help to Buy Additions,South West,SWAYTHLING HOUSING SOCIETY LIMITED,Daily IMS payment,11/12/2017,361,,N/A,Grant
Communities and Local Government,Homes and Communities Agency,Help to Buy Additions,South West,SWAYTHLING HOUSING SOCIETY LIMITED,Daily IMS payment,11/12/2017,361,,N/A,Grant
Communities and Local Government,Homes and Communities Agency,Help to Buy Additions,South West,SWAYTHLING HOUSING SOCIETY LIMITED,Daily IMS payment,11/12/2017,361,,N/A,Grant
Communities and Local Government,Homes and Communities Agency,Help to Buy Additions,South West,SWAYTHLING HOUSING SOCIETY LIMITED,Daily IMS payment,11/12/2017,361,,N/A,Grant
Communities and Local Government,Homes and Communities Agency,Help to Buy Additions,South West,SWAYTHLING HOUSING SOCIETY LIMITED,Daily IMS payment,11/12/2017,361,,N/A,Grant
Communities and Local Government,Homes and Communities Agency,Help to Buy Additions,South West,SWAYTHLING HOUSING SOCIETY LIMITED,Daily IMS payment,11/12/2017,361,,N/A,Grant
Communities and Local Government,Homes and Communities Agency,Help to Buy Additions,South West,SWAYTHLING HOUSING SOCIETY LIMITED,Daily IMS payment,11/12/2017,361,,N/A,Grant
Communities and Local Government,Homes and Communities Agency,Help to Buy Additions,South West,SWAYTHLING HOUSING SOCIETY LIMITED,Daily IMS payment,11/12/2017,361,,N/A,Grant
Communities and Local Government,Homes and Communities Agency,Help to Buy Additions,South West,SWAYTHLING HOUSING SOCIETY LIMITED,Daily IMS payment,11/12/2017,361,,N/A,Grant
Communities and Local Government,Homes and Communities Agency,Help to Buy Additions,South West,SWAYTHLING HOUSING SOCIETY LIMITED,Daily IMS payment,11/12/2017,361,,N/A,Grant
Communities and Local Government,Homes and Communities Agency,Help to Buy Additions,South West,SWAYTHLING HOUSING SOCIETY LIMITED,Daily IMS payment,11/12/2017,361,,N/A,Grant
Communities and Local Government,Homes and Communities Agency,Help to Buy Additions,South West,SWAYTHLING HOUSING SOCIETY LIMITED,Daily IMS payment,11/12/2017,361,,N/A,Grant
Communities and Local Government,Homes and Communities Agency,Help to Buy Additions,South West,SWAYTHLING HOUSING SOCIETY LIMITED,Daily IMS payment,11/12/2017,361,,N/A,Grant
Communities and Local Government,Homes and Communities Agency,Help to Buy Additions,South West,SWAYTHLING HOUSING SOCIETY LIMITED,Daily IMS payment,11/12/2017,361,,N/A,Grant
Communities and Local Government,Homes and Communities Agency,Help to Buy Additions,South West,SWAYTHLING HOUSING SOCIETY LIMITED,Daily IMS payment,11/12/2017,361,,N/A,Grant
Communities and Local Government,Homes and Communities Agency,Help to Buy Additions,South West,SWAYTHLING HOUSING SOCIETY LIMITED,Daily IMS payment,11/12/2017,361,,N/A,Grant
Communities and Local Government,Homes and Communities Agency,Help to Buy Additions,South West,SWAYTHLING HOUSING SOCIETY LIMITED,Daily IMS payment,11/12/2017,361,,N/A,Grant
Communities and Local Government,Homes and Communities Agency,Help to Buy Additions,South West,SWAYTHLING HOUSING SOCIETY LIMITED,Daily IMS payment,11/12/2017,361,,N/A,Grant
Communities and Local Government,Homes and Communities Agency,Help to Buy Additions,South West,SWAYTHLING HOUSING SOCIETY LIMITED,Daily IMS payment,11/12/2017,361,,N/A,Grant
Communities and Local Government,Homes and Communities Agency,Help to Buy Additions,South West,SWAYTHLING HOUSING SOCIETY LIMITED,Daily IMS payment,11/12/2017,361,,N/A,Grant
Communities and Local Government,Homes and Communities Agency,Help to Buy Additions,South West,SWAYTHLING HOUSING SOCIETY LIMITED,Daily IMS payment,11/12/2017,361,,N/A,Grant
Communities and Local Government,Homes and Communities Agency,Help to Buy Additions,South West,SWAYTHLING HOUSING SOCIETY LIMITED,Daily IMS payment,11/12/2017,361,,N/A,Grant
Communities and Local Government,Homes and Communities Agency,Help to Buy Additions,South West,SWAYTHLING HOUSING SOCIETY LIMITED,Daily IMS payment,11/12/2017,361,,N/A,Grant
Communities and Local Government,Homes and Communities Agency,Help to Buy Additions,South West,SWAYTHLING HOUSING SOCIETY LIMITED,Daily IMS payment,11/12/2017,361,,N/A,Grant
Communities and Local Government,Homes and Communities Agency,Help to Buy Additions,South West,SWAYTHLING HOUSING SOCIETY LIMITED,Daily IMS payment,11/12/2017,361,,N/A,Grant
Communities and Local Government,Homes and Communities Agency,Help to Buy Additions,South West,SWAYTHLING HOUSING SOCIETY LIMITED,Daily IMS payment,11/12/2017,361,,N/A,Grant
Communities and Local Government,Homes and Communities Agency,Help to Buy Additions,South West,SWAYTHLING HOUSING SOCIETY LIMITED,Daily IMS payment,11/12/2017,361,,N/A,Grant
Communities and Local Government,Homes and Communities Agency,Help to Buy Additions,South West,SWAYTHLING HOUSING SOCIETY LIMITED,Daily IMS payment,11/12/2017,361,,N/A,Grant
Communities and Local Government,Homes and Communities Agency,Help to Buy Additions,South West,SWAYTHLING HOUSING SOCIETY LIMITED,Daily IMS payment,11/12/2017,361,,N/A,Grant
Communities and Local Government,Homes and Communities Agency,Help to Buy Additions,South West,SWAYTHLING HOUSING SOCIETY LIMITED,Daily IMS payment,11/12/2017,361,,N/A,Grant
Communities and Local Government,Homes and Communities Agency,Help to Buy Additions,South West,SWAYTHLING HOUSING SOCIETY LIMITED,Daily IMS payment,11/12/2017,361,,N/A,Grant
Communities and Local Government,Homes and Communities Agency,Help to Buy Additions,South West,SWAYTHLING HOUSING SOCIETY LIMITED,Daily IMS payment,11/12/2017,361,,N/A,Grant
Communities and Local Government,Homes and Communities Agency,Help to Buy Additions,South West,SWAYTHLING HOUSING SOCIETY LIMITED,Daily IMS payment,12/12/2017,361,,N/A,Grant
Communities and Local Government,Homes and Communities Agency,Help to Buy Additions,South West,SWAYTHLING HOUSING SOCIETY LIMITED,Daily IMS payment,12/12/2017,361,,N/A,Grant
Communities and Local Government,Homes and Communities Agency,Help to Buy Additions,South West,SWAYTHLING HOUSING SOCIETY LIMITED,Daily IMS payment,12/12/2017,361,,N/A,Grant
Communities and Local Government,Homes and Communities Agency,Help to Buy Additions,South West,SWAYTHLING HOUSING SOCIETY LIMITED,Daily IMS payment,12/12/2017,361,,N/A,Grant
Communities and Local Government,Homes and Communities Agency,Help to Buy Additions,South West,SWAYTHLING HOUSING SOCIETY LIMITED,Daily IMS payment,12/12/2017,361,,N/A,Grant
Communities and Local Government,Homes and Communities Agency,Help to Buy Additions,South West,SWAYTHLING HOUSING SOCIETY LIMITED,Daily IMS payment,12/12/2017,361,,N/A,Grant
Communities and Local Government,Homes and Communities Agency,Help to Buy Additions,South West,SWAYTHLING HOUSING SOCIETY LIMITED,Daily IMS payment,12/12/2017,361,,N/A,Grant
Communities and Local Government,Homes and Communities Agency,Help to Buy Additions,South West,SWAYTHLING HOUSING SOCIETY LIMITED,Daily IMS payment,12/12/2017,361,,N/A,Grant
Communities and Local Government,Homes and Communities Agency,Help to Buy Additions,South West,SWAYTHLING HOUSING SOCIETY LIMITED,Daily IMS payment,12/12/2017,361,,N/A,Grant
Communities and Local Government,Homes and Communities Agency,Help to Buy Additions,South West,SWAYTHLING HOUSING SOCIETY LIMITED,Daily IMS payment,12/12/2017,361,,N/A,Grant
Communities and Local Government,Homes and Communities Agency,Help to Buy Additions,South West,SWAYTHLING HOUSING SOCIETY LIMITED,Daily IMS payment,12/12/2017,361,,N/A,Grant
Communities and Local Government,Homes and Communities Agency,Help to Buy Additions,South West,SWAYTHLING HOUSING SOCIETY LIMITED,Daily IMS payment,12/12/2017,361,,N/A,Grant
Communities and Local Government,Homes and Communities Agency,Help to Buy Additions,South West,SWAYTHLING HOUSING SOCIETY LIMITED,Daily IMS payment,12/12/2017,361,,N/A,Grant
Communities and Local Government,Homes and Communities Agency,Help to Buy Additions,South West,SWAYTHLING HOUSING SOCIETY LIMITED,Daily IMS payment,12/12/2017,361,,N/A,Grant
Communities and Local Government,Homes and Communities Agency,Help to Buy Additions,South West,SWAYTHLING HOUSING SOCIETY LIMITED,Daily IMS payment,12/12/2017,361,,N/A,Grant
Communities and Local Government,Homes and Communities Agency,Help to Buy Additions,South West,SWAYTHLING HOUSING SOCIETY LIMITED,Daily IMS payment,12/12/2017,361,,N/A,Grant
Communities and Local Government,Homes and Communities Agency,Help to Buy Additions,South West,SWAYTHLING HOUSING SOCIETY LIMITED,Daily IMS payment,12/12/2017,361,,N/A,Grant
Communities and Local Government,Homes and Communities Agency,Help to Buy Additions,South West,SWAYTHLING HOUSING SOCIETY LIMITED,Daily IMS payment,12/12/2017,361,,N/A,Grant
Communities and Local Government,Homes and Communities Agency,Help to Buy Additions,South West,SWAYTHLING HOUSING SOCIETY LIMITED,Daily IMS payment,12/12/2017,361,,N/A,Grant
Communities and Local Government,Homes and Communities Agency,Help to Buy Additions,South West,SWAYTHLING HOUSING SOCIETY LIMITED,Daily IMS payment,12/12/2017,361,,N/A,Grant
Communities and Local Government,Homes and Communities Agency,Help to Buy Additions,South West,SWAYTHLING HOUSING SOCIETY LIMITED,Daily IMS payment,12/12/2017,361,,N/A,Grant
Communities and Local Government,Homes and Communities Agency,Help to Buy Additions,South West,SWAYTHLING HOUSING SOCIETY LIMITED,Daily IMS payment,12/12/2017,361,,N/A,Grant
Communities and Local Government,Homes and Communities Agency,Help to Buy Additions,South West,SWAYTHLING HOUSING SOCIETY LIMITED,Daily IMS payment,12/12/2017,361,,N/A,Grant
Communities and Local Government,Homes and Communities Agency,Help to Buy Additions,South West,SWAYTHLING HOUSING SOCIETY LIMITED,Daily IMS payment,12/12/2017,361,,N/A,Grant
Communities and Local Government,Homes and Communities Agency,Help to Buy Additions,South West,SWAYTHLING HOUSING SOCIETY LIMITED,Daily IMS payment,12/12/2017,361,,N/A,Grant
Communities and Local Government,Homes and Communities Agency,Help to Buy Additions,South West,SWAYTHLING HOUSING SOCIETY LIMITED,Daily IMS payment,12/12/2017,361,,N/A,Grant
Communities and Local Government,Homes and Communities Agency,Help to Buy Additions,South West,SWAYTHLING HOUSING SOCIETY LIMITED,Daily IMS payment,12/12/2017,361,,N/A,Grant
Communities and Local Government,Homes and Communities Agency,Help to Buy Additions,South West,SWAYTHLING HOUSING SOCIETY LIMITED,Daily IMS payment,12/12/2017,361,,N/A,Grant
Communities and Local Government,Homes and Communities Agency,Help to Buy Additions,South West,SWAYTHLING HOUSING SOCIETY LIMITED,Daily IMS payment,12/12/2017,361,,N/A,Grant
Communities and Local Government,Homes and Communities Agency,Help to Buy Additions,South West,SWAYTHLING HOUSING SOCIETY LIMITED,Daily IMS payment,12/12/2017,361,,N/A,Grant
Communities and Local Government,Homes and Communities Agency,Help to Buy Additions,South West,SWAYTHLING HOUSING SOCIETY LIMITED,Daily IMS payment,12/12/2017,361,,N/A,Grant
Communities and Local Government,Homes and Communities Agency,Help to Buy Additions,South West,SWAYTHLING HOUSING SOCIETY LIMITED,Daily IMS payment,12/12/2017,361,,N/A,Grant
Communities and Local Government,Homes and Communities Agency,Help to Buy Additions,South West,SWAYTHLING HOUSING SOCIETY LIMITED,Daily IMS payment,12/12/2017,361,,N/A,Grant
Communities and Local Government,Homes and Communities Agency,Help to Buy Additions,South West,SWAYTHLING HOUSING SOCIETY LIMITED,Daily IMS payment,12/12/2017,361,,N/A,Grant
Communities and Local Government,Homes and Communities Agency,Help to Buy Additions,South West,SWAYTHLING HOUSING SOCIETY LIMITED,Daily IMS payment,12/12/2017,361,,N/A,Grant
Communities and Local Government,Homes and Communities Agency,Help to Buy Additions,South West,SWAYTHLING HOUSING SOCIETY LIMITED,Daily IMS payment,12/12/2017,361,,N/A,Grant
Communities and Local Government,Homes and Communities Agency,Help to Buy Additions,South West,SWAYTHLING HOUSING SOCIETY LIMITED,Daily IMS payment,12/12/2017,361,,N/A,Grant
Communities and Local Government,Homes and Communities Agency,Help to Buy Additions,South West,SWAYTHLING HOUSING SOCIETY LIMITED,Daily IMS payment,12/12/2017,361,,N/A,Grant
Communities and Local Government,Homes and Communities Agency,Help to Buy Additions,South West,SWAYTHLING HOUSING SOCIETY LIMITED,Daily IMS payment,12/12/2017,361,,N/A,Grant
Communities and Local Government,Homes and Communities Agency,Help to Buy Additions,South West,SWAYTHLING HOUSING SOCIETY LIMITED,Daily IMS payment,12/12/2017,361,,N/A,Grant
Communities and Local Government,Homes and Communities Agency,Help to Buy Additions,South West,SWAYTHLING HOUSING SOCIETY LIMITED,Daily IMS payment,12/12/2017,361,,N/A,Grant
